OrganisationNameLabel,OrganisationURI,EffectiveDate,Directorate/ServiceWhereExpenditureIncurred,ServiceCategoryLabel,ServiceCategoryURI,Supplier,SupplierRegisteredCompany Number,PaymentDate,TransactionNumber,NetAmount,IrrecoverableVAT,PurposeOfSpend,PurposeOfSpend,Procurement (Me,ProcurementClassification:ProclassLabel,ProcrementClassification:ProClassCode
South Lakeland District Council,http://opendatacommunities.org/id/district-council/south-lakeland,43524,Human Resources,Central Services,http://opendatacommunities.org/def/concept/finance/sercop/objective/102,CUMBRIA COUNTY COUNCIL,,18/02/2019,79345,144,0,SB - Enhanced with lists,SB - Enhanced with lists,Legal & Counsels Fees,908000,Public Bodies Council support services
South Lakeland District Council,http://opendatacommunities.org/id/district-council/south-lakeland,43524,ICT Group,Central Services,http://opendatacommunities.org/def/concept/finance/sercop/objective/102,PROBRAND LTD,2653446,11/02/2019,82536,471.7,0,Plantronics C320-M headsets,Plantronics C320-M headsets,Computer-Supplies,271600,ICT Software Customised & Bespoke
South Lakeland District Council,http://opendatacommunities.org/id/district-council/south-lakeland,43524,Business Support Community Services,Cultural Environmental Regulatory & Planning Services,http://opendatacommunities.org/def/concept/finance/sercop/objective/104,WESTMORLAND VETERINARY GROUP,,06/02/2019,82924,1356.73,0,Vet Inspections for Licensing,Vet Inspections for Licensing,Vets Fees,181500,Environment Animal Services
South Lakeland District Council,http://opendatacommunities.org/id/district-council/south-lakeland,43524,Business Support Community Services,Cultural Environmental Regulatory & Planning Services,http://opendatacommunities.org/def/concept/finance/sercop/objective/104,WESTMORLAND VETERINARY GROUP,,06/02/2019,83097,148.08,0,20/12/18 Meeting with MC New,20/12/18 Meeting with MC New,Vets Fees,181500,Environment Animal Services
South Lakeland District Council,http://opendatacommunities.org/id/district-council/south-lakeland,43524,Development Implementation,Highways & Transport Services,http://opendatacommunities.org/def/concept/finance/sercop/objective/107,Bloom Procurement Services Ltd,,06/02/2019,83405,20012,0,SLDC - Parking Study (WYG),SLDC - Parking Study (WYG),Other Consultants,151900,Consultancy Management
South Lakeland District Council,http://opendatacommunities.org/id/district-council/south-lakeland,43524,ICT Group,Central Services,http://opendatacommunities.org/def/concept/finance/sercop/objective/102,Insight Direct (Uk) Ltd,2579852,11/02/2019,83425,5115.4,0,S021VN5568BTSUKIE_1901 Vostro 15 5568,S021VN5568BTSUKIE_1901 Vostro 15 5568,Computer-Supplies,271200,ICT Hardware
South Lakeland District Council,http://opendatacommunities.org/id/district-council/south-lakeland,43524,ICT Group,Central Services,http://opendatacommunities.org/def/concept/finance/sercop/objective/102,Insight Direct (Uk) Ltd,2579852,11/02/2019,83425,10230.8,0,S021VN5568BTSUKIE_1901 Vostro 15 5568,S021VN5568BTSUKIE_1901 Vostro 15 5568,Purchase of IT Equipment,271200,ICT Hardware
South Lakeland District Council,http://opendatacommunities.org/id/district-council/south-lakeland,43524,ICT Group,Central Services,http://opendatacommunities.org/def/concept/finance/sercop/objective/102,Insight Direct (Uk) Ltd,2579852,11/02/2019,83426,9.6,0,S021VN5568BTSUKIE_1901 Vostro 15 5568,S021VN5568BTSUKIE_1901 Vostro 15 5568,Computer-Supplies,271200,ICT Hardware
South Lakeland District Council,http://opendatacommunities.org/id/district-council/south-lakeland,43524,ICT Group,Central Services,http://opendatacommunities.org/def/concept/finance/sercop/objective/102,EE UK LTD (NCR),,01/02/2019,83441,18.53,0,"Car Park SIMS, covers 2018/19","Car Park SIMS, covers 2018/19",Mobile Phones,351000,Street & Traffic Parking Car Parks
South Lakeland District Council,http://opendatacommunities.org/id/district-council/south-lakeland,43524,ICT Group,Highways & Transport Services,http://opendatacommunities.org/def/concept/finance/sercop/objective/107,EE UK LTD (NCR),,01/02/2019,83441,140,0,"Car Park SIMS, covers 2018/19","Car Park SIMS, covers 2018/19",Fixed Plant & Machinery Maint,351000,Street & Traffic Parking Car Parks
South Lakeland District Council,http://opendatacommunities.org/id/district-council/south-lakeland,43524,ICT Group,Central Services,http://opendatacommunities.org/def/concept/finance/sercop/objective/102,EE UK LTD (NCR),,01/02/2019,83441,169.66,0,"Car Park SIMS, covers 2018/19","Car Park SIMS, covers 2018/19",Equipment Furniture Materials,351000,Street & Traffic Parking Car Parks
South Lakeland District Council,http://opendatacommunities.org/id/district-council/south-lakeland,43524,ICT Group,Cultural Environmental Regulatory & Planning Services,http://opendatacommunities.org/def/concept/finance/sercop/objective/104,EE UK LTD (NCR),,01/02/2019,83441,11.45,0,"Car Park SIMS, covers 2018/19","Car Park SIMS, covers 2018/19",Equipment Furniture Materials,351000,Street & Traffic Parking Car Parks
South Lakeland District Council,http://opendatacommunities.org/id/district-council/south-lakeland,43524,Printing Section,Central Services,http://opendatacommunities.org/def/concept/finance/sercop/objective/102,Complete Business Solutions Group Ltd,7931407,06/02/2019,83474,225.66,0,Treasury Tags Elastic white 152 mm (box,Treasury Tags Elastic white 152 mm (box,Paper Supplies,279999,ICT Not Elsewhere Classified
South Lakeland District Council,http://opendatacommunities.org/id/district-council/south-lakeland,43524,Leisure and Wellbeing,Cultural Environmental Regulatory & Planning Services,http://opendatacommunities.org/def/concept/finance/sercop/objective/104,HAGS-SMP Ltd,908021,25/02/2019,83516,50,0,"Rubber sleeve, bolts and caps for","Rubber sleeve, bolts and caps for",Playground Equipment,331000,Sports Playground Equipment
South Lakeland District Council,http://opendatacommunities.org/id/district-council/south-lakeland,43524,Business Support Community Services,Cultural Environmental Regulatory & Planning Services,http://opendatacommunities.org/def/concept/finance/sercop/objective/104,UNITED UTILITIES WATER PLC,2366678,04/02/2019,83540,1040.38,0,Private Water Analysis - December 2018,Private Water Analysis - December 2018,Sampling & Inspection fees,371300,Utilities Water
South Lakeland District Council,http://opendatacommunities.org/id/district-council/south-lakeland,43524,Development Implementation,Central Services,http://opendatacommunities.org/def/concept/finance/sercop/objective/102,LAMBERT SMITH HAMPTON GROUP,2521225,20/02/2019,83574,26500,0,Car Parks Engineering & Business Plan,Car Parks Engineering & Business Plan,Other Consultants,999999,Unclassifiable
South Lakeland District Council,http://opendatacommunities.org/id/district-council/south-lakeland,43524,Development Implementation,Highways & Transport Services,http://opendatacommunities.org/def/concept/finance/sercop/objective/107,LAMBERT SMITH HAMPTON GROUP,2521225,20/02/2019,83574,9765,0,Car Parks Engineering & Business Plan,Car Parks Engineering & Business Plan,Other Consultants,999999,Unclassifiable
South Lakeland District Council,http://opendatacommunities.org/id/district-council/south-lakeland,43524,Business Support Community Services,Cultural Environmental Regulatory & Planning Services,http://opendatacommunities.org/def/concept/finance/sercop/objective/104,CANNON HYGIENE LTD,1298292,30/01/2019,83594,237.94,0,Clinical waste collections - 2018/19,Clinical waste collections - 2018/19,Clinincal Waste Disposal Costs,131011,Cleaning & Janitorial Cleaning Materials
South Lakeland District Council,http://opendatacommunities.org/id/district-council/south-lakeland,43524,ICT Group,Central Services,http://opendatacommunities.org/def/concept/finance/sercop/objective/102,CIVICA UK LTD,1628868,27/02/2019,83602,2330,0,Server moves - Live and Test,Server moves - Live and Test,Purchase of IT Equipment,271600,ICT Software Customised & Bespoke
South Lakeland District Council,http://opendatacommunities.org/id/district-council/south-lakeland,43524,Development Implementation,Central Services,http://opendatacommunities.org/def/concept/finance/sercop/objective/102,Ulverston Properties Limited,,04/02/2019,83605,281.67,0,Rent for Ulverston Business Centre,Rent for Ulverston Business Centre,PSC - Design Work,190000,Facilities & Management Services
South Lakeland District Council,http://opendatacommunities.org/id/district-council/south-lakeland,43524,Cemeteries Office,Cultural Environmental Regulatory & Planning Services,http://opendatacommunities.org/def/concept/finance/sercop/objective/104,COOPER ENGRAVING,,13/02/2019,83606,80,0,"1 off brass plaque ""LESTER""","1 off brass plaque ""LESTER""",Equipment Furniture Materials,102400,Building Signage
South Lakeland District Council,http://opendatacommunities.org/id/district-council/south-lakeland,43524,Environment and Housing,Housing Services,http://opendatacommunities.org/def/concept/finance/sercop/objective/108,James Andrews Recruitment Solutions,6834852,04/02/2019,83615,721.77,0,Staff,Staff,Contract & Agency staff,261400,HR Temporary & Agency Staff
South Lakeland District Council,http://opendatacommunities.org/id/district-council/south-lakeland,43524,Leisure and Wellbeing,Cultural Environmental Regulatory & Planning Services,http://opendatacommunities.org/def/concept/finance/sercop/objective/104,Greaves Tree Services,,11/02/2019,83617,210,0,"Rear of LG, Kendal","Rear of LG, Kendal",Arboricultural Work,241600,Horticultural Trees & Shrubs
South Lakeland District Council,http://opendatacommunities.org/id/district-council/south-lakeland,43524,Leisure and Wellbeing,Cultural Environmental Regulatory & Planning Services,http://opendatacommunities.org/def/concept/finance/sercop/objective/104,SMS (SALCOMBE) LTD,4558962,06/02/2019,83643,101.9,0,submersible bilge pump,submersible bilge pump,Transport-Repair & Maintenance,381500,Vehicle Mgt Parts
South Lakeland District Council,http://opendatacommunities.org/id/district-council/south-lakeland,43524,Leisure and Wellbeing,Cultural Environmental Regulatory & Planning Services,http://opendatacommunities.org/def/concept/finance/sercop/objective/104,SMS (SALCOMBE) LTD,4558962,06/02/2019,83644,199.91,0,YN119593-35100 oil filters,YN119593-35100 oil filters,Transport-Repair & Maintenance,381500,Vehicle Mgt Parts
South Lakeland District Council,http://opendatacommunities.org/id/district-council/south-lakeland,43524,Development Management,Cultural Environmental Regulatory & Planning Services,http://opendatacommunities.org/def/concept/finance/sercop/objective/104,CHRIS BOWKER LTD,1642561,13/02/2019,83645,45,0,Inspection of electrical work under,Inspection of electrical work under,Electrican Inspection,101100,Building Electrical
South Lakeland District Council,http://opendatacommunities.org/id/district-council/south-lakeland,43524,Social Enterprise Admin,Highways & Transport Services,http://opendatacommunities.org/def/concept/finance/sercop/objective/107,ARCO LIMITED,133804,04/02/2019,83667,-38.77,0,1 Berghaus Womens Deluge Pant Black 14,1 Berghaus Womens Deluge Pant Black 14,Protective Clothing & Uniforms,141100,Clothing Protective
South Lakeland District Council,http://opendatacommunities.org/id/district-council/south-lakeland,43524,Social Enterprise Admin,Culture and Related Serv,http://opendatacommunities.org/def/concept/finance/sercop/objective/104,HAGS-SMP Ltd,908021,25/02/2019,83668,2816.98,0,To remove current play equipment and to,To remove current play equipment and to,Purchase of Plant Machinery,331000,Sports Playground Equipment
South Lakeland District Council,http://opendatacommunities.org/id/district-council/south-lakeland,43524,Leisure and Wellbeing,Cultural Environmental Regulatory & Planning Services,http://opendatacommunities.org/def/concept/finance/sercop/objective/104,HAGS-SMP Ltd,908021,18/02/2019,83669,4113.05,0,For supply and install powder coated,For supply and install powder coated,Playground Equipment,331000,Sports Playground Equipment
South Lakeland District Council,http://opendatacommunities.org/id/district-council/south-lakeland,43524,Business Support Community Services,Cultural Environmental Regulatory & Planning Services,http://opendatacommunities.org/def/concept/finance/sercop/objective/104,The Oyster Partnership,5020374,06/02/2019,83670,1207.85,0,Agency staff Planning,Agency staff Planning,Contract & Agency staff,261300,HR Recruitment & Assessment
South Lakeland District Council,http://opendatacommunities.org/id/district-council/south-lakeland,43524,Development Management,Cultural Environmental Regulatory & Planning Services,http://opendatacommunities.org/def/concept/finance/sercop/objective/104,The Oyster Partnership,5020374,06/02/2019,83671,1901.25,0,AGENCY STAFF,AGENCY STAFF,Contract & Agency staff,261300,HR Recruitment & Assessment
South Lakeland District Council,http://opendatacommunities.org/id/district-council/south-lakeland,43524,Business Support Community Services,Cultural Environmental Regulatory & Planning Services,http://opendatacommunities.org/def/concept/finance/sercop/objective/104,The Oyster Partnership,5020374,06/02/2019,83672,2829.4,0,Agency staff Planning,Agency staff Planning,Contract & Agency staff,261300,HR Recruitment & Assessment
South Lakeland District Council,http://opendatacommunities.org/id/district-council/south-lakeland,43524,Revenues and Benefits,Central Services,http://opendatacommunities.org/def/concept/finance/sercop/objective/102,CIVICA UK LTD,1628868,27/02/2019,83675,50.4,0,"Licence, Support and Maintenance","Licence, Support and Maintenance",Private Contractos gen,271600,ICT Software Customised & Bespoke
South Lakeland District Council,http://opendatacommunities.org/id/district-council/south-lakeland,43524,Business Support Community Services,Housing Services,http://opendatacommunities.org/def/concept/finance/sercop/objective/108,My Dream Cleaners Ltd,9839482,04/02/2019,83676,199.38,0,Cleaning at Town View Fields,Cleaning at Town View Fields,Cleaning Supplies & Services,131320,Cleaning & Janitorial Cleaning Service
South Lakeland District Council,http://opendatacommunities.org/id/district-council/south-lakeland,43524,Development Implementation,Cultural Environmental Regulatory & Planning Services,http://opendatacommunities.org/def/concept/finance/sercop/objective/104,LAKE DISTRICT NATIONAL PARK AUTHORITY,,04/02/2019,83678,500,0,Contribution to the Climate Change,Contribution to the Climate Change,Grants & Contribut to Vol Orga,201700,Financial Services Grants
South Lakeland District Council,http://opendatacommunities.org/id/district-council/south-lakeland,43524,Financial Services,Central Services,http://opendatacommunities.org/def/concept/finance/sercop/objective/102,TIAA Ltd,4546319,04/02/2019,83679,3283.3,0,18/19 Internal Audit Service,18/19 Internal Audit Service,Hired Services,201100,Financial Services Audit
South Lakeland District Council,http://opendatacommunities.org/id/district-council/south-lakeland,43524,Leisure and Wellbeing,Cultural Environmental Regulatory & Planning Services,http://opendatacommunities.org/def/concept/finance/sercop/objective/104,CONTINENTAL LANDSCAPES LTD,2108452,18/02/2019,83680,2184,0,Extra works for grounds maintenance,Extra works for grounds maintenance,Grounds,391310,Construction Open Spaces Construction
South Lakeland District Council,http://opendatacommunities.org/id/district-council/south-lakeland,43524,Leisure and Wellbeing,Cultural Environmental Regulatory & Planning Services,http://opendatacommunities.org/def/concept/finance/sercop/objective/104,CONTINENTAL LANDSCAPES LTD,2108452,18/02/2019,83681,2000,0,For disposal of waste for Kendal Fell,For disposal of waste for Kendal Fell,Tipping & Disposal Charges,391310,Construction Open Spaces Construction
South Lakeland District Council,http://opendatacommunities.org/id/district-council/south-lakeland,43524,Leisure and Wellbeing,Cultural Environmental Regulatory & Planning Services,http://opendatacommunities.org/def/concept/finance/sercop/objective/104,CONTINENTAL LANDSCAPES LTD,2108452,18/02/2019,83682,3852.09,0,Gravedigging for April 2018 - March 2019,Gravedigging for April 2018 - March 2019,Gravedigging,391310,Construction Open Spaces Construction
South Lakeland District Council,http://opendatacommunities.org/id/district-council/south-lakeland,43524,Leisure and Wellbeing,Highways & Transport Services,http://opendatacommunities.org/def/concept/finance/sercop/objective/107,CONTINENTAL LANDSCAPES LTD,2108452,18/02/2019,83683,12.74,0,Parks Routine Maintenance 2018-19,Parks Routine Maintenance 2018-19,Grounds,391310,Construction Open Spaces Construction
South Lakeland District Council,http://opendatacommunities.org/id/district-council/south-lakeland,43524,Leisure and Wellbeing,Highways & Transport Services,http://opendatacommunities.org/def/concept/finance/sercop/objective/107,CONTINENTAL LANDSCAPES LTD,2108452,18/02/2019,83683,127.44,0,Parks Routine Maintenance 2018-19,Parks Routine Maintenance 2018-19,Grounds,391310,Construction Open Spaces Construction
South Lakeland District Council,http://opendatacommunities.org/id/district-council/south-lakeland,43524,Leisure and Wellbeing,Highways & Transport Services,http://opendatacommunities.org/def/concept/finance/sercop/objective/107,CONTINENTAL LANDSCAPES LTD,2108452,18/02/2019,83683,1.27,0,Parks Routine Maintenance 2018-19,Parks Routine Maintenance 2018-19,Grounds,391310,Construction Open Spaces Construction
South Lakeland District Council,http://opendatacommunities.org/id/district-council/south-lakeland,43524,Leisure and Wellbeing,Highways & Transport Services,http://opendatacommunities.org/def/concept/finance/sercop/objective/107,CONTINENTAL LANDSCAPES LTD,2108452,18/02/2019,83683,12.74,0,Parks Routine Maintenance 2018-19,Parks Routine Maintenance 2018-19,Grounds,391310,Construction Open Spaces Construction
South Lakeland District Council,http://opendatacommunities.org/id/district-council/south-lakeland,43524,Leisure and Wellbeing,Highways & Transport Services,http://opendatacommunities.org/def/concept/finance/sercop/objective/107,CONTINENTAL LANDSCAPES LTD,2108452,18/02/2019,83683,127.44,0,Parks Routine Maintenance 2018-19,Parks Routine Maintenance 2018-19,Grounds,391310,Construction Open Spaces Construction
South Lakeland District Council,http://opendatacommunities.org/id/district-council/south-lakeland,43524,Leisure and Wellbeing,Highways & Transport Services,http://opendatacommunities.org/def/concept/finance/sercop/objective/107,CONTINENTAL LANDSCAPES LTD,2108452,18/02/2019,83683,12.74,0,Parks Routine Maintenance 2018-19,Parks Routine Maintenance 2018-19,Grounds,391310,Construction Open Spaces Construction
South Lakeland District Council,http://opendatacommunities.org/id/district-council/south-lakeland,43524,Leisure and Wellbeing,Highways & Transport Services,http://opendatacommunities.org/def/concept/finance/sercop/objective/107,CONTINENTAL LANDSCAPES LTD,2108452,18/02/2019,83683,25.49,0,Parks Routine Maintenance 2018-19,Parks Routine Maintenance 2018-19,Grounds,391310,Construction Open Spaces Construction
South Lakeland District Council,http://opendatacommunities.org/id/district-council/south-lakeland,43524,Leisure and Wellbeing,Highways & Transport Services,http://opendatacommunities.org/def/concept/finance/sercop/objective/107,CONTINENTAL LANDSCAPES LTD,2108452,18/02/2019,83683,15.93,0,Parks Routine Maintenance 2018-19,Parks Routine Maintenance 2018-19,Grounds,391310,Construction Open Spaces Construction
South Lakeland District Council,http://opendatacommunities.org/id/district-council/south-lakeland,43524,Leisure and Wellbeing,Highways & Transport Services,http://opendatacommunities.org/def/concept/finance/sercop/objective/107,CONTINENTAL LANDSCAPES LTD,2108452,18/02/2019,83683,159.3,0,Parks Routine Maintenance 2018-19,Parks Routine Maintenance 2018-19,Grounds,391310,Construction Open Spaces Construction
South Lakeland District Council,http://opendatacommunities.org/id/district-council/south-lakeland,43524,Leisure and Wellbeing,Highways & Transport Services,http://opendatacommunities.org/def/concept/finance/sercop/objective/107,CONTINENTAL LANDSCAPES LTD,2108452,18/02/2019,83683,6.37,0,Parks Routine Maintenance 2018-19,Parks Routine Maintenance 2018-19,Grounds,391310,Construction Open Spaces Construction
South Lakeland District Council,http://opendatacommunities.org/id/district-council/south-lakeland,43524,Leisure and Wellbeing,Highways & Transport Services,http://opendatacommunities.org/def/concept/finance/sercop/objective/107,CONTINENTAL LANDSCAPES LTD,2108452,18/02/2019,83683,63.72,0,Parks Routine Maintenance 2018-19,Parks Routine Maintenance 2018-19,Grounds,391310,Construction Open Spaces Construction
South Lakeland District Council,http://opendatacommunities.org/id/district-council/south-lakeland,43524,Leisure and Wellbeing,Highways & Transport Services,http://opendatacommunities.org/def/concept/finance/sercop/objective/107,CONTINENTAL LANDSCAPES LTD,2108452,18/02/2019,83683,25.49,0,Parks Routine Maintenance 2018-19,Parks Routine Maintenance 2018-19,Grounds,391310,Construction Open Spaces Construction
South Lakeland District Council,http://opendatacommunities.org/id/district-council/south-lakeland,43524,Leisure and Wellbeing,Highways & Transport Services,http://opendatacommunities.org/def/concept/finance/sercop/objective/107,CONTINENTAL LANDSCAPES LTD,2108452,18/02/2019,83683,6.37,0,Parks Routine Maintenance 2018-19,Parks Routine Maintenance 2018-19,Grounds,391310,Construction Open Spaces Construction
South Lakeland District Council,http://opendatacommunities.org/id/district-council/south-lakeland,43524,Leisure and Wellbeing,Highways & Transport Services,http://opendatacommunities.org/def/concept/finance/sercop/objective/107,CONTINENTAL LANDSCAPES LTD,2108452,18/02/2019,83683,4.14,0,Parks Routine Maintenance 2018-19,Parks Routine Maintenance 2018-19,Grounds,391310,Construction Open Spaces Construction
South Lakeland District Council,http://opendatacommunities.org/id/district-council/south-lakeland,43524,Leisure and Wellbeing,Highways & Transport Services,http://opendatacommunities.org/def/concept/finance/sercop/objective/107,CONTINENTAL LANDSCAPES LTD,2108452,18/02/2019,83683,6.37,0,Parks Routine Maintenance 2018-19,Parks Routine Maintenance 2018-19,Grounds,391310,Construction Open Spaces Construction
South Lakeland District Council,http://opendatacommunities.org/id/district-council/south-lakeland,43524,Leisure and Wellbeing,Highways & Transport Services,http://opendatacommunities.org/def/concept/finance/sercop/objective/107,CONTINENTAL LANDSCAPES LTD,2108452,18/02/2019,83683,76.46,0,Parks Routine Maintenance 2018-19,Parks Routine Maintenance 2018-19,Grounds,391310,Construction Open Spaces Construction
South Lakeland District Council,http://opendatacommunities.org/id/district-council/south-lakeland,43524,Leisure and Wellbeing,Highways & Transport Services,http://opendatacommunities.org/def/concept/finance/sercop/objective/107,CONTINENTAL LANDSCAPES LTD,2108452,18/02/2019,83683,3.19,0,Parks Routine Maintenance 2018-19,Parks Routine Maintenance 2018-19,Grounds,391310,Construction Open Spaces Construction
South Lakeland District Council,http://opendatacommunities.org/id/district-council/south-lakeland,43524,Leisure and Wellbeing,Highways & Transport Services,http://opendatacommunities.org/def/concept/finance/sercop/objective/107,CONTINENTAL LANDSCAPES LTD,2108452,18/02/2019,83683,5.73,0,Parks Routine Maintenance 2018-19,Parks Routine Maintenance 2018-19,Grounds,391310,Construction Open Spaces Construction
South Lakeland District Council,http://opendatacommunities.org/id/district-council/south-lakeland,43524,Leisure and Wellbeing,Highways & Transport Services,http://opendatacommunities.org/def/concept/finance/sercop/objective/107,CONTINENTAL LANDSCAPES LTD,2108452,18/02/2019,83683,6.37,0,Parks Routine Maintenance 2018-19,Parks Routine Maintenance 2018-19,Grounds,391310,Construction Open Spaces Construction
South Lakeland District Council,http://opendatacommunities.org/id/district-council/south-lakeland,43524,Leisure and Wellbeing,Highways & Transport Services,http://opendatacommunities.org/def/concept/finance/sercop/objective/107,CONTINENTAL LANDSCAPES LTD,2108452,18/02/2019,83683,70.09,0,Parks Routine Maintenance 2018-19,Parks Routine Maintenance 2018-19,Grounds,391310,Construction Open Spaces Construction
South Lakeland District Council,http://opendatacommunities.org/id/district-council/south-lakeland,43524,Leisure and Wellbeing,Highways & Transport Services,http://opendatacommunities.org/def/concept/finance/sercop/objective/107,CONTINENTAL LANDSCAPES LTD,2108452,18/02/2019,83683,133.81,0,Parks Routine Maintenance 2018-19,Parks Routine Maintenance 2018-19,Grounds,391310,Construction Open Spaces Construction
South Lakeland District Council,http://opendatacommunities.org/id/district-council/south-lakeland,43524,Leisure and Wellbeing,Highways & Transport Services,http://opendatacommunities.org/def/concept/finance/sercop/objective/107,CONTINENTAL LANDSCAPES LTD,2108452,18/02/2019,83683,6.37,0,Parks Routine Maintenance 2018-19,Parks Routine Maintenance 2018-19,Grounds,391310,Construction Open Spaces Construction
South Lakeland District Council,http://opendatacommunities.org/id/district-council/south-lakeland,43524,Leisure and Wellbeing,Highways & Transport Services,http://opendatacommunities.org/def/concept/finance/sercop/objective/107,CONTINENTAL LANDSCAPES LTD,2108452,18/02/2019,83683,12.74,0,Parks Routine Maintenance 2018-19,Parks Routine Maintenance 2018-19,Grounds,391310,Construction Open Spaces Construction
South Lakeland District Council,http://opendatacommunities.org/id/district-council/south-lakeland,43524,Leisure and Wellbeing,Highways & Transport Services,http://opendatacommunities.org/def/concept/finance/sercop/objective/107,CONTINENTAL LANDSCAPES LTD,2108452,18/02/2019,83683,12.74,0,Parks Routine Maintenance 2018-19,Parks Routine Maintenance 2018-19,Grounds,391310,Construction Open Spaces Construction
South Lakeland District Council,http://opendatacommunities.org/id/district-council/south-lakeland,43524,Leisure and Wellbeing,Highways & Transport Services,http://opendatacommunities.org/def/concept/finance/sercop/objective/107,CONTINENTAL LANDSCAPES LTD,2108452,18/02/2019,83683,191.16,0,Parks Routine Maintenance 2018-19,Parks Routine Maintenance 2018-19,Grounds,391310,Construction Open Spaces Construction
South Lakeland District Council,http://opendatacommunities.org/id/district-council/south-lakeland,43524,Leisure and Wellbeing,Highways & Transport Services,http://opendatacommunities.org/def/concept/finance/sercop/objective/107,CONTINENTAL LANDSCAPES LTD,2108452,18/02/2019,83683,6.37,0,Parks Routine Maintenance 2018-19,Parks Routine Maintenance 2018-19,Grounds,391310,Construction Open Spaces Construction
South Lakeland District Council,http://opendatacommunities.org/id/district-council/south-lakeland,43524,Leisure and Wellbeing,Highways & Transport Services,http://opendatacommunities.org/def/concept/finance/sercop/objective/107,CONTINENTAL LANDSCAPES LTD,2108452,18/02/2019,83683,57.35,0,Parks Routine Maintenance 2018-19,Parks Routine Maintenance 2018-19,Grounds,391310,Construction Open Spaces Construction
South Lakeland District Council,http://opendatacommunities.org/id/district-council/south-lakeland,43524,Leisure and Wellbeing,Highways & Transport Services,http://opendatacommunities.org/def/concept/finance/sercop/objective/107,CONTINENTAL LANDSCAPES LTD,2108452,18/02/2019,83683,12.74,0,Parks Routine Maintenance 2018-19,Parks Routine Maintenance 2018-19,Grounds,391310,Construction Open Spaces Construction
South Lakeland District Council,http://opendatacommunities.org/id/district-council/south-lakeland,43524,Leisure and Wellbeing,Highways & Transport Services,http://opendatacommunities.org/def/concept/finance/sercop/objective/107,CONTINENTAL LANDSCAPES LTD,2108452,18/02/2019,83683,25.49,0,Parks Routine Maintenance 2018-19,Parks Routine Maintenance 2018-19,Grounds,391310,Construction Open Spaces Construction
South Lakeland District Council,http://opendatacommunities.org/id/district-council/south-lakeland,43524,Leisure and Wellbeing,Highways & Transport Services,http://opendatacommunities.org/def/concept/finance/sercop/objective/107,CONTINENTAL LANDSCAPES LTD,2108452,18/02/2019,83683,19.12,0,Parks Routine Maintenance 2018-19,Parks Routine Maintenance 2018-19,Grounds,391310,Construction Open Spaces Construction
South Lakeland District Council,http://opendatacommunities.org/id/district-council/south-lakeland,43524,Leisure and Wellbeing,Highways & Transport Services,http://opendatacommunities.org/def/concept/finance/sercop/objective/107,CONTINENTAL LANDSCAPES LTD,2108452,18/02/2019,83683,19.12,0,Parks Routine Maintenance 2018-19,Parks Routine Maintenance 2018-19,Grounds,391310,Construction Open Spaces Construction
South Lakeland District Council,http://opendatacommunities.org/id/district-council/south-lakeland,43524,Leisure and Wellbeing,Cultural Environmental Regulatory & Planning Services,http://opendatacommunities.org/def/concept/finance/sercop/objective/104,CONTINENTAL LANDSCAPES LTD,2108452,18/02/2019,83683,10195.1,0,Parks Routine Maintenance 2018-19,Parks Routine Maintenance 2018-19,Grounds,391310,Construction Open Spaces Construction
South Lakeland District Council,http://opendatacommunities.org/id/district-council/south-lakeland,43524,Leisure and Wellbeing,Cultural Environmental Regulatory & Planning Services,http://opendatacommunities.org/def/concept/finance/sercop/objective/104,CONTINENTAL LANDSCAPES LTD,2108452,18/02/2019,83683,25.49,0,Parks Routine Maintenance 2018-19,Parks Routine Maintenance 2018-19,Grounds,391310,Construction Open Spaces Construction
South Lakeland District Council,http://opendatacommunities.org/id/district-council/south-lakeland,43524,Leisure and Wellbeing,Cultural Environmental Regulatory & Planning Services,http://opendatacommunities.org/def/concept/finance/sercop/objective/104,CONTINENTAL LANDSCAPES LTD,2108452,18/02/2019,83683,49701.07,0,Parks Routine Maintenance 2018-19,Parks Routine Maintenance 2018-19,Grounds,391310,Construction Open Spaces Construction
South Lakeland District Council,http://opendatacommunities.org/id/district-council/south-lakeland,43524,Leisure and Wellbeing,Cultural Environmental Regulatory & Planning Services,http://opendatacommunities.org/def/concept/finance/sercop/objective/104,CONTINENTAL LANDSCAPES LTD,2108452,18/02/2019,83683,509.75,0,Parks Routine Maintenance 2018-19,Parks Routine Maintenance 2018-19,Grounds CCC Grass Verges,391310,Construction Open Spaces Construction
South Lakeland District Council,http://opendatacommunities.org/id/district-council/south-lakeland,43524,Leisure and Wellbeing,Cultural Environmental Regulatory & Planning Services,http://opendatacommunities.org/def/concept/finance/sercop/objective/104,CONTINENTAL LANDSCAPES LTD,2108452,18/02/2019,83683,1911.58,0,Parks Routine Maintenance 2018-19,Parks Routine Maintenance 2018-19,Grounds,391310,Construction Open Spaces Construction
South Lakeland District Council,http://opendatacommunities.org/id/district-council/south-lakeland,43524,Leisure and Wellbeing,Cultural Environmental Regulatory & Planning Services,http://opendatacommunities.org/def/concept/finance/sercop/objective/104,CONTINENTAL LANDSCAPES LTD,2108452,18/02/2019,83683,111.51,0,Parks Routine Maintenance 2018-19,Parks Routine Maintenance 2018-19,Grounds,391310,Construction Open Spaces Construction
South Lakeland District Council,http://opendatacommunities.org/id/district-council/south-lakeland,43524,Business Support Community Services,Cultural Environmental Regulatory & Planning Services,http://opendatacommunities.org/def/concept/finance/sercop/objective/104,Macdonald & Company Freelance Ltd,3882135,18/02/2019,83684,2218.5,0,Supply of Contract Worker for Planning,Supply of Contract Worker for Planning,Contract & Agency staff,261400,HR Temporary & Agency Staff
South Lakeland District Council,http://opendatacommunities.org/id/district-council/south-lakeland,43524,Business Support Community Services,Transport Planning Policy,http://opendatacommunities.org/def/concept/finance/sercop/objective/107,ARCO LIMITED,133804,04/02/2019,83685,74.55,0,Cleaning materials,Cleaning materials,Cleaning Supplies & Services,141100,Clothing Protective
South Lakeland District Council,http://opendatacommunities.org/id/district-council/south-lakeland,43524,Business Support Community Services,Cultural Environmental Regulatory & Planning Services,http://opendatacommunities.org/def/concept/finance/sercop/objective/104,ARCO LIMITED,133804,04/02/2019,83685,13.9,0,Cleaning materials,Cleaning materials,Job Consumables,141100,Clothing Protective
South Lakeland District Council,http://opendatacommunities.org/id/district-council/south-lakeland,43524,Business Support Community Services,Cultural Environmental Regulatory & Planning Services,http://opendatacommunities.org/def/concept/finance/sercop/objective/104,ARCO LIMITED,133804,04/02/2019,83685,322.47,0,Cleaning materials,Cleaning materials,Protective Clothing & Uniforms,141100,Clothing Protective
South Lakeland District Council,http://opendatacommunities.org/id/district-council/south-lakeland,43524,Business Support Community Services,Cultural Environmental Regulatory & Planning Services,http://opendatacommunities.org/def/concept/finance/sercop/objective/104,ARCO LIMITED,133804,04/02/2019,83686,90.4,0,Cleaning materials,Cleaning materials,Job Consumables,141100,Clothing Protective
South Lakeland District Council,http://opendatacommunities.org/id/district-council/south-lakeland,43524,Business Support Community Services,Cultural Environmental Regulatory & Planning Services,http://opendatacommunities.org/def/concept/finance/sercop/objective/104,ARCO LIMITED,133804,04/02/2019,83687,90.4,0,Cleaning materials,Cleaning materials,Job Consumables,141100,Clothing Protective
South Lakeland District Council,http://opendatacommunities.org/id/district-council/south-lakeland,43524,Business Support Community Services,Transport Planning Policy,http://opendatacommunities.org/def/concept/finance/sercop/objective/107,ARCO LIMITED,133804,04/02/2019,83688,23.88,0,Cleaning materials,Cleaning materials,Cleaning Supplies & Services,141100,Clothing Protective
South Lakeland District Council,http://opendatacommunities.org/id/district-council/south-lakeland,43524,Business Support Community Services,Cultural Environmental Regulatory & Planning Services,http://opendatacommunities.org/def/concept/finance/sercop/objective/104,ARCO LIMITED,133804,04/02/2019,83688,1.96,0,Cleaning materials,Cleaning materials,Equipment Furniture Materials,141100,Clothing Protective
South Lakeland District Council,http://opendatacommunities.org/id/district-council/south-lakeland,43524,Business Support Community Services,Cultural Environmental Regulatory & Planning Services,http://opendatacommunities.org/def/concept/finance/sercop/objective/104,ARCO LIMITED,133804,04/02/2019,83688,15.19,0,Cleaning materials,Cleaning materials,Job Consumables,141100,Clothing Protective
South Lakeland District Council,http://opendatacommunities.org/id/district-council/south-lakeland,43524,Business Support Community Services,Cultural Environmental Regulatory & Planning Services,http://opendatacommunities.org/def/concept/finance/sercop/objective/104,BRIAN ARMISTEAD LTD T/A SINKFALL RECYCLI,4133280,04/02/2019,83689,592.97,0,Green waste tipping - 2018/19,Green waste tipping - 2018/19,Tipping & Disposal Charges,391110,Construction Buildings Construction
South Lakeland District Council,http://opendatacommunities.org/id/district-council/south-lakeland,43524,Business Support Community Services,Cultural Environmental Regulatory & Planning Services,http://opendatacommunities.org/def/concept/finance/sercop/objective/104,ARCO LIMITED,133804,04/02/2019,83690,54,0,Cleaning materials,Cleaning materials,Equipment Furniture Materials,141100,Clothing Protective
South Lakeland District Council,http://opendatacommunities.org/id/district-council/south-lakeland,43524,Business Support Community Services,Transport Planning Policy,http://opendatacommunities.org/def/concept/finance/sercop/objective/107,ARCO LIMITED,133804,04/02/2019,83691,4.78,0,Cleaning materials,Cleaning materials,Cleaning Supplies & Services,141100,Clothing Protective
South Lakeland District Council,http://opendatacommunities.org/id/district-council/south-lakeland,43524,Business Support Community Services,Cultural Environmental Regulatory & Planning Services,http://opendatacommunities.org/def/concept/finance/sercop/objective/104,ARCO LIMITED,133804,04/02/2019,83691,8.6,0,Cleaning materials,Cleaning materials,Equipment Furniture Materials,141100,Clothing Protective
South Lakeland District Council,http://opendatacommunities.org/id/district-council/south-lakeland,43524,Business Support Community Services,Cultural Environmental Regulatory & Planning Services,http://opendatacommunities.org/def/concept/finance/sercop/objective/104,ARCO LIMITED,133804,04/02/2019,83692,274.85,0,Cleaning materials,Cleaning materials,Protective Clothing & Uniforms,141100,Clothing Protective
South Lakeland District Council,http://opendatacommunities.org/id/district-council/south-lakeland,43524,Business Support Community Services,Internal Trading Accounts,,COMPASS COMPONENTS,,04/02/2019,83693,225.41,0,Consumables 2018/19,Consumables 2018/19,Job Consumables,101400,Building General Materials
South Lakeland District Council,http://opendatacommunities.org/id/district-council/south-lakeland,43524,Business Support Community Services,Internal Trading Accounts,,TEAL PATENTS LTD,3212208,04/02/2019,83694,240.3,0,Handwash,Handwash,Transport-Repair & Maintenance,111100,Catering Equipment & Utensils
South Lakeland District Council,http://opendatacommunities.org/id/district-council/south-lakeland,43524,Business Support Community Services,Cultural Environmental Regulatory & Planning Services,http://opendatacommunities.org/def/concept/finance/sercop/objective/104,METCALFE BROS LTD,5899629,04/02/2019,83695,5202,0,Sweeper hire - 01/09/18 - 31/03/19,Sweeper hire - 01/09/18 - 31/03/19,Hired Services,381200,Vehicle Mgt Heavy Constr Equip Leasing
South Lakeland District Council,http://opendatacommunities.org/id/district-council/south-lakeland,43524,Business Support Community Services,Internal Trading Accounts,,TPS Preston,,04/02/2019,83696,14.87,0,Parts,Parts,Transport-Repair & Maintenance,381400,Vehicle Mgt Maintenance
South Lakeland District Council,http://opendatacommunities.org/id/district-council/south-lakeland,43524,Business Support Community Services,Internal Trading Accounts,,TAYLOR ENGINEERING & FABRICATIONS LTD,4989359,04/02/2019,83697,91.45,0,Parts,Parts,Transport-Uninsured Damage,391200,Construction Engineering
South Lakeland District Council,http://opendatacommunities.org/id/district-council/south-lakeland,43524,Business Support Community Services,Internal Trading Accounts,,DENNIS EAGLE LTD,3794455,06/02/2019,83698,24.76,0,Parts,Parts,Transport-Repair & Maintenance,381300,Vehicle Mgt Industrial
South Lakeland District Council,http://opendatacommunities.org/id/district-council/south-lakeland,43524,Business Support Community Services,Internal Trading Accounts,,EK MOTOR FACTORS LTD,838524,04/02/2019,83699,9.52,0,Parts,Parts,Transport-Repair & Maintenance,381400,Vehicle Mgt Maintenance
South Lakeland District Council,http://opendatacommunities.org/id/district-council/south-lakeland,43524,Business Support Community Services,Internal Trading Accounts,,EK MOTOR FACTORS LTD,838524,04/02/2019,83700,-7.14,0,Parts,Parts,Transport-Repair & Maintenance,381400,Vehicle Mgt Maintenance
South Lakeland District Council,http://opendatacommunities.org/id/district-council/south-lakeland,43524,Business Support Community Services,Internal Trading Accounts,,TPS Preston,,04/02/2019,83701,413.52,0,Parts,Parts,Transport-Repair & Maintenance,381400,Vehicle Mgt Maintenance
South Lakeland District Council,http://opendatacommunities.org/id/district-council/south-lakeland,43524,Business Support Community Services,Internal Trading Accounts,,TPS Preston,,04/02/2019,83702,141.68,0,Parts,Parts,Transport-Repair & Maintenance,381400,Vehicle Mgt Maintenance
South Lakeland District Council,http://opendatacommunities.org/id/district-council/south-lakeland,43524,Business Support Community Services,Internal Trading Accounts,,TPS Preston,,04/02/2019,83703,65.74,0,Parts,Parts,Transport-Repair & Maintenance,381400,Vehicle Mgt Maintenance
South Lakeland District Council,http://opendatacommunities.org/id/district-council/south-lakeland,43524,Business Support Community Services,Internal Trading Accounts,,GARWOOD EUROPE LTD,4333504,04/02/2019,83704,45.34,0,Switches,Switches,Transport-Repair & Maintenance,182011,Environment Waste Management Consumables
South Lakeland District Council,http://opendatacommunities.org/id/district-council/south-lakeland,43524,Business Support Community Services,Internal Trading Accounts,,EK MOTOR FACTORS LTD,838524,04/02/2019,83705,18.44,0,Parts,Parts,Transport-Repair & Maintenance,381400,Vehicle Mgt Maintenance
South Lakeland District Council,http://opendatacommunities.org/id/district-council/south-lakeland,43524,Business Support Community Services,Internal Trading Accounts,,TPS Preston,,04/02/2019,83706,46.92,0,Parts,Parts,Transport-Repair & Maintenance,381400,Vehicle Mgt Maintenance
South Lakeland District Council,http://opendatacommunities.org/id/district-council/south-lakeland,43524,Business Support Community Services,Internal Trading Accounts,,EK MOTOR FACTORS LTD,838524,04/02/2019,83707,22.19,0,Parts,Parts,Transport-Repair & Maintenance,381400,Vehicle Mgt Maintenance
South Lakeland District Council,http://opendatacommunities.org/id/district-council/south-lakeland,43524,Business Support Community Services,Internal Trading Accounts,,TPS Preston,,04/02/2019,83708,535.3,0,Parts,Parts,Transport-Repair & Maintenance,381400,Vehicle Mgt Maintenance
South Lakeland District Council,http://opendatacommunities.org/id/district-council/south-lakeland,43524,Business Support Community Services,Internal Trading Accounts,,Licence Bureau Ltd,4819897,04/02/2019,83709,123,0,Licence checks 2018/19,Licence checks 2018/19,Driving Licence Verify Fees,380000,Vehicle Management
South Lakeland District Council,http://opendatacommunities.org/id/district-council/south-lakeland,43524,Business Support Community Services,Internal Trading Accounts,,DENNIS EAGLE LTD,3794455,04/02/2019,83710,78.08,0,Parts,Parts,Transport-Repair & Maintenance,381300,Vehicle Mgt Industrial
South Lakeland District Council,http://opendatacommunities.org/id/district-council/south-lakeland,43524,Social Enterprise Admin,Highways & Transport Services,http://opendatacommunities.org/def/concept/finance/sercop/objective/107,ADECCO UK LIMITED,593232,20/02/2019,83711,462.33,0,Car Park Attendant,Car Park Attendant,Contract & Agency staff,261400,HR Temporary & Agency Staff
South Lakeland District Council,http://opendatacommunities.org/id/district-council/south-lakeland,43524,Environment and Housing,Housing Services,http://opendatacommunities.org/def/concept/finance/sercop/objective/108,ADECCO UK LIMITED,593232,18/02/2019,83712,531.67,0,agency work,agency work,Contract & Agency staff,261400,HR Temporary & Agency Staff
South Lakeland District Council,http://opendatacommunities.org/id/district-council/south-lakeland,43524,Development Implementation,Central Services,http://opendatacommunities.org/def/concept/finance/sercop/objective/102,THOMAS GRAHAM & SONS LTD,656879,06/02/2019,83713,1870.8,0,12 x Slim Jim Starter Pack (quote ref:,12 x Slim Jim Starter Pack (quote ref:,Equipment Furniture Materials,101400,Building General Materials
South Lakeland District Council,http://opendatacommunities.org/id/district-council/south-lakeland,43524,Development Implementation,Central Services,http://opendatacommunities.org/def/concept/finance/sercop/objective/102,THOMAS GRAHAM & SONS LTD,656879,06/02/2019,83714,935.4,0,6 x Slim Jim Starter Pack (quote ref:,6 x Slim Jim Starter Pack (quote ref:,Equipment Furniture Materials,101400,Building General Materials
South Lakeland District Council,http://opendatacommunities.org/id/district-council/south-lakeland,43524,Development Implementation,Central Services,http://opendatacommunities.org/def/concept/finance/sercop/objective/102,THOMAS GRAHAM & SONS LTD,656879,06/02/2019,83715,360,0,1 x Sebo Upright Vacuum Cleaner,1 x Sebo Upright Vacuum Cleaner,Equipment Furniture Materials,101400,Building General Materials
South Lakeland District Council,http://opendatacommunities.org/id/district-council/south-lakeland,43524,Development Implementation,Central Services,http://opendatacommunities.org/def/concept/finance/sercop/objective/102,THOMAS GRAHAM & SONS LTD,656879,20/02/2019,83716,33.03,0,1 x BB4501-1 Washroom Cleaner,1 x BB4501-1 Washroom Cleaner,Cleaning Supplies & Services,101400,Building General Materials
South Lakeland District Council,http://opendatacommunities.org/id/district-council/south-lakeland,43524,Kendal Town Hall,Cultural Environmental Regulatory & Planning Services,http://opendatacommunities.org/def/concept/finance/sercop/objective/104,THOMAS GRAHAM & SONS LTD,656879,06/02/2019,83717,148.91,0,Code: 99CW104,Code: 99CW104,Cleaning Supplies & Services,101400,Building General Materials
South Lakeland District Council,http://opendatacommunities.org/id/district-council/south-lakeland,43524,Development Implementation,Central Services,http://opendatacommunities.org/def/concept/finance/sercop/objective/102,THOMAS GRAHAM & SONS LTD,656879,06/02/2019,83718,556.23,0,Lemon Floor Gel - 2 boxes of 2,Lemon Floor Gel - 2 boxes of 2,Cleaning Supplies & Services,101400,Building General Materials
South Lakeland District Council,http://opendatacommunities.org/id/district-council/south-lakeland,43524,Kendal Town Hall,External Trading Accounts,,THOMAS GRAHAM & SONS LTD,656879,06/02/2019,83719,140.09,0,JANGRO AB101,JANGRO AB101,Cleaning Supplies & Services,101400,Building General Materials
South Lakeland District Council,http://opendatacommunities.org/id/district-council/south-lakeland,43524,Customer Services,Central Services,http://opendatacommunities.org/def/concept/finance/sercop/objective/102,SHRED-IT,4047194,06/02/2019,83720,415.25,0,REMOVAL OF CONFIDENTIAL WASTE,REMOVAL OF CONFIDENTIAL WASTE,Stationery/Office Supplies,279999,ICT Not Elsewhere Classified
South Lakeland District Council,http://opendatacommunities.org/id/district-council/south-lakeland,43524,Lake Wardens,Cultural Environmental Regulatory & Planning Services,http://opendatacommunities.org/def/concept/finance/sercop/objective/104,OFCOM,7753885,06/02/2019,83722,75,0,Coastal Station Radio (UK) Licence -,Coastal Station Radio (UK) Licence -,Boat Radio Expenses,202100,Financial Services Subscriptions
South Lakeland District Council,http://opendatacommunities.org/id/district-council/south-lakeland,43524,Democratic and Member Services,Central Services,http://opendatacommunities.org/def/concept/finance/sercop/objective/102,PENNINGTON PARISH COUNCIL,,06/02/2019,83723,500,0,Locality donation to fund mprovements,Locality donation to fund mprovements,Contributions to Organisations,908000,Public Bodies Council support services
South Lakeland District Council,http://opendatacommunities.org/id/district-council/south-lakeland,43524,Business Support Community Services,Housing Services,http://opendatacommunities.org/def/concept/finance/sercop/objective/108,SOUTH LAKES HOUSING RENT A/C,,04/02/2019,83726,182.5,0,Rent in advance ,Rent in advance ,Homelessness Prevention,191700,Facilities Property Management
South Lakeland District Council,http://opendatacommunities.org/id/district-council/south-lakeland,43524,Business Support Community Services,Cultural Environmental Regulatory & Planning Services,http://opendatacommunities.org/def/concept/finance/sercop/objective/104,CANNON HYGIENE LTD,1298292,06/02/2019,83731,2501.42,0,Clinical waste collections - 2018/19,Clinical waste collections - 2018/19,Clinincal Waste Disposal Costs,131011,Cleaning & Janitorial Cleaning Materials
South Lakeland District Council,http://opendatacommunities.org/id/district-council/south-lakeland,43524,Business Support Community Services,Cultural Environmental Regulatory & Planning Services,http://opendatacommunities.org/def/concept/finance/sercop/objective/104,MILNTHORPE KENNELS & CATTERY,8932302,06/02/2019,83732,2699.74,0,Stray dog kenneling fees 2018/19,Stray dog kenneling fees 2018/19,Kenneling Fees,181500,Environment Animal Services
South Lakeland District Council,http://opendatacommunities.org/id/district-council/south-lakeland,43524,Business Support Community Services,Internal Trading Accounts,,THOMAS GRAHAM & SONS LTD,656879,06/02/2019,83734,42.3,0,Pipes,Pipes,Equipment Furniture Materials,101400,Building General Materials
South Lakeland District Council,http://opendatacommunities.org/id/district-council/south-lakeland,43524,Business Support Community Services,Internal Trading Accounts,,M G D LTD,,06/02/2019,83735,35,0,MOTs 2018/19,MOTs 2018/19,MOT/Servicing Costs,381400,Vehicle Mgt Maintenance
South Lakeland District Council,http://opendatacommunities.org/id/district-council/south-lakeland,43524,Business Support Community Services,Transport Planning Policy,http://opendatacommunities.org/def/concept/finance/sercop/objective/107,ARCO LIMITED,133804,06/02/2019,83736,9.55,0,Cleaning materials,Cleaning materials,Cleaning Supplies & Services,141100,Clothing Protective
South Lakeland District Council,http://opendatacommunities.org/id/district-council/south-lakeland,43524,Business Support Community Services,Cultural Environmental Regulatory & Planning Services,http://opendatacommunities.org/def/concept/finance/sercop/objective/104,ARCO LIMITED,133804,06/02/2019,83736,30.38,0,Cleaning materials,Cleaning materials,Job Consumables,141100,Clothing Protective
South Lakeland District Council,http://opendatacommunities.org/id/district-council/south-lakeland,43524,Business Support Community Services,Cultural Environmental Regulatory & Planning Services,http://opendatacommunities.org/def/concept/finance/sercop/objective/104,ARCO LIMITED,133804,06/02/2019,83737,235.75,0,Cleaning materials,Cleaning materials,Protective Clothing & Uniforms,141100,Clothing Protective
South Lakeland District Council,http://opendatacommunities.org/id/district-council/south-lakeland,43524,Business Support Community Services,Transport Planning Policy,http://opendatacommunities.org/def/concept/finance/sercop/objective/107,ARCO LIMITED,133804,06/02/2019,83738,18.8,0,Cleaning materials,Cleaning materials,Cleaning Supplies & Services,141100,Clothing Protective
South Lakeland District Council,http://opendatacommunities.org/id/district-council/south-lakeland,43524,Business Support Community Services,Cultural Environmental Regulatory & Planning Services,http://opendatacommunities.org/def/concept/finance/sercop/objective/104,ARCO LIMITED,133804,06/02/2019,83738,16.64,0,Cleaning materials,Cleaning materials,Equipment Furniture Materials,141100,Clothing Protective
South Lakeland District Council,http://opendatacommunities.org/id/district-council/south-lakeland,43524,Business Support Community Services,Cultural Environmental Regulatory & Planning Services,http://opendatacommunities.org/def/concept/finance/sercop/objective/104,ARCO LIMITED,133804,06/02/2019,83738,6.25,0,Cleaning materials,Cleaning materials,Job Consumables,141100,Clothing Protective
South Lakeland District Council,http://opendatacommunities.org/id/district-council/south-lakeland,43524,Business Support Community Services,Cultural Environmental Regulatory & Planning Services,http://opendatacommunities.org/def/concept/finance/sercop/objective/104,ARCO LIMITED,133804,06/02/2019,83738,484.91,0,Cleaning materials,Cleaning materials,Protective Clothing & Uniforms,141100,Clothing Protective
South Lakeland District Council,http://opendatacommunities.org/id/district-council/south-lakeland,43524,Business Support Community Services,Highways & Transport Services,http://opendatacommunities.org/def/concept/finance/sercop/objective/107,ARCO LIMITED,133804,06/02/2019,83739,16.16,0,Cleaning materials,Cleaning materials,Protective Clothing & Uniforms,141100,Clothing Protective
South Lakeland District Council,http://opendatacommunities.org/id/district-council/south-lakeland,43524,Business Support Community Services,Internal Trading Accounts,,QPS PLASTIC LTD,,06/02/2019,83740,64.75,0,Cap,Cap,Transport-Repair & Maintenance,109999,Building Not Elsewhere Classified
South Lakeland District Council,http://opendatacommunities.org/id/district-council/south-lakeland,43524,Business Support Community Services,Cultural Environmental Regulatory & Planning Services,http://opendatacommunities.org/def/concept/finance/sercop/objective/104,GB Sign Solutions Ltd,9609330,06/02/2019,83741,76.2,0,Street nameplates,Street nameplates,Fixtures & Fittings,102400,Building Signage
South Lakeland District Council,http://opendatacommunities.org/id/district-council/south-lakeland,43524,Business Support Community Services,Internal Trading Accounts,,TPS Preston,,06/02/2019,83742,199,0,Parts,Parts,Transport-Repair & Maintenance,381400,Vehicle Mgt Maintenance
South Lakeland District Council,http://opendatacommunities.org/id/district-council/south-lakeland,43524,Business Support Community Services,Internal Trading Accounts,,EK MOTOR FACTORS LTD,838524,06/02/2019,83743,19,0,Parts,Parts,Vehicle - Tyres,381400,Vehicle Mgt Maintenance
South Lakeland District Council,http://opendatacommunities.org/id/district-council/south-lakeland,43524,Business Support Community Services,Internal Trading Accounts,,S J Bargh,532272,06/02/2019,83744,264.3,0,MOTs 2018/19 & vehicle cleaning,MOTs 2018/19 & vehicle cleaning,MOT/Servicing Costs,381400,Vehicle Mgt Maintenance
South Lakeland District Council,http://opendatacommunities.org/id/district-council/south-lakeland,43524,Business Support Community Services,Highways & Transport Services,http://opendatacommunities.org/def/concept/finance/sercop/objective/107,ARCO LIMITED,133804,06/02/2019,83745,37.16,0,Cleaning materials,Cleaning materials,Protective Clothing & Uniforms,141100,Clothing Protective
South Lakeland District Council,http://opendatacommunities.org/id/district-council/south-lakeland,43524,Business Support Community Services,Cultural Environmental Regulatory & Planning Services,http://opendatacommunities.org/def/concept/finance/sercop/objective/104,ARCO LIMITED,133804,06/02/2019,83746,40.42,0,Cleaning materials,Cleaning materials,Protective Clothing & Uniforms,141100,Clothing Protective
South Lakeland District Council,http://opendatacommunities.org/id/district-council/south-lakeland,43524,Business Support Community Services,Central Services,http://opendatacommunities.org/def/concept/finance/sercop/objective/102,INSTITUTE OF LICENSING (EVENTS) LTD,5710898,06/02/2019,83747,310,0,Zoo Licensing Course 13/03/18 KAP,Zoo Licensing Course 13/03/18 KAP,Training Costs,202100,Financial Services Subscriptions
South Lakeland District Council,http://opendatacommunities.org/id/district-council/south-lakeland,43524,Democratic and Member Services,Central Services,http://opendatacommunities.org/def/concept/finance/sercop/objective/102,LEVENS PARISH COUNCIL,,06/02/2019,83748,350,0,Locality donation for replacement of,Locality donation for replacement of,Contributions to Organisations,908000,Public Bodies Council support services
South Lakeland District Council,http://opendatacommunities.org/id/district-council/south-lakeland,43524,Leisure and Wellbeing,Highways & Transport Services,http://opendatacommunities.org/def/concept/finance/sercop/objective/107,AUTOPARTS (CUMBRIA) LTD,2579204,06/02/2019,83749,80.55,0,5 x insulating rubber boots 0-003-40,5 x insulating rubber boots 0-003-40,Equipment Furniture Materials,381500,Vehicle Mgt Parts
South Lakeland District Council,http://opendatacommunities.org/id/district-council/south-lakeland,43524,Leisure and Wellbeing,Cultural Environmental Regulatory & Planning Services,http://opendatacommunities.org/def/concept/finance/sercop/objective/104,ALLSTAR BUSINESS SOLUTIONS LTD (NCR),2631112,01/02/2019,83750,132.02,0,Parks fuel for April 2018 - March 2019,Parks fuel for April 2018 - March 2019,Fuel,381600,Vehicle Mgt Leasing
South Lakeland District Council,http://opendatacommunities.org/id/district-council/south-lakeland,43524,Leisure and Wellbeing,Cultural Environmental Regulatory & Planning Services,http://opendatacommunities.org/def/concept/finance/sercop/objective/104,J S Cleaning Services,,06/02/2019,83751,75,0,For weekly cleaning of chapel,For weekly cleaning of chapel,Cleaning Supplies & Services,131010,Cleaning & Janitorial Cleaning Materials
South Lakeland District Council,http://opendatacommunities.org/id/district-council/south-lakeland,43524,Cemeteries Office,Cultural Environmental Regulatory & Planning Services,http://opendatacommunities.org/def/concept/finance/sercop/objective/104,Streetmaster (South Wales) Ltd,6334612,11/02/2019,83752,652,0,1 off Dark green 14C40 Street tough,1 off Dark green 14C40 Street tough,Grounds Special,231700,Highways Street Furniture & Ironworks
South Lakeland District Council,http://opendatacommunities.org/id/district-council/south-lakeland,43524,Customer Services,Central Services,http://opendatacommunities.org/def/concept/finance/sercop/objective/102,STEVEN BARBER PHOTOGRAPHY LTD,6058535,06/02/2019,83753,70,0,EXTRA PHOTOGRAPHY,EXTRA PHOTOGRAPHY,Advertising,191100,Facilities Design & Photography
South Lakeland District Council,http://opendatacommunities.org/id/district-council/south-lakeland,43524,Revenues and Benefits,SLDC as Agent,,ROYAL MAIL GROUP PLC,,06/02/2019,83754,1238.97,0,2018-19 Postal Charges a/c 0198123013,2018-19 Postal Charges a/c 0198123013,General,301200,Mail Services� Postage
South Lakeland District Council,http://opendatacommunities.org/id/district-council/south-lakeland,43524,Revenues and Benefits,Central Services,http://opendatacommunities.org/def/concept/finance/sercop/objective/102,CAPITA BUSINESS SERVICES LTD,2299747,13/02/2019,83755,1390,0,Capita Year End Seminars,Capita Year End Seminars,Training Costs,261500,HR Training & Conferences
South Lakeland District Council,http://opendatacommunities.org/id/district-council/south-lakeland,43524,Human Resources,Central Services,http://opendatacommunities.org/def/concept/finance/sercop/objective/102,FORBES SOLICITORS,,06/02/2019,83756,812.5,0,Contract Review,Contract Review,Legal & Counsels Fees,281300,Legal Services Legal Opinion
South Lakeland District Council,http://opendatacommunities.org/id/district-council/south-lakeland,43524,Human Resources,Central Services,http://opendatacommunities.org/def/concept/finance/sercop/objective/102,FORBES SOLICITORS,,06/02/2019,83757,1558,0,Appeal against termination -DM,Appeal against termination -DM,Legal & Counsels Fees,281300,Legal Services Legal Opinion
South Lakeland District Council,http://opendatacommunities.org/id/district-council/south-lakeland,43524,Human Resources,Central Services,http://opendatacommunities.org/def/concept/finance/sercop/objective/102,Thompsons Solicitors,,06/02/2019,83758,500,0,Provision of Legal Services,Provision of Legal Services,Legal & Counsels Fees,261200,HR Professional & Advisory Services
South Lakeland District Council,http://opendatacommunities.org/id/district-council/south-lakeland,43524,Business Support Community Services,SLDC as Agent,,CUMBRIA COUNTY COUNCIL,,06/02/2019,83759,54,0,DBS Checks for Taxi Drivers,DBS Checks for Taxi Drivers,Criminal Records Bureau,908000,Public Bodies Council support services
South Lakeland District Council,http://opendatacommunities.org/id/district-council/south-lakeland,43524,Business Support Community Services,SLDC as Agent,,CUMBRIA COUNTY COUNCIL,,06/02/2019,83760,54,0,DBS Checks for Taxi Drivers,DBS Checks for Taxi Drivers,Criminal Records Bureau,908000,Public Bodies Council support services
South Lakeland District Council,http://opendatacommunities.org/id/district-council/south-lakeland,43524,Business Support Community Services,Housing Services,http://opendatacommunities.org/def/concept/finance/sercop/objective/108,Landlord,,06/02/2019,83763,400,0,Monthly rent ,Monthly rent ,Homelessness Prevention,250000,Housing
South Lakeland District Council,http://opendatacommunities.org/id/district-council/south-lakeland,43524,Financial Services,Central Services,http://opendatacommunities.org/def/concept/finance/sercop/objective/102,Halecroft Recruitment Limited,9118934,06/02/2019,83764,8000,0,2000 per wk x 8 ,2000 per wk x 8 ,Contract & Agency staff,261300,HR Recruitment & Assessment
South Lakeland District Council,http://opendatacommunities.org/id/district-council/south-lakeland,43524,Leisure and Wellbeing,Cultural Environmental Regulatory & Planning Services,http://opendatacommunities.org/def/concept/finance/sercop/objective/104,CONTINENTAL LANDSCAPES LTD,2108452,06/02/2019,83765,350,0,"Supply and plant one 16-18cm, 1.8m","Supply and plant one 16-18cm, 1.8m",Arboricultural Work,391310,Construction Open Spaces Construction
South Lakeland District Council,http://opendatacommunities.org/id/district-council/south-lakeland,43524,Development Strategy,Cultural Environmental Regulatory & Planning Services,http://opendatacommunities.org/def/concept/finance/sercop/objective/104,Name redacted,,06/02/2019,83766,1500,0,Conservation Officer support role,Conservation Officer support role,Contract & Agency staff,159999,Consultancy Not Elsewhere Classified
South Lakeland District Council,http://opendatacommunities.org/id/district-council/south-lakeland,43524,Business Support Community Services,Housing Services,http://opendatacommunities.org/def/concept/finance/sercop/objective/108,Ashberry Recruitment,7202591,06/02/2019,83767,544.17,0,Agency staff ,Agency staff ,Contract & Agency staff,261300,HR Recruitment & Assessment
South Lakeland District Council,http://opendatacommunities.org/id/district-council/south-lakeland,43524,Democratic Services,Central Services,http://opendatacommunities.org/def/concept/finance/sercop/objective/102,Sellick Partnership Group Ltd,4156002,06/02/2019,83768,1500,0,Locum Fees,Locum Fees,Contract & Agency staff,281300,Legal Services Legal Opinion
South Lakeland District Council,http://opendatacommunities.org/id/district-council/south-lakeland,43524,Policy & Partnerships,Central Services,http://opendatacommunities.org/def/concept/finance/sercop/objective/102,NATIONWIDE FIRE TRAINING LTD,5034855,11/02/2019,83769,170,0,Emergeny First Aid 31st Jan,Emergeny First Aid 31st Jan,Health and Safety,221100,Health & Safety� Maintenance
South Lakeland District Council,http://opendatacommunities.org/id/district-council/south-lakeland,43524,Business Support Community Services,Cultural Environmental Regulatory & Planning Services,http://opendatacommunities.org/def/concept/finance/sercop/objective/104,SALFORD CITY COUNCIL,,18/02/2019,83770,128.25,0,Checking of Structural Calculations,Checking of Structural Calculations,Consulting Engineers,908000,Public Bodies Council support services
South Lakeland District Council,http://opendatacommunities.org/id/district-council/south-lakeland,43524,Business Support Community Services,Internal Trading Accounts,,GARWOOD EUROPE LTD,4333504,06/02/2019,83771,104.74,0,Guard,Guard,Transport-Repair & Maintenance,182011,Environment Waste Management Consumables
South Lakeland District Council,http://opendatacommunities.org/id/district-council/south-lakeland,43524,Business Support Community Services,Internal Trading Accounts,,HYDRAIR TRUCK & TRAILER PARTS LTD,,06/02/2019,83772,132.48,0,Parts,Parts,Transport-Repair & Maintenance,381500,Vehicle Mgt Parts
South Lakeland District Council,http://opendatacommunities.org/id/district-council/south-lakeland,43524,Business Support Community Services,Internal Trading Accounts,,HYDRAIR TRUCK & TRAILER PARTS LTD,,06/02/2019,83773,11.28,0,Parts,Parts,Transport-Repair & Maintenance,381500,Vehicle Mgt Parts
South Lakeland District Council,http://opendatacommunities.org/id/district-council/south-lakeland,43524,Business Support Community Services,Cultural Environmental Regulatory & Planning Services,http://opendatacommunities.org/def/concept/finance/sercop/objective/104,GLASDON UK LTD,2160576,06/02/2019,83774,1467.45,0,Glasdon Streamline Jubilee� General,Glasdon Streamline Jubilee� General,Equipment Furniture Materials,109999,Building Not Elsewhere Classified
South Lakeland District Council,http://opendatacommunities.org/id/district-council/south-lakeland,43524,Business Support Community Services,Internal Trading Accounts,,Verizon Connect UK Ltd,5265904,06/02/2019,83775,32,0,Annual fee for 70 vehicles from 01/06/18,Annual fee for 70 vehicles from 01/06/18,Transport-Repair & Maintenance,361000,Public Transport Fleet Management
South Lakeland District Council,http://opendatacommunities.org/id/district-council/south-lakeland,43524,Business Support Community Services,Internal Trading Accounts,,Harry Park Tyres Ltd,8131208,06/02/2019,83776,30,0,Tyres,Tyres,Vehicle - Tyres,381500,Vehicle Mgt Parts
South Lakeland District Council,http://opendatacommunities.org/id/district-council/south-lakeland,43524,Business Support Community Services,Cultural Environmental Regulatory & Planning Services,http://opendatacommunities.org/def/concept/finance/sercop/objective/104,ARCO LIMITED,133804,06/02/2019,83777,551.75,0,Coats,Coats,Advertising,141100,Clothing Protective
South Lakeland District Council,http://opendatacommunities.org/id/district-council/south-lakeland,43524,Business Support Community Services,Internal Trading Accounts,,VOLVO GROUP UK LTD,2190944,06/02/2019,83778,139.03,0,Parts,Parts,Transport-Repair & Maintenance,381000,Vehicle Mgt Commercial
South Lakeland District Council,http://opendatacommunities.org/id/district-council/south-lakeland,43524,Business Support Community Services,Internal Trading Accounts,,FAUN ZOELLER (UK) LTD,751804,06/02/2019,83779,253.8,0,Repair SL210,Repair SL210,Transport-Repair & Maintenance,381400,Vehicle Mgt Maintenance
South Lakeland District Council,http://opendatacommunities.org/id/district-council/south-lakeland,43524,Policy & Partnerships,Central Services,http://opendatacommunities.org/def/concept/finance/sercop/objective/102,RIVERBANK HOSPITALITY CATERING,,18/02/2019,83780,31.5,0,Directors Interview ,Directors Interview ,Catering Supplies,111000,Catering Banquet & Catering
South Lakeland District Council,http://opendatacommunities.org/id/district-council/south-lakeland,43524,Revenues and Benefits,Central Services,http://opendatacommunities.org/def/concept/finance/sercop/objective/102,ALLPAY.NET LTD (NCR),6871069,01/02/2019,83781,250.2,0,2018 - 19 Allpay - Internet Payment /,2018 - 19 Allpay - Internet Payment /,Commission,209999,Financial Services Not Elsewhere Classif
South Lakeland District Council,http://opendatacommunities.org/id/district-council/south-lakeland,43524,Revenues and Benefits,Central Services,http://opendatacommunities.org/def/concept/finance/sercop/objective/102,ALLPAY.NET LTD (NCR),6871069,01/02/2019,83782,14.33,0,2018 - 19 Allpay - Internet Payment /,2018 - 19 Allpay - Internet Payment /,Commission,209999,Financial Services Not Elsewhere Classif
South Lakeland District Council,http://opendatacommunities.org/id/district-council/south-lakeland,43524,Revenues and Benefits,Central Services,http://opendatacommunities.org/def/concept/finance/sercop/objective/102,ALLPAY.NET LTD (NCR),6871069,01/02/2019,83783,669.46,0,2018 - 19 Allpay - Internet Payment /,2018 - 19 Allpay - Internet Payment /,Commission,209999,Financial Services Not Elsewhere Classif
South Lakeland District Council,http://opendatacommunities.org/id/district-council/south-lakeland,43524,Revenues and Benefits,Central Services,http://opendatacommunities.org/def/concept/finance/sercop/objective/102,ALLPAY.NET LTD (NCR),6871069,01/02/2019,83784,18.77,0,2018 - 19 Allpay - Internet Payment /,2018 - 19 Allpay - Internet Payment /,Commission,209999,Financial Services Not Elsewhere Classif
South Lakeland District Council,http://opendatacommunities.org/id/district-council/south-lakeland,43524,Revenues and Benefits,Central Services,http://opendatacommunities.org/def/concept/finance/sercop/objective/102,ALLPAY.NET LTD (NCR),6871069,01/02/2019,83785,10.85,0,2018 - 19 Allpay - Internet Payment /,2018 - 19 Allpay - Internet Payment /,Commission,209999,Financial Services Not Elsewhere Classif
South Lakeland District Council,http://opendatacommunities.org/id/district-council/south-lakeland,43524,Revenues and Benefits,Central Services,http://opendatacommunities.org/def/concept/finance/sercop/objective/102,ALLPAY.NET LTD (NCR),6871069,01/02/2019,83786,10.37,0,2018 - 19 Allpay - Internet Payment /,2018 - 19 Allpay - Internet Payment /,Commission,209999,Financial Services Not Elsewhere Classif
South Lakeland District Council,http://opendatacommunities.org/id/district-council/south-lakeland,43524,Revenues and Benefits,Central Services,http://opendatacommunities.org/def/concept/finance/sercop/objective/102,ALLPAY.NET LTD (NCR),6871069,01/02/2019,83787,21.2,0,2018 - 19 Allpay - Internet Payment /,2018 - 19 Allpay - Internet Payment /,Commission,209999,Financial Services Not Elsewhere Classif
South Lakeland District Council,http://opendatacommunities.org/id/district-council/south-lakeland,43524,Social Enterprise Admin,Highways & Transport Services,http://opendatacommunities.org/def/concept/finance/sercop/objective/107,ALLSTAR BUSINESS SOLUTIONS LTD (NCR),2631112,01/02/2019,83788,361.53,0,Fuel for CEO vans up to 31 March 2019,Fuel for CEO vans up to 31 March 2019,Fuel,381600,Vehicle Mgt Leasing
South Lakeland District Council,http://opendatacommunities.org/id/district-council/south-lakeland,43524,Social Enterprise Admin,Cultural Environmental Regulatory & Planning Services,http://opendatacommunities.org/def/concept/finance/sercop/objective/104,ALLSTAR BUSINESS SOLUTIONS LTD (NCR),2631112,01/02/2019,83788,205.84,0,Fuel for CEO vans up to 31 March 2019,Fuel for CEO vans up to 31 March 2019,Fuel,381600,Vehicle Mgt Leasing
South Lakeland District Council,http://opendatacommunities.org/id/district-council/south-lakeland,43524,Social Enterprise Admin,Highways & Transport Services,http://opendatacommunities.org/def/concept/finance/sercop/objective/107,PATROL,,11/02/2019,83789,417.9,0,Charges for Traffic Penalty Tribunal,Charges for Traffic Penalty Tribunal,Brokers & Bureau Fees,192214,Facilities Security Street Wardens
South Lakeland District Council,http://opendatacommunities.org/id/district-council/south-lakeland,43524,Social Enterprise Admin,Highways & Transport Services,http://opendatacommunities.org/def/concept/finance/sercop/objective/107,METRIC GROUP LIMITED,2560839,06/02/2019,83790,735,0,Web hosting and web tariff editor for,Web hosting and web tariff editor for,Fixed Plant & Machinery Maint,359999,Street & Traffic Not Elsewhere Classifie
South Lakeland District Council,http://opendatacommunities.org/id/district-council/south-lakeland,43524,Revenues and Benefits,Central Services,http://opendatacommunities.org/def/concept/finance/sercop/objective/102,ALLPAY.NET LTD (NCR),6871069,01/02/2019,83791,21.54,0,2018 - 19 Allpay - Internet Payment /,2018 - 19 Allpay - Internet Payment /,Commission,209999,Financial Services Not Elsewhere Classif
South Lakeland District Council,http://opendatacommunities.org/id/district-council/south-lakeland,43524,Financial Services,Non-Service Payments,,BUSY BEES BENEFITS LTD,6758298,06/02/2019,83792,1133,0,child care vouchers,child care vouchers,General,202100,Financial Services Subscriptions
South Lakeland District Council,http://opendatacommunities.org/id/district-council/south-lakeland,43524,Leisure and Wellbeing,Highways & Transport Services,http://opendatacommunities.org/def/concept/finance/sercop/objective/107,AUTOPARTS (CUMBRIA) LTD,2579204,18/02/2019,83793,123.31,0,1 x 20L mineral oil,1 x 20L mineral oil,Equipment Furniture Materials,381500,Vehicle Mgt Parts
South Lakeland District Council,http://opendatacommunities.org/id/district-council/south-lakeland,43524,Leisure and Wellbeing,Cultural Environmental Regulatory & Planning Services,http://opendatacommunities.org/def/concept/finance/sercop/objective/104,AUTOPARTS (CUMBRIA) LTD,2579204,18/02/2019,83793,98.95,0,1 x 20L mineral oil,1 x 20L mineral oil,Transport-Repair & Maintenance,381500,Vehicle Mgt Parts
South Lakeland District Council,http://opendatacommunities.org/id/district-council/south-lakeland,43524,Leisure and Wellbeing,Cultural Environmental Regulatory & Planning Services,http://opendatacommunities.org/def/concept/finance/sercop/objective/104,AUTOPARTS (CUMBRIA) LTD,2579204,18/02/2019,83793,80.55,0,1 x 20L mineral oil,1 x 20L mineral oil,Equipment Furniture Materials,381500,Vehicle Mgt Parts
South Lakeland District Council,http://opendatacommunities.org/id/district-council/south-lakeland,43524,Financial Services,Central Services,http://opendatacommunities.org/def/concept/finance/sercop/objective/102,BUSY BEES BENEFITS LTD,6758298,06/02/2019,83794,39.66,0,child care service charge,child care service charge,Voluntary Deduction Fees,202100,Financial Services Subscriptions
South Lakeland District Council,http://opendatacommunities.org/id/district-council/south-lakeland,43524,Community & Housing Group,Housing Services,http://opendatacommunities.org/def/concept/finance/sercop/objective/108,COPELAND BOROUGH COUNCIL,,06/02/2019,83795,8960,0,Rural Housing Needs Study,Rural Housing Needs Study,Other Consultants,908000,Public Bodies Council support services
South Lakeland District Council,http://opendatacommunities.org/id/district-council/south-lakeland,43524,Human Resources,Central Services,http://opendatacommunities.org/def/concept/finance/sercop/objective/102,HFX LIMITED,8137794,06/02/2019,83796,5148.93,0,HFX System Mainteance Support Contract,HFX System Mainteance Support Contract,Software Maintenance,261200,HR Professional & Advisory Services
South Lakeland District Council,http://opendatacommunities.org/id/district-council/south-lakeland,43524,Business Support Community Services,Housing Services,http://opendatacommunities.org/def/concept/finance/sercop/objective/108,Lakeside Taxis,,06/02/2019,83797,55,0,Taxi ,Taxi ,Homelessness Prevention,361600,Public Transport Taxi Services Home to S
South Lakeland District Council,http://opendatacommunities.org/id/district-council/south-lakeland,43524,Environment and Housing,Housing Services,http://opendatacommunities.org/def/concept/finance/sercop/objective/108,CASTLE ALARMS 1981 LTD,9231500,11/02/2019,83800,844,0,Replacing cameras  and cleaning,Replacing cameras  and cleaning,Fixtures & Fittings,192212,Facilities Security Equipment
South Lakeland District Council,http://opendatacommunities.org/id/district-council/south-lakeland,43524,Leisure and Wellbeing,Cultural Environmental Regulatory & Planning Services,http://opendatacommunities.org/def/concept/finance/sercop/objective/104,Nortech Radio Communications,11653525,06/02/2019,83801,146.99,0,helical aerials for Icom M87,helical aerials for Icom M87,Boat Radio Expenses,101100,Building Electrical
South Lakeland District Council,http://opendatacommunities.org/id/district-council/south-lakeland,43524,Democratic and Member Services,Cultural Environmental Regulatory & Planning Services,http://opendatacommunities.org/def/concept/finance/sercop/objective/104,ULVERSTON TOWN COUNCIL,,06/02/2019,83803,100,0,locality donation to fund the,locality donation to fund the,Contributions to Organisations,908000,Public Bodies Council support services
South Lakeland District Council,http://opendatacommunities.org/id/district-council/south-lakeland,43524,Environment and Housing,Housing Services,http://opendatacommunities.org/def/concept/finance/sercop/objective/108,Homes For Ulverston CLT Ltd,,06/02/2019,83806,1200,0,Grant application approved,Grant application approved,Other Consultants,250000,Housing
South Lakeland District Council,http://opendatacommunities.org/id/district-council/south-lakeland,43524,Leisure and Wellbeing,Cultural Environmental Regulatory & Planning Services,http://opendatacommunities.org/def/concept/finance/sercop/objective/104,Nortech Radio Communications,11653525,06/02/2019,83809,168.99,0,HYTERA TM610 VHF 2 WAY RADIO,HYTERA TM610 VHF 2 WAY RADIO,Boat Radio Expenses,101100,Building Electrical
South Lakeland District Council,http://opendatacommunities.org/id/district-council/south-lakeland,43524,Policy & Partnerships,Cultural Environmental Regulatory & Planning Services,http://opendatacommunities.org/def/concept/finance/sercop/objective/104,Lakes Arts Festivals Ltd,8320981,06/02/2019,83810,2415.4,0,Grant contribution to Comic Arts Event,Grant contribution to Comic Arts Event,Grants & Contribut to Vol Orga,291000,Arts & Leisure Services Events
South Lakeland District Council,http://opendatacommunities.org/id/district-council/south-lakeland,43524,Business Support Community Services,Cultural Environmental Regulatory & Planning Services,http://opendatacommunities.org/def/concept/finance/sercop/objective/104,ALLSTAR BUSINESS SOLUTIONS LTD (NCR),2631112,01/02/2019,83811,6652.53,0,Fuel to 31/1,Fuel to 31/1,Fuel,381600,Vehicle Mgt Leasing
South Lakeland District Council,http://opendatacommunities.org/id/district-council/south-lakeland,43524,Business Support Community Services,Cultural Environmental Regulatory & Planning Services,http://opendatacommunities.org/def/concept/finance/sercop/objective/104,ALLSTAR BUSINESS SOLUTIONS LTD (NCR),2631112,01/02/2019,83811,15416.93,0,Fuel to 31/1,Fuel to 31/1,Fuel,381600,Vehicle Mgt Leasing
South Lakeland District Council,http://opendatacommunities.org/id/district-council/south-lakeland,43524,Business Support Community Services,Internal Trading Accounts,,TAYLOR ENGINEERING & FABRICATIONS LTD,4989359,06/02/2019,83812,405.39,0,Parts,Parts,Transport-Uninsured Damage,391200,Construction Engineering
South Lakeland District Council,http://opendatacommunities.org/id/district-council/south-lakeland,43524,Business Support Community Services,Cultural Environmental Regulatory & Planning Services,http://opendatacommunities.org/def/concept/finance/sercop/objective/104,ARCO LIMITED,133804,06/02/2019,83813,15.98,0,Cleaning materials,Cleaning materials,Protective Clothing & Uniforms,141100,Clothing Protective
South Lakeland District Council,http://opendatacommunities.org/id/district-council/south-lakeland,43524,Business Support Community Services,Internal Trading Accounts,,Dundee Tyres Ltd T/A Tyrebin,6949335,06/02/2019,83814,190.6,0,Disposals,Disposals,Vehicle - Tyres,182012,Environment Waste Management Recycling
South Lakeland District Council,http://opendatacommunities.org/id/district-council/south-lakeland,43524,Business Support Community Services,Cultural Environmental Regulatory & Planning Services,http://opendatacommunities.org/def/concept/finance/sercop/objective/104,ARCO LIMITED,133804,06/02/2019,83815,36,0,Cleaning materials,Cleaning materials,Protective Clothing & Uniforms,141100,Clothing Protective
South Lakeland District Council,http://opendatacommunities.org/id/district-council/south-lakeland,43524,Social Enterprise Admin,Culture and Related Serv,http://opendatacommunities.org/def/concept/finance/sercop/objective/104,Landscape Engineering Ltd,,06/02/2019,83816,20913.66,0,"Paths, drainage and landscape works to","Paths, drainage and landscape works to",Purchase of Plant Machinery,391300,Construction Open Spaces
South Lakeland District Council,http://opendatacommunities.org/id/district-council/south-lakeland,43524,ICT Group,Central Services,http://opendatacommunities.org/def/concept/finance/sercop/objective/102,BRITISH TELECOMMUNICATIONS PLC,1800000,06/02/2019,83817,16.65,0,Line Rental for Mintworks 01539 735120,Line Rental for Mintworks 01539 735120,Telephones-Rentals,279999,ICT Not Elsewhere Classified
South Lakeland District Council,http://opendatacommunities.org/id/district-council/south-lakeland,43524,Development Implementation,Transport,http://opendatacommunities.org/def/concept/finance/sercop/objective/107,Toman Paving Ltd,8348521,06/02/2019,83818,20207.53,0,"Car Park Works at Buxton Place,","Car Park Works at Buxton Place,",Contract payments,391300,Construction Open Spaces
South Lakeland District Council,http://opendatacommunities.org/id/district-council/south-lakeland,43524,Development Implementation,SLDC as Agent,,Cactus Creative Ltd,4198363,06/02/2019,83819,1500,0,Production of stock photography for,Production of stock photography for,General,191000,Facilities Advertising
South Lakeland District Council,http://opendatacommunities.org/id/district-council/south-lakeland,43524,Development Implementation,Cultural Environmental Regulatory & Planning Services,http://opendatacommunities.org/def/concept/finance/sercop/objective/104,Verse Group Ltd,6994365,06/02/2019,83820,190,0,1 year website hosting for Explore and,1 year website hosting for Explore and,Economic Development Fund,271515,ICT Website Development
South Lakeland District Council,http://opendatacommunities.org/id/district-council/south-lakeland,43524,Social Enterprise Admin,Cultural Environmental Regulatory & Planning Services,http://opendatacommunities.org/def/concept/finance/sercop/objective/104,NEWSQUEST MEDIA GROUP LTD,3102566,11/02/2019,83823,135,0,PUBLIC NOTICES FOR PLANNING 1 APRIL - 31,PUBLIC NOTICES FOR PLANNING 1 APRIL - 31,Advertising,191000,Facilities Advertising
South Lakeland District Council,http://opendatacommunities.org/id/district-council/south-lakeland,43524,Social Enterprise Admin,Cultural Environmental Regulatory & Planning Services,http://opendatacommunities.org/def/concept/finance/sercop/objective/104,NEWSQUEST MEDIA GROUP LTD,3102566,11/02/2019,83824,148.12,0,PUBLIC NOTICES FOR PLANNING 1 APRIL - 31,PUBLIC NOTICES FOR PLANNING 1 APRIL - 31,Advertising,191000,Facilities Advertising
South Lakeland District Council,http://opendatacommunities.org/id/district-council/south-lakeland,43524,Business Support Community Services,Central Services,http://opendatacommunities.org/def/concept/finance/sercop/objective/102,WaterSense Ltd,,11/02/2019,83825,3176.25,0,Risk Assessments of Private Water,Risk Assessments of Private Water,Contract & Agency staff,182030,Environment Water Assessment & Treatment
South Lakeland District Council,http://opendatacommunities.org/id/district-council/south-lakeland,43524,Development Implementation,Central Services,http://opendatacommunities.org/def/concept/finance/sercop/objective/102,J S Cleaning Services,,11/02/2019,83826,416,0,Cleaner for SLDC,Cleaner for SLDC,Contract & Agency staff,131010,Cleaning & Janitorial Cleaning Materials
South Lakeland District Council,http://opendatacommunities.org/id/district-council/south-lakeland,43524,ICT Group,Central Services,http://opendatacommunities.org/def/concept/finance/sercop/objective/102,BRITISH TELECOMMUNICATIONS PLC (DD),,01/02/2019,83827,56.03,0,Kendal Town Council phone line,Kendal Town Council phone line,Telephones-Rentals,279999,ICT Not Elsewhere Classified
South Lakeland District Council,http://opendatacommunities.org/id/district-council/south-lakeland,43524,Development Implementation,Cultural Environmental Regulatory & Planning Services,http://opendatacommunities.org/def/concept/finance/sercop/objective/104,WiFi Spark Ltd,,11/02/2019,83830,402.18,0,Kendal Town Centre Wifi Maintenance,Kendal Town Centre Wifi Maintenance,Other Consultants,271800,ICT Telecommunications Mobile
South Lakeland District Council,http://opendatacommunities.org/id/district-council/south-lakeland,43524,Business Support Community Services,Cultural Environmental Regulatory & Planning Services,http://opendatacommunities.org/def/concept/finance/sercop/objective/104,Park Avenue,,11/02/2019,83831,888,0,AGENCY PLANNING OFFICER,AGENCY PLANNING OFFICER,Contract & Agency staff,150000,Consultancy
South Lakeland District Council,http://opendatacommunities.org/id/district-council/south-lakeland,43524,Social Enterprise Admin,Central Services,http://opendatacommunities.org/def/concept/finance/sercop/objective/102,WOOF'S OF SEDBERGH,,11/02/2019,83833,390,0,MINI BUS SITE VISITS FOR MEMBERS RE,MINI BUS SITE VISITS FOR MEMBERS RE,Contract Hire Operating Lease,361300,Public Transport Passenger Transport
South Lakeland District Council,http://opendatacommunities.org/id/district-council/south-lakeland,43524,Democratic and Member Services,Cultural Environmental Regulatory & Planning Services,http://opendatacommunities.org/def/concept/finance/sercop/objective/104,HAWKSHEAD PARISH COUNCIL,,11/02/2019,83834,1000,0,Locality donation towards Hawkshead,Locality donation towards Hawkshead,Contributions to Organisations,908000,Public Bodies Council support services
South Lakeland District Council,http://opendatacommunities.org/id/district-council/south-lakeland,43524,Business Support Community Services,Cultural Environmental Regulatory & Planning Services,http://opendatacommunities.org/def/concept/finance/sercop/objective/104,Vivid Resourcing,,11/02/2019,83835,88,0,SUPPLY OF CONTRACT WORKER FOR PLANNING,SUPPLY OF CONTRACT WORKER FOR PLANNING,Contract & Agency staff,150000,Consultancy
South Lakeland District Council,http://opendatacommunities.org/id/district-council/south-lakeland,43524,Development Strategy,Cultural Environmental Regulatory & Planning Services,http://opendatacommunities.org/def/concept/finance/sercop/objective/104,Programme Officer Solutions Ltd,,11/02/2019,83836,375,0,Programme Officer work for AONB and DM,Programme Officer work for AONB and DM,Other Consultants,261413,HR- Temporary Staff- Professional
South Lakeland District Council,http://opendatacommunities.org/id/district-council/south-lakeland,43524,ICT Group,Cultural Environmental Regulatory & Planning Services,http://opendatacommunities.org/def/concept/finance/sercop/objective/104,BRITISH TELECOMMUNICATIONS PLC (DD),,01/02/2019,83837,43.3,0,"Line Rental for 01539 735120, the","Line Rental for 01539 735120, the",Telephones-Rentals,279999,ICT Not Elsewhere Classified
South Lakeland District Council,http://opendatacommunities.org/id/district-council/south-lakeland,43524,Leisure and Wellbeing,Cultural Environmental Regulatory & Planning Services,http://opendatacommunities.org/def/concept/finance/sercop/objective/104,ARCO LIMITED,133804,25/02/2019,83838,42.07,0,Wall mounted ashtray inc carriage charge,Wall mounted ashtray inc carriage charge,Cleaning Supplies & Services,141100,Clothing Protective
South Lakeland District Council,http://opendatacommunities.org/id/district-council/south-lakeland,43524,Development Implementation,Central Services,http://opendatacommunities.org/def/concept/finance/sercop/objective/102,ENVIROFIRST LTD,5999123,11/02/2019,83844,153.36,0,Lowther Street Wheelie Bin Mixed,Lowther Street Wheelie Bin Mixed,Allocation Refuse Costs,182012,Environment Waste Management Recycling
South Lakeland District Council,http://opendatacommunities.org/id/district-council/south-lakeland,43524,Electoral Services,Central Services,http://opendatacommunities.org/def/concept/finance/sercop/objective/102,SHAW & SONS LTD,176653,18/02/2019,83845,123.2,0,"95 x PO sundries packs, 32 x conversion","95 x PO sundries packs, 32 x conversion",Election Costs,191600,Facilities Printing
South Lakeland District Council,http://opendatacommunities.org/id/district-council/south-lakeland,43524,Business Support Community Services,Cultural Environmental Regulatory & Planning Services,http://opendatacommunities.org/def/concept/finance/sercop/objective/104,Macdonald & Company Freelance Ltd,3882135,11/02/2019,83849,2209.5,0,Supply of Contract Worker for Planning,Supply of Contract Worker for Planning,Contract & Agency staff,261400,HR Temporary & Agency Staff
South Lakeland District Council,http://opendatacommunities.org/id/district-council/south-lakeland,43524,Business Support Community Services,Cultural Environmental Regulatory & Planning Services,http://opendatacommunities.org/def/concept/finance/sercop/objective/104,Enevo UK Ltd,9347391,13/02/2019,83850,416,0,Monthly subscriptions 2018/19,Monthly subscriptions 2018/19,Equipment Furniture Materials,261517,ICT-Consultancy
South Lakeland District Council,http://opendatacommunities.org/id/district-council/south-lakeland,43524,Development Implementation,SLDC as Agent,,PS BUSINESS MATTERS,8147185,11/02/2019,83851,2000,0,Kendal Futures Programme - Project,Kendal Futures Programme - Project,General,151900,Consultancy Management
South Lakeland District Council,http://opendatacommunities.org/id/district-council/south-lakeland,43524,Development Implementation,Cultural Environmental Regulatory & Planning Services,http://opendatacommunities.org/def/concept/finance/sercop/objective/104,PS BUSINESS MATTERS,8147185,11/02/2019,83852,4200,0,Consultancy Work to assist with the,Consultancy Work to assist with the,Other Consultants,151900,Consultancy Management
South Lakeland District Council,http://opendatacommunities.org/id/district-council/south-lakeland,43524,Business Support Community Services,Internal Trading Accounts,,HYDRAIR TRUCK & TRAILER PARTS LTD,,11/02/2019,83853,56,0,Parts,Parts,Transport-Repair & Maintenance,381500,Vehicle Mgt Parts
South Lakeland District Council,http://opendatacommunities.org/id/district-council/south-lakeland,43524,Business Support Community Services,Cultural Environmental Regulatory & Planning Services,http://opendatacommunities.org/def/concept/finance/sercop/objective/104,ARCO LIMITED,133804,11/02/2019,83854,52.98,0,Cleaning materials,Cleaning materials,Protective Clothing & Uniforms,141100,Clothing Protective
South Lakeland District Council,http://opendatacommunities.org/id/district-council/south-lakeland,43524,Business Support Community Services,Cultural Environmental Regulatory & Planning Services,http://opendatacommunities.org/def/concept/finance/sercop/objective/104,ARCO LIMITED,133804,11/02/2019,83855,60.3,0,Cleaning materials,Cleaning materials,Protective Clothing & Uniforms,141100,Clothing Protective
South Lakeland District Council,http://opendatacommunities.org/id/district-council/south-lakeland,43524,Business Support Community Services,Cultural Environmental Regulatory & Planning Services,http://opendatacommunities.org/def/concept/finance/sercop/objective/104,ARCO LIMITED,133804,11/02/2019,83856,52.98,0,Cleaning materials,Cleaning materials,Protective Clothing & Uniforms,141100,Clothing Protective
South Lakeland District Council,http://opendatacommunities.org/id/district-council/south-lakeland,43524,Business Support Community Services,Cultural Environmental Regulatory & Planning Services,http://opendatacommunities.org/def/concept/finance/sercop/objective/104,ARCO LIMITED,133804,11/02/2019,83857,52.98,0,Cleaning materials,Cleaning materials,Protective Clothing & Uniforms,141100,Clothing Protective
South Lakeland District Council,http://opendatacommunities.org/id/district-council/south-lakeland,43524,Business Support Community Services,Transport Planning Policy,http://opendatacommunities.org/def/concept/finance/sercop/objective/107,ARCO LIMITED,133804,11/02/2019,83858,5.1,0,Cleaning materials,Cleaning materials,Cleaning Supplies & Services,141100,Clothing Protective
South Lakeland District Council,http://opendatacommunities.org/id/district-council/south-lakeland,43524,Business Support Community Services,Cultural Environmental Regulatory & Planning Services,http://opendatacommunities.org/def/concept/finance/sercop/objective/104,ARCO LIMITED,133804,11/02/2019,83859,52.98,0,Cleaning materials,Cleaning materials,Protective Clothing & Uniforms,141100,Clothing Protective
South Lakeland District Council,http://opendatacommunities.org/id/district-council/south-lakeland,43524,Business Support Community Services,Cultural Environmental Regulatory & Planning Services,http://opendatacommunities.org/def/concept/finance/sercop/objective/104,ARCO LIMITED,133804,11/02/2019,83860,52.98,0,Cleaning materials,Cleaning materials,Protective Clothing & Uniforms,141100,Clothing Protective
South Lakeland District Council,http://opendatacommunities.org/id/district-council/south-lakeland,43524,Business Support Community Services,Cultural Environmental Regulatory & Planning Services,http://opendatacommunities.org/def/concept/finance/sercop/objective/104,ARCO LIMITED,133804,11/02/2019,83861,52.98,0,Cleaning materials,Cleaning materials,Protective Clothing & Uniforms,141100,Clothing Protective
South Lakeland District Council,http://opendatacommunities.org/id/district-council/south-lakeland,43524,Business Support Community Services,Cultural Environmental Regulatory & Planning Services,http://opendatacommunities.org/def/concept/finance/sercop/objective/104,ARCO LIMITED,133804,11/02/2019,83862,70.64,0,Cleaning materials,Cleaning materials,Protective Clothing & Uniforms,141100,Clothing Protective
South Lakeland District Council,http://opendatacommunities.org/id/district-council/south-lakeland,43524,Business Support Community Services,Internal Trading Accounts,,QPS PLASTIC LTD,,11/02/2019,83863,289.75,0,End cap,End cap,Transport-Repair & Maintenance,109999,Building Not Elsewhere Classified
South Lakeland District Council,http://opendatacommunities.org/id/district-council/south-lakeland,43524,Business Support Community Services,Internal Trading Accounts,,LANCASHIRE DAF,,11/02/2019,83864,14,0,Parts,Parts,Transport-Repair & Maintenance,381400,Vehicle Mgt Maintenance
South Lakeland District Council,http://opendatacommunities.org/id/district-council/south-lakeland,43524,Business Support Community Services,Internal Trading Accounts,,LANCASHIRE DAF,,11/02/2019,83865,5.18,0,Parts,Parts,Transport-Repair & Maintenance,381400,Vehicle Mgt Maintenance
South Lakeland District Council,http://opendatacommunities.org/id/district-council/south-lakeland,43524,Business Support Community Services,Internal Trading Accounts,,LANCASHIRE DAF,,11/02/2019,83866,72.27,0,Parts,Parts,Transport-Repair & Maintenance,381400,Vehicle Mgt Maintenance
South Lakeland District Council,http://opendatacommunities.org/id/district-council/south-lakeland,43524,Business Support Community Services,Internal Trading Accounts,,LANCASHIRE DAF,,11/02/2019,83867,108.32,0,Parts,Parts,Transport-Repair & Maintenance,381400,Vehicle Mgt Maintenance
South Lakeland District Council,http://opendatacommunities.org/id/district-council/south-lakeland,43524,Business Support Community Services,Internal Trading Accounts,,LANCASHIRE DAF,,11/02/2019,83868,386.37,0,Parts,Parts,Transport-Repair & Maintenance,381400,Vehicle Mgt Maintenance
South Lakeland District Council,http://opendatacommunities.org/id/district-council/south-lakeland,43524,Business Support Community Services,Internal Trading Accounts,,LANCASHIRE DAF,,11/02/2019,83869,98.69,0,Parts,Parts,Transport-Repair & Maintenance,381400,Vehicle Mgt Maintenance
South Lakeland District Council,http://opendatacommunities.org/id/district-council/south-lakeland,43524,Business Support Community Services,Cultural Environmental Regulatory & Planning Services,http://opendatacommunities.org/def/concept/finance/sercop/objective/104,ARCO LIMITED,133804,11/02/2019,83870,13.52,0,Cleaning materials,Cleaning materials,Job Consumables,141100,Clothing Protective
South Lakeland District Council,http://opendatacommunities.org/id/district-council/south-lakeland,43524,Business Support Community Services,Internal Trading Accounts,,LANCASHIRE DAF,,11/02/2019,83871,-104.61,0,Parts,Parts,Transport-Repair & Maintenance,381400,Vehicle Mgt Maintenance
South Lakeland District Council,http://opendatacommunities.org/id/district-council/south-lakeland,43524,Business Support Community Services,Cultural Environmental Regulatory & Planning Services,http://opendatacommunities.org/def/concept/finance/sercop/objective/104,The Oyster Partnership,5020374,18/02/2019,83873,1221.35,0,Agency staff Planning,Agency staff Planning,Contract & Agency staff,261300,HR Recruitment & Assessment
South Lakeland District Council,http://opendatacommunities.org/id/district-council/south-lakeland,43524,Development Management,Cultural Environmental Regulatory & Planning Services,http://opendatacommunities.org/def/concept/finance/sercop/objective/104,The Oyster Partnership,5020374,18/02/2019,83874,1901.25,0,AGENCY STAFF,AGENCY STAFF,Contract & Agency staff,261300,HR Recruitment & Assessment
South Lakeland District Council,http://opendatacommunities.org/id/district-council/south-lakeland,43524,Business Support Community Services,Cultural Environmental Regulatory & Planning Services,http://opendatacommunities.org/def/concept/finance/sercop/objective/104,The Oyster Partnership,5020374,18/02/2019,83875,2800,0,Agency staff Planning,Agency staff Planning,Contract & Agency staff,261300,HR Recruitment & Assessment
South Lakeland District Council,http://opendatacommunities.org/id/district-council/south-lakeland,43524,Development Implementation,Cultural Environmental Regulatory & Planning Services,http://opendatacommunities.org/def/concept/finance/sercop/objective/104,The Landscape Partnership Ltd,,11/02/2019,83876,591,0,Kendal Flood Risk Management Scheme -,Kendal Flood Risk Management Scheme -,Other Consultants,152200,Consultancy Technical & Feasibility
South Lakeland District Council,http://opendatacommunities.org/id/district-council/south-lakeland,43524,Development Implementation,Transport,http://opendatacommunities.org/def/concept/finance/sercop/objective/107,LAMBERT SMITH HAMPTON GROUP,2521225,11/02/2019,83877,2453,0,"Car Park - Resurfacing Works (Grasmere,","Car Park - Resurfacing Works (Grasmere,",Contract payments,999999,Unclassifiable
South Lakeland District Council,http://opendatacommunities.org/id/district-council/south-lakeland,43524,Development Implementation,Culture and Related Serv,http://opendatacommunities.org/def/concept/finance/sercop/objective/104,LAMBERT SMITH HAMPTON GROUP,2521225,11/02/2019,83878,618.75,0,Braithwaite Fold Caravan Park -,Braithwaite Fold Caravan Park -,Contract payments,999999,Unclassifiable
South Lakeland District Council,http://opendatacommunities.org/id/district-council/south-lakeland,43524,Development Implementation,Cultural Environmental Regulatory & Planning Services,http://opendatacommunities.org/def/concept/finance/sercop/objective/104,Name redacted,,11/02/2019,83879,1571.15,0,Project Management Officer for,Project Management Officer for,Other Consultants,151000,Consultancy Business
South Lakeland District Council,http://opendatacommunities.org/id/district-council/south-lakeland,43524,Business Support Community Services,Internal Trading Accounts,,RIBBLESDALE AUTO ELECTRICS 1992 LTD,2732686,11/02/2019,83880,6.34,0,Parts,Parts,Transport-Repair & Maintenance,381500,Vehicle Mgt Parts
South Lakeland District Council,http://opendatacommunities.org/id/district-council/south-lakeland,43524,Business Support Community Services,Internal Trading Accounts,,RIBBLESDALE AUTO ELECTRICS 1992 LTD,2732686,11/02/2019,83881,31.7,0,Parts,Parts,Transport-Repair & Maintenance,381500,Vehicle Mgt Parts
South Lakeland District Council,http://opendatacommunities.org/id/district-council/south-lakeland,43524,Printing Section,Central Services,http://opendatacommunities.org/def/concept/finance/sercop/objective/102,Konica Minolta Bus Solutions (UK) Ltd,,11/02/2019,83885,40.41,0,Click Charges for Kendal Market Office,Click Charges for Kendal Market Office,Photocopier Rentals,192000,Facilities Reprographics
South Lakeland District Council,http://opendatacommunities.org/id/district-council/south-lakeland,43524,Development Implementation,Cultural Environmental Regulatory & Planning Services,http://opendatacommunities.org/def/concept/finance/sercop/objective/104,LRM Security Ltd,,11/02/2019,83886,133.6,0,Key Holding,Key Holding,Security Services,192213,Facilities Security Manned Guarding
South Lakeland District Council,http://opendatacommunities.org/id/district-council/south-lakeland,43524,Development Implementation,Central Services,http://opendatacommunities.org/def/concept/finance/sercop/objective/102,LAMBERT SMITH HAMPTON GROUP,2521225,11/02/2019,83887,2500,0,SLDC Energy Efficiency Modifications,SLDC Energy Efficiency Modifications,Contract payments,999999,Unclassifiable
South Lakeland District Council,http://opendatacommunities.org/id/district-council/south-lakeland,43524,Financial Services,Non-Service Payments,,COMPUTERSHARE VOUCHER SERVICES LTD,4968447,11/02/2019,83888,832.93,0,child care vouchers,child care vouchers,General,202100,Financial Services Subscriptions
South Lakeland District Council,http://opendatacommunities.org/id/district-council/south-lakeland,43524,Environment and Housing,Housing Services,http://opendatacommunities.org/def/concept/finance/sercop/objective/108,ADECCO UK LIMITED,593232,13/02/2019,83889,547.66,0,agency work,agency work,Contract & Agency staff,261400,HR Temporary & Agency Staff
South Lakeland District Council,http://opendatacommunities.org/id/district-council/south-lakeland,43524,Development Implementation,Central Services,http://opendatacommunities.org/def/concept/finance/sercop/objective/102,ADECCO UK LIMITED,593232,13/02/2019,83890,285,0,Cleaner for SLDC  - April,Cleaner for SLDC  - April,Contract & Agency staff,261400,HR Temporary & Agency Staff
South Lakeland District Council,http://opendatacommunities.org/id/district-council/south-lakeland,43524,Social Enterprise Admin,Highways & Transport Services,http://opendatacommunities.org/def/concept/finance/sercop/objective/107,ADECCO UK LIMITED,593232,13/02/2019,83891,420.3,0,Car Park Attendant,Car Park Attendant,Contract & Agency staff,261400,HR Temporary & Agency Staff
South Lakeland District Council,http://opendatacommunities.org/id/district-council/south-lakeland,43524,Policy & Partnerships,Central Services,http://opendatacommunities.org/def/concept/finance/sercop/objective/102,ADECCO UK LIMITED,593232,11/02/2019,83892,465.81,0,Temporary Coroporate Support Assistant,Temporary Coroporate Support Assistant,Contract & Agency staff,261400,HR Temporary & Agency Staff
South Lakeland District Council,http://opendatacommunities.org/id/district-council/south-lakeland,43524,Development Implementation,Central Services,http://opendatacommunities.org/def/concept/finance/sercop/objective/102,ADECCO UK LIMITED,593232,13/02/2019,83893,14.25,0,Cleaner for SLDC - April,Cleaner for SLDC - April,Contract & Agency staff,261400,HR Temporary & Agency Staff
South Lakeland District Council,http://opendatacommunities.org/id/district-council/south-lakeland,43524,Human Resources,Central Services,http://opendatacommunities.org/def/concept/finance/sercop/objective/102,MIDLAND SOFTWARE LTD,1852206,11/02/2019,83894,492.54,0,Annual Charge - BOE Professional Bundle,Annual Charge - BOE Professional Bundle,Software Maintenance,271600,ICT Software Customised & Bespoke
South Lakeland District Council,http://opendatacommunities.org/id/district-council/south-lakeland,43524,Democratic Services,Central Services,http://opendatacommunities.org/def/concept/finance/sercop/objective/102,The Networking People (Northwest) LTD,,20/02/2019,83895,398.1,0,Renewal (co-term) of 8x5 UTM Forticare,Renewal (co-term) of 8x5 UTM Forticare,Software Maintenance,270000,Information Communications Technology
South Lakeland District Council,http://opendatacommunities.org/id/district-council/south-lakeland,43524,Environment and Housing,Housing Services,http://opendatacommunities.org/def/concept/finance/sercop/objective/108,James Andrews Recruitment Solutions,6834852,18/02/2019,83896,1475.25,0,Agency worker for Community-led Housing,Agency worker for Community-led Housing,Contract & Agency staff,261400,HR Temporary & Agency Staff
South Lakeland District Council,http://opendatacommunities.org/id/district-council/south-lakeland,43524,Business Support Community Services,Internal Trading Accounts,,TPS Preston,,13/02/2019,83897,87.28,0,Parts,Parts,Transport-Repair & Maintenance,381400,Vehicle Mgt Maintenance
South Lakeland District Council,http://opendatacommunities.org/id/district-council/south-lakeland,43524,Business Support Community Services,Internal Trading Accounts,,LANCASHIRE DAF,,13/02/2019,83898,275,0,Parts,Parts,Transport-Repair & Maintenance,381400,Vehicle Mgt Maintenance
South Lakeland District Council,http://opendatacommunities.org/id/district-council/south-lakeland,43524,Business Support Community Services,Internal Trading Accounts,,HAKO MACHINES LIMITED,1414225,13/02/2019,83899,205.68,0,Repair SL195,Repair SL195,Transport-Uninsured Damage,131000,Cleaning & Janitorial Cleaning Materials
South Lakeland District Council,http://opendatacommunities.org/id/district-council/south-lakeland,43524,Business Support Community Services,Internal Trading Accounts,,AINSWORTH'S GARAGE,,13/02/2019,83900,195,0,Call outs,Call outs,Vehicle - Tyres,381400,Vehicle Mgt Maintenance
South Lakeland District Council,http://opendatacommunities.org/id/district-council/south-lakeland,43524,Business Support Community Services,Internal Trading Accounts,,TPS Preston,,13/02/2019,83901,94.03,0,Parts,Parts,Transport-Repair & Maintenance,381400,Vehicle Mgt Maintenance
South Lakeland District Council,http://opendatacommunities.org/id/district-council/south-lakeland,43524,Business Support Community Services,Internal Trading Accounts,,TPS Preston,,13/02/2019,83902,126.08,0,Parts,Parts,Transport-Repair & Maintenance,381400,Vehicle Mgt Maintenance
South Lakeland District Council,http://opendatacommunities.org/id/district-council/south-lakeland,43524,Business Support Community Services,Internal Trading Accounts,,TPS Preston,,13/02/2019,83903,34.69,0,Parts,Parts,Transport-Repair & Maintenance,381400,Vehicle Mgt Maintenance
South Lakeland District Council,http://opendatacommunities.org/id/district-council/south-lakeland,43524,Business Support Community Services,Internal Trading Accounts,,HYDRAIR TRUCK & TRAILER PARTS LTD,,13/02/2019,83904,333.8,0,Parts,Parts,Transport-Repair & Maintenance,381500,Vehicle Mgt Parts
South Lakeland District Council,http://opendatacommunities.org/id/district-council/south-lakeland,43524,Business Support Community Services,Internal Trading Accounts,,TPS Preston,,13/02/2019,83905,24.32,0,Parts,Parts,Transport-Repair & Maintenance,381400,Vehicle Mgt Maintenance
South Lakeland District Council,http://opendatacommunities.org/id/district-council/south-lakeland,43524,Business Support Community Services,Internal Trading Accounts,,DENNIS EAGLE LTD,3794455,13/02/2019,83906,370.35,0,Parts,Parts,Transport-Repair & Maintenance,381300,Vehicle Mgt Industrial
South Lakeland District Council,http://opendatacommunities.org/id/district-council/south-lakeland,43524,Business Support Community Services,Internal Trading Accounts,,EK MOTOR FACTORS LTD,838524,13/02/2019,83907,9.63,0,Parts,Parts,Transport-Repair & Maintenance,381400,Vehicle Mgt Maintenance
South Lakeland District Council,http://opendatacommunities.org/id/district-council/south-lakeland,43524,Business Support Community Services,Internal Trading Accounts,,S J Bargh,532272,13/02/2019,83908,286.3,0,MOTs 2018/19 & vehicle cleaning,MOTs 2018/19 & vehicle cleaning,MOT/Servicing Costs,381400,Vehicle Mgt Maintenance
South Lakeland District Council,http://opendatacommunities.org/id/district-council/south-lakeland,43524,Business Support Community Services,Internal Trading Accounts,,DENNIS EAGLE LTD,3794455,13/02/2019,83909,213.3,0,Parts,Parts,Transport-Repair & Maintenance,381300,Vehicle Mgt Industrial
South Lakeland District Council,http://opendatacommunities.org/id/district-council/south-lakeland,43524,Business Support Community Services,Internal Trading Accounts,,HYDRAIR TRUCK & TRAILER PARTS LTD,,13/02/2019,83910,126.82,0,Parts,Parts,Transport-Uninsured Damage,381500,Vehicle Mgt Parts
South Lakeland District Council,http://opendatacommunities.org/id/district-council/south-lakeland,43524,Business Support Community Services,Internal Trading Accounts,,HYDRAIR TRUCK & TRAILER PARTS LTD,,13/02/2019,83911,126.82,0,Parts,Parts,Transport-Repair & Maintenance,381500,Vehicle Mgt Parts
South Lakeland District Council,http://opendatacommunities.org/id/district-council/south-lakeland,43524,Business Support Community Services,Internal Trading Accounts,,Harry Park Tyres Ltd,8131208,13/02/2019,83912,37.5,0,Tyres,Tyres,Vehicle - Tyres,381500,Vehicle Mgt Parts
South Lakeland District Council,http://opendatacommunities.org/id/district-council/south-lakeland,43524,Business Support Community Services,Cultural Environmental Regulatory & Planning Services,http://opendatacommunities.org/def/concept/finance/sercop/objective/104,LANCASTER TRAINING SERVICES LTD,1447612,13/02/2019,83913,900,0,Training 2018/19 (GWK),Training 2018/19 (GWK),Training Costs,261500,HR Training & Conferences
South Lakeland District Council,http://opendatacommunities.org/id/district-council/south-lakeland,43524,Business Support Community Services,Cultural Environmental Regulatory & Planning Services,http://opendatacommunities.org/def/concept/finance/sercop/objective/104,Masterstaff Limited,2777593,13/02/2019,83914,2330.32,0,Agency staff,Agency staff,Contract & Agency staff,261300,HR Recruitment & Assessment
South Lakeland District Council,http://opendatacommunities.org/id/district-council/south-lakeland,43524,Business Support Community Services,Cultural Environmental Regulatory & Planning Services,http://opendatacommunities.org/def/concept/finance/sercop/objective/104,BRIAN ARMISTEAD LTD T/A SINKFALL RECYCLI,4133280,13/02/2019,83915,652.31,0,Green waste tipping - 2018/19,Green waste tipping - 2018/19,Tipping & Disposal Charges,391110,Construction Buildings Construction
South Lakeland District Council,http://opendatacommunities.org/id/district-council/south-lakeland,43524,Business Support Community Services,Internal Trading Accounts,,VOLVO GROUP UK LTD,2190944,13/02/2019,83916,124.32,0,Parts,Parts,Transport-Repair & Maintenance,381000,Vehicle Mgt Commercial
South Lakeland District Council,http://opendatacommunities.org/id/district-council/south-lakeland,43524,Business Support Community Services,Cultural Environmental Regulatory & Planning Services,http://opendatacommunities.org/def/concept/finance/sercop/objective/104,EPIC Media Group Ltd,4914098,13/02/2019,83917,1373,0,Vehicle curtains,Vehicle curtains,Advertising,191010,Facilities Advertising Promo & Recruit
South Lakeland District Council,http://opendatacommunities.org/id/district-council/south-lakeland,43524,Business Support Community Services,Central Services,http://opendatacommunities.org/def/concept/finance/sercop/objective/102,GATES TRAVEL SERVICE,,18/02/2019,83918,169.4,0,Oxenholme to Birminghaam Training Event,Oxenholme to Birminghaam Training Event,Training Costs,261600,HR Travel & Subsistence
South Lakeland District Council,http://opendatacommunities.org/id/district-council/south-lakeland,43524,Business Support Community Services,Housing Services,http://opendatacommunities.org/def/concept/finance/sercop/objective/108,Ashberry Recruitment,7202591,18/02/2019,83919,291.07,0,Agency staff at Town View Fields,Agency staff at Town View Fields,Contract & Agency staff,261300,HR Recruitment & Assessment
South Lakeland District Council,http://opendatacommunities.org/id/district-council/south-lakeland,43524,Electoral Services,Central Services,http://opendatacommunities.org/def/concept/finance/sercop/objective/102,CFH Docmail Ltd,1716891,13/02/2019,83921,696.23,0,Printing costs,Printing costs,Printing,300000,Mail Services
South Lakeland District Council,http://opendatacommunities.org/id/district-council/south-lakeland,43524,Electoral Services,Central Services,http://opendatacommunities.org/def/concept/finance/sercop/objective/102,CFH Docmail Ltd,1716891,13/02/2019,83922,3.76,0,Printing costs,Printing costs,Printing,300000,Mail Services
South Lakeland District Council,http://opendatacommunities.org/id/district-council/south-lakeland,43524,Human Resources,Central Services,http://opendatacommunities.org/def/concept/finance/sercop/objective/102,CUMBRIA COUNTY COUNCIL,,13/02/2019,83923,-36,0,DBS check,DBS check,Legal & Counsels Fees,908000,Public Bodies Council support services
South Lakeland District Council,http://opendatacommunities.org/id/district-council/south-lakeland,43524,Human Resources,Central Services,http://opendatacommunities.org/def/concept/finance/sercop/objective/102,CUMBRIA COUNTY COUNCIL,,13/02/2019,83924,54,0,Enhanced check (no lists),Enhanced check (no lists),Criminal Records Bureau,908000,Public Bodies Council support services
South Lakeland District Council,http://opendatacommunities.org/id/district-council/south-lakeland,43524,Social Enterprise Admin,Cultural Environmental Regulatory & Planning Services,http://opendatacommunities.org/def/concept/finance/sercop/objective/104,NEWSQUEST MEDIA GROUP LTD,3102566,18/02/2019,83926,402.04,0,PUBLIC NOTICES FOR PLANNING 1 APRIL - 31,PUBLIC NOTICES FOR PLANNING 1 APRIL - 31,Advertising,191000,Facilities Advertising
South Lakeland District Council,http://opendatacommunities.org/id/district-council/south-lakeland,43524,Social Enterprise Admin,Cultural Environmental Regulatory & Planning Services,http://opendatacommunities.org/def/concept/finance/sercop/objective/104,NEWSQUEST MEDIA GROUP LTD,3102566,18/02/2019,83927,285.66,0,PUBLIC NOTICES FOR PLANNING 1 APRIL - 31,PUBLIC NOTICES FOR PLANNING 1 APRIL - 31,Advertising,191000,Facilities Advertising
South Lakeland District Council,http://opendatacommunities.org/id/district-council/south-lakeland,43524,Revenues and Benefits,Central Services,http://opendatacommunities.org/def/concept/finance/sercop/objective/102,HER MAJESTY'S COURTS & TRIBUNAL SERVICE,,13/02/2019,83928,13,0,2018-19 C Tax Liability Orders,2018-19 C Tax Liability Orders,Court Costs,908001,Public Bodies Other Public Bodies
South Lakeland District Council,http://opendatacommunities.org/id/district-council/south-lakeland,43524,Revenues and Benefits,Central Services,http://opendatacommunities.org/def/concept/finance/sercop/objective/102,HER MAJESTY'S COURTS & TRIBUNAL SERVICE,,13/02/2019,83928,105.5,0,2018-19 C Tax Liability Orders,2018-19 C Tax Liability Orders,Court Costs,908001,Public Bodies Other Public Bodies
South Lakeland District Council,http://opendatacommunities.org/id/district-council/south-lakeland,43524,Leisure and Wellbeing,Cultural Environmental Regulatory & Planning Services,http://opendatacommunities.org/def/concept/finance/sercop/objective/104,DENIS FOXALL,,13/02/2019,83929,170,0,250 x 14mm bow shackles,250 x 14mm bow shackles,Navigational Systems,190000,Facilities & Management Services
South Lakeland District Council,http://opendatacommunities.org/id/district-council/south-lakeland,43524,Democratic Services,Central Services,http://opendatacommunities.org/def/concept/finance/sercop/objective/102,St John's Chambers,,13/02/2019,83930,10000,0,Kirkby Moor Wind Farm,Kirkby Moor Wind Farm,Legal & Counsels Fees,281200,Legal Services General Support
South Lakeland District Council,http://opendatacommunities.org/id/district-council/south-lakeland,43524,Revenues and Benefits,Central Services,http://opendatacommunities.org/def/concept/finance/sercop/objective/102,ROYAL MAIL GROUP PLC,,13/02/2019,83931,45.15,0,2018-19 Postal Charges a/c 0055114000,2018-19 Postal Charges a/c 0055114000,Postages,301200,Mail Services� Postage
South Lakeland District Council,http://opendatacommunities.org/id/district-council/south-lakeland,43524,Revenues and Benefits,SLDC as Agent,,ROYAL MAIL GROUP PLC,,13/02/2019,83932,1998.11,0,2018-19 Postal Charges a/c 0198123013,2018-19 Postal Charges a/c 0198123013,General,301200,Mail Services� Postage
South Lakeland District Council,http://opendatacommunities.org/id/district-council/south-lakeland,43524,ICT Group,Central Services,http://opendatacommunities.org/def/concept/finance/sercop/objective/102,DAISY COMMUNICATIONS LTD,4145329,20/02/2019,83935,364.36,0,Daisy Line Rentals,Daisy Line Rentals,Telephones-Rentals,271700,ICT Telecommunications Fixed
South Lakeland District Council,http://opendatacommunities.org/id/district-council/south-lakeland,43524,ICT Group,Central Services,http://opendatacommunities.org/def/concept/finance/sercop/objective/102,DAISY COMMUNICATIONS LTD,4145329,20/02/2019,83935,65.96,0,Daisy Line Rentals,Daisy Line Rentals,Telephones-Calls,271700,ICT Telecommunications Fixed
South Lakeland District Council,http://opendatacommunities.org/id/district-council/south-lakeland,43524,Business Support Community Services,Cultural Environmental Regulatory & Planning Services,http://opendatacommunities.org/def/concept/finance/sercop/objective/104,LAKELAND SUPPLIES,,18/02/2019,83937,40.88,0,Fixtures & fittings,Fixtures & fittings,Fixtures & Fittings,101610,Building Hand Tools
South Lakeland District Council,http://opendatacommunities.org/id/district-council/south-lakeland,43524,Business Support Community Services,Cultural Environmental Regulatory & Planning Services,http://opendatacommunities.org/def/concept/finance/sercop/objective/104,LAKELAND SUPPLIES,,18/02/2019,83938,96.16,0,Fixtures & fittings,Fixtures & fittings,Fixtures & Fittings,101610,Building Hand Tools
South Lakeland District Council,http://opendatacommunities.org/id/district-council/south-lakeland,43524,Business Support Community Services,Internal Trading Accounts,,EK MOTOR FACTORS LTD,838524,18/02/2019,83939,26.63,0,Parts,Parts,Transport-Repair & Maintenance,381400,Vehicle Mgt Maintenance
South Lakeland District Council,http://opendatacommunities.org/id/district-council/south-lakeland,43524,Business Support Community Services,Internal Trading Accounts,,EK MOTOR FACTORS LTD,838524,18/02/2019,83940,82.88,0,Parts,Parts,Transport-Repair & Maintenance,381400,Vehicle Mgt Maintenance
South Lakeland District Council,http://opendatacommunities.org/id/district-council/south-lakeland,43524,Business Support Community Services,Cultural Environmental Regulatory & Planning Services,http://opendatacommunities.org/def/concept/finance/sercop/objective/104,LANCASTER TRAINING SERVICES LTD,1447612,18/02/2019,83941,295,0,Training 2018/19 (GWK),Training 2018/19 (GWK),Training Costs,261500,HR Training & Conferences
South Lakeland District Council,http://opendatacommunities.org/id/district-council/south-lakeland,43524,Business Support Community Services,Cultural Environmental Regulatory & Planning Services,http://opendatacommunities.org/def/concept/finance/sercop/objective/104,ARCO LIMITED,133804,18/02/2019,83942,135.6,0,Cleaning materials,Cleaning materials,Job Consumables,141100,Clothing Protective
South Lakeland District Council,http://opendatacommunities.org/id/district-council/south-lakeland,43524,Business Support Community Services,Internal Trading Accounts,,LANCASHIRE DAF,,18/02/2019,83943,118.37,0,Parts,Parts,Transport-Repair & Maintenance,381400,Vehicle Mgt Maintenance
South Lakeland District Council,http://opendatacommunities.org/id/district-council/south-lakeland,43524,Business Support Community Services,Internal Trading Accounts,,LANCASHIRE DAF,,18/02/2019,83944,195,0,Parts,Parts,Transport-Repair & Maintenance,381400,Vehicle Mgt Maintenance
South Lakeland District Council,http://opendatacommunities.org/id/district-council/south-lakeland,43524,Business Support Community Services,Internal Trading Accounts,,LANCASHIRE DAF,,18/02/2019,83945,61.83,0,Parts,Parts,Transport-Repair & Maintenance,381400,Vehicle Mgt Maintenance
South Lakeland District Council,http://opendatacommunities.org/id/district-council/south-lakeland,43524,Business Support Community Services,Internal Trading Accounts,,LANCASHIRE DAF,,18/02/2019,83946,585,0,Parts,Parts,Transport-Repair & Maintenance,381400,Vehicle Mgt Maintenance
South Lakeland District Council,http://opendatacommunities.org/id/district-council/south-lakeland,43524,Community & Housing Group,Housing Services,http://opendatacommunities.org/def/concept/finance/sercop/objective/108,GROWING CONCERNS LTD,,13/02/2019,83953,1034.97,0,For Handy Person Service 2018/19,For Handy Person Service 2018/19,Handyperson,391200,Construction Engineering
South Lakeland District Council,http://opendatacommunities.org/id/district-council/south-lakeland,43524,Development Implementation,Central Services,http://opendatacommunities.org/def/concept/finance/sercop/objective/102,HEATONS MBI,,18/02/2019,83954,140,0,1 x Task Chair - Phoenix Havana - M207HA,1 x Task Chair - Phoenix Havana - M207HA,Equipment Furniture Materials,211200,Furniture & Soft Furn Office Furniture
South Lakeland District Council,http://opendatacommunities.org/id/district-council/south-lakeland,43524,Electoral Services,Central Services,http://opendatacommunities.org/def/concept/finance/sercop/objective/102,THOMSON REUTERS (PROFESSIONAL) UK LTD,1679046,13/02/2019,83957,243,0,Schofields Election Law LL PR R44,Schofields Election Law LL PR R44,Publications,202100,Financial Services Subscriptions
South Lakeland District Council,http://opendatacommunities.org/id/district-council/south-lakeland,43524,Electoral Services,Central Services,http://opendatacommunities.org/def/concept/finance/sercop/objective/102,Twofold Ltd,,13/02/2019,83958,180,0,Annual maintenance for Mailpost 123,Annual maintenance for Mailpost 123,Equipment Furniture Materials,309999,Mail Services� Not Elsewhere Classified
South Lakeland District Council,http://opendatacommunities.org/id/district-council/south-lakeland,43524,Democratic and Member Services,Central Services,http://opendatacommunities.org/def/concept/finance/sercop/objective/102,GRANTS- MISCELLANEOUS,,13/02/2019,83959,250,0,Locality donation to fund ICT equipment,Locality donation to fund ICT equipment,Contributions to Organisations,201700,Financial Services Grants
South Lakeland District Council,http://opendatacommunities.org/id/district-council/south-lakeland,43524,Electoral Services,Central Services,http://opendatacommunities.org/def/concept/finance/sercop/objective/102,ROYAL MAIL GROUP PLC,,18/02/2019,83960,136.87,0,Response Plus service - weeks ending,Response Plus service - weeks ending,Postages,301200,Mail Services� Postage
South Lakeland District Council,http://opendatacommunities.org/id/district-council/south-lakeland,43524,Cemeteries Office,Cultural Environmental Regulatory & Planning Services,http://opendatacommunities.org/def/concept/finance/sercop/objective/104,CUMBRIA WASTE RECYCLING LTD,3162439,18/02/2019,83961,115.16,0,Cemetery waste bin emptying Dec. 2018,Cemetery waste bin emptying Dec. 2018,Skip and Bin Hire and Disposal,182012,Environment Waste Management Recycling
South Lakeland District Council,http://opendatacommunities.org/id/district-council/south-lakeland,43524,Development Implementation,Central Services,http://opendatacommunities.org/def/concept/finance/sercop/objective/102,CUMBRIA WASTE RECYCLING LTD,3162439,18/02/2019,83962,41.75,0,Langstone House 360 ltr Wheelie Bin,Langstone House 360 ltr Wheelie Bin,Skip and Bin Hire and Disposal,182012,Environment Waste Management Recycling
South Lakeland District Council,http://opendatacommunities.org/id/district-council/south-lakeland,43524,Cemeteries Office,Cultural Environmental Regulatory & Planning Services,http://opendatacommunities.org/def/concept/finance/sercop/objective/104,CUMBRIA WASTE RECYCLING LTD,3162439,18/02/2019,83963,64.92,0,Cemetery waste bin emptying Dec. 2018,Cemetery waste bin emptying Dec. 2018,Skip and Bin Hire and Disposal,182012,Environment Waste Management Recycling
South Lakeland District Council,http://opendatacommunities.org/id/district-council/south-lakeland,43524,Cemeteries Office,Cultural Environmental Regulatory & Planning Services,http://opendatacommunities.org/def/concept/finance/sercop/objective/104,CUMBRIA WASTE RECYCLING LTD,3162439,18/02/2019,83964,63.72,0,Cemetery waste bin emptying Dec. 2018,Cemetery waste bin emptying Dec. 2018,Skip and Bin Hire and Disposal,182012,Environment Waste Management Recycling
South Lakeland District Council,http://opendatacommunities.org/id/district-council/south-lakeland,43524,Cemeteries Office,Cultural Environmental Regulatory & Planning Services,http://opendatacommunities.org/def/concept/finance/sercop/objective/104,CUMBRIA WASTE RECYCLING LTD,3162439,18/02/2019,83965,69.04,0,Cemetery waste bin emptying Dec. 2018,Cemetery waste bin emptying Dec. 2018,Skip and Bin Hire and Disposal,182012,Environment Waste Management Recycling
South Lakeland District Council,http://opendatacommunities.org/id/district-council/south-lakeland,43524,Development Implementation,Central Services,http://opendatacommunities.org/def/concept/finance/sercop/objective/102,CUMBRIA WASTE RECYCLING LTD,3162439,18/02/2019,83967,286.17,0,South Lakeland House Bin & Skip Emptying,South Lakeland House Bin & Skip Emptying,Skip and Bin Hire and Disposal,182012,Environment Waste Management Recycling
South Lakeland District Council,http://opendatacommunities.org/id/district-council/south-lakeland,43524,Kendal Town Hall,Cultural Environmental Regulatory & Planning Services,http://opendatacommunities.org/def/concept/finance/sercop/objective/104,CUMBRIA WASTE RECYCLING LTD,3162439,20/02/2019,83968,140.4,0,Annual waste collection for Kendal Town,Annual waste collection for Kendal Town,Skip and Bin Hire and Disposal,182012,Environment Waste Management Recycling
South Lakeland District Council,http://opendatacommunities.org/id/district-council/south-lakeland,43524,Cemeteries Office,Cultural Environmental Regulatory & Planning Services,http://opendatacommunities.org/def/concept/finance/sercop/objective/104,CUMBRIA WASTE RECYCLING LTD,3162439,20/02/2019,83969,36,0,Cemetery waste bin emptying Dec. 2018,Cemetery waste bin emptying Dec. 2018,Skip and Bin Hire and Disposal,182012,Environment Waste Management Recycling
South Lakeland District Council,http://opendatacommunities.org/id/district-council/south-lakeland,43524,Cemeteries Office,Cultural Environmental Regulatory & Planning Services,http://opendatacommunities.org/def/concept/finance/sercop/objective/104,CUMBRIA WASTE RECYCLING LTD,3162439,18/02/2019,83971,111.4,0,Cemetery waste bin emptying Dec. 2018,Cemetery waste bin emptying Dec. 2018,Skip and Bin Hire and Disposal,182012,Environment Waste Management Recycling
South Lakeland District Council,http://opendatacommunities.org/id/district-council/south-lakeland,43524,Cemeteries Office,Cultural Environmental Regulatory & Planning Services,http://opendatacommunities.org/def/concept/finance/sercop/objective/104,CUMBRIA WASTE RECYCLING LTD,3162439,18/02/2019,83972,41.75,0,Cemetery waste bin emptying Dec. 2018,Cemetery waste bin emptying Dec. 2018,Skip and Bin Hire and Disposal,182012,Environment Waste Management Recycling
South Lakeland District Council,http://opendatacommunities.org/id/district-council/south-lakeland,43524,Development Implementation,Cultural Environmental Regulatory & Planning Services,http://opendatacommunities.org/def/concept/finance/sercop/objective/104,CUMBRIA WASTE RECYCLING LTD,3162439,18/02/2019,83974,146.45,0,"Waste Collection at 124 Highgate,","Waste Collection at 124 Highgate,",Skip and Bin Hire and Disposal,182012,Environment Waste Management Recycling
South Lakeland District Council,http://opendatacommunities.org/id/district-council/south-lakeland,43524,Electoral Services,Central Services,http://opendatacommunities.org/def/concept/finance/sercop/objective/102,SHAW & SONS LTD,176653,18/02/2019,83989,-76.75,0,Presiding Officer Sundries Packs,Presiding Officer Sundries Packs,Stationery/Office Supplies,191600,Facilities Printing
South Lakeland District Council,http://opendatacommunities.org/id/district-council/south-lakeland,43524,Revenues and Benefits,Highways & Transport Services,http://opendatacommunities.org/def/concept/finance/sercop/objective/107,CAPITA BUSINESS SERVICES LTD (NCR),,01/02/2019,83990,387.87,0,2018-19 Internet Payment / bank charges,2018-19 Internet Payment / bank charges,Credit Card Commission,261500,HR Training & Conferences
South Lakeland District Council,http://opendatacommunities.org/id/district-council/south-lakeland,43524,Revenues and Benefits,Central Services,http://opendatacommunities.org/def/concept/finance/sercop/objective/102,CAPITA BUSINESS SERVICES LTD (NCR),,01/02/2019,83990,2801.28,0,2018-19 Internet Payment / bank charges,2018-19 Internet Payment / bank charges,Commission,261500,HR Training & Conferences
South Lakeland District Council,http://opendatacommunities.org/id/district-council/south-lakeland,43524,Social Enterprise Admin,SLDC as Agent,,PAY BY PHONE (PAYPOINT),,18/02/2019,83991,493.92,0,Fees up to 31 March 2019 owing to,Fees up to 31 March 2019 owing to,General,351400,Street & Traffic Traffic Control
South Lakeland District Council,http://opendatacommunities.org/id/district-council/south-lakeland,43524,Development Implementation,Central Services,http://opendatacommunities.org/def/concept/finance/sercop/objective/102,LAMBERT SMITH HAMPTON GROUP,2521225,18/02/2019,83992,41331,0,Property Services Contract April -,Property Services Contract April -,PSC - Property Works,999999,Unclassifiable
South Lakeland District Council,http://opendatacommunities.org/id/district-council/south-lakeland,43524,Business Support Community Services,Internal Trading Accounts,,RIBBLESDALE AUTO ELECTRICS 1992 LTD,2732686,18/02/2019,83993,22.25,0,Parts,Parts,Transport-Repair & Maintenance,381500,Vehicle Mgt Parts
South Lakeland District Council,http://opendatacommunities.org/id/district-council/south-lakeland,43524,Business Support Community Services,Internal Trading Accounts,,EK MOTOR FACTORS LTD,838524,18/02/2019,83994,18.16,0,Parts,Parts,Transport-Repair & Maintenance,381400,Vehicle Mgt Maintenance
South Lakeland District Council,http://opendatacommunities.org/id/district-council/south-lakeland,43524,Business Support Community Services,Internal Trading Accounts,,EK MOTOR FACTORS LTD,838524,18/02/2019,83995,19.21,0,Parts,Parts,Transport-Repair & Maintenance,381400,Vehicle Mgt Maintenance
South Lakeland District Council,http://opendatacommunities.org/id/district-council/south-lakeland,43524,Business Support Community Services,Internal Trading Accounts,,EK MOTOR FACTORS LTD,838524,18/02/2019,83996,28.69,0,Parts,Parts,Transport-Repair & Maintenance,381400,Vehicle Mgt Maintenance
South Lakeland District Council,http://opendatacommunities.org/id/district-council/south-lakeland,43524,Business Support Community Services,Internal Trading Accounts,,M G D LTD,,18/02/2019,83997,35,0,MOTs 2018/19,MOTs 2018/19,MOT/Servicing Costs,381400,Vehicle Mgt Maintenance
South Lakeland District Council,http://opendatacommunities.org/id/district-council/south-lakeland,43524,Business Support Community Services,Cultural Environmental Regulatory & Planning Services,http://opendatacommunities.org/def/concept/finance/sercop/objective/104,CUMBRIA WASTE RECYCLING LTD,3162439,18/02/2019,83998,1356.48,0,Skip emptying at Ecclerigg & Ulverston,Skip emptying at Ecclerigg & Ulverston,Tipping & Disposal Charges,182012,Environment Waste Management Recycling
South Lakeland District Council,http://opendatacommunities.org/id/district-council/south-lakeland,43524,Business Support Community Services,Cultural Environmental Regulatory & Planning Services,http://opendatacommunities.org/def/concept/finance/sercop/objective/104,CUMBRIA WASTE RECYCLING LTD,3162439,18/02/2019,83999,372,0,Skip emptying at Ecclerigg & Ulverston,Skip emptying at Ecclerigg & Ulverston,Tipping & Disposal Charges,182012,Environment Waste Management Recycling
South Lakeland District Council,http://opendatacommunities.org/id/district-council/south-lakeland,43524,Business Support Community Services,Internal Trading Accounts,,QPS PLASTIC LTD,,20/02/2019,84000,64.75,0,End cap,End cap,Transport-Repair & Maintenance,109999,Building Not Elsewhere Classified
South Lakeland District Council,http://opendatacommunities.org/id/district-council/south-lakeland,43524,Business Support Community Services,Internal Trading Accounts,,DENNIS EAGLE LTD,3794455,18/02/2019,84001,511.11,0,Parts,Parts,Transport-Repair & Maintenance,381300,Vehicle Mgt Industrial
South Lakeland District Council,http://opendatacommunities.org/id/district-council/south-lakeland,43524,Human Resources,Central Services,http://opendatacommunities.org/def/concept/finance/sercop/objective/102,FORBES SOLICITORS,,18/02/2019,84005,340.5,0,General Employment Advice 2018,General Employment Advice 2018,Legal & Counsels Fees,281300,Legal Services Legal Opinion
South Lakeland District Council,http://opendatacommunities.org/id/district-council/south-lakeland,43524,Human Resources,Central Services,http://opendatacommunities.org/def/concept/finance/sercop/objective/102,FORBES SOLICITORS,,18/02/2019,84007,375,0,Contract Review,Contract Review,Legal & Counsels Fees,281300,Legal Services Legal Opinion
South Lakeland District Council,http://opendatacommunities.org/id/district-council/south-lakeland,43524,Leisure and Wellbeing,Cultural Environmental Regulatory & Planning Services,http://opendatacommunities.org/def/concept/finance/sercop/objective/104,Lowther Forestry Group Ltd,,20/02/2019,84008,278,0,"Underley Allotments, Hallgarth, Kendal","Underley Allotments, Hallgarth, Kendal",Arboricultural Work,241600,Horticultural Trees & Shrubs
South Lakeland District Council,http://opendatacommunities.org/id/district-council/south-lakeland,43524,Leisure and Wellbeing,Cultural Environmental Regulatory & Planning Services,http://opendatacommunities.org/def/concept/finance/sercop/objective/104,AUTOPARTS (CUMBRIA) LTD,2579204,18/02/2019,84009,-80.55,0,DUPLICATE ORDER,DUPLICATE ORDER,Equipment Furniture Materials,381500,Vehicle Mgt Parts
South Lakeland District Council,http://opendatacommunities.org/id/district-council/south-lakeland,43524,Environment and Housing,Housing Services,http://opendatacommunities.org/def/concept/finance/sercop/objective/108,My Dream Cleaners Ltd,9839482,18/02/2019,84013,195.25,0,Cleaning at TVF Hostel,Cleaning at TVF Hostel,Cleaning Supplies & Services,131320,Cleaning & Janitorial Cleaning Service
South Lakeland District Council,http://opendatacommunities.org/id/district-council/south-lakeland,43524,Development Implementation,SLDC as Agent,,GRANTS- MISCELLANEOUS,,18/02/2019,84016,394.94,0,Japan Forum Trip Expenses,Japan Forum Trip Expenses,General,201700,Financial Services Grants
South Lakeland District Council,http://opendatacommunities.org/id/district-council/south-lakeland,43524,Environment and Housing,Housing Services,http://opendatacommunities.org/def/concept/finance/sercop/objective/108,G B BURROW & SON,,18/02/2019,84019,132,0,Storage costs ,Storage costs ,Homelessness Prevention,192300,Facilities Storage
South Lakeland District Council,http://opendatacommunities.org/id/district-council/south-lakeland,43524,Environment and Housing,Housing Services,http://opendatacommunities.org/def/concept/finance/sercop/objective/108,G B BURROW & SON,,18/02/2019,84020,104,0,Storage costs ,Storage costs ,Homelessness Prevention,192300,Facilities Storage
South Lakeland District Council,http://opendatacommunities.org/id/district-council/south-lakeland,43524,Business Support Community Services,Housing Services,http://opendatacommunities.org/def/concept/finance/sercop/objective/108,Ashberry Recruitment,7202591,18/02/2019,84021,116.54,0,Agency staff at Town View Fields,Agency staff at Town View Fields,Contract & Agency staff,261300,HR Recruitment & Assessment
South Lakeland District Council,http://opendatacommunities.org/id/district-council/south-lakeland,43524,Democratic and Member Services,Cultural Environmental Regulatory & Planning Services,http://opendatacommunities.org/def/concept/finance/sercop/objective/104,GRANTS- MISCELLANEOUS,,18/02/2019,84024,500,0,locality donation to fund new,locality donation to fund new,Contributions to Organisations,201700,Financial Services Grants
South Lakeland District Council,http://opendatacommunities.org/id/district-council/south-lakeland,43524,Business Support Community Services,Cultural Environmental Regulatory & Planning Services,http://opendatacommunities.org/def/concept/finance/sercop/objective/104,Park Avenue,,18/02/2019,84028,1036,0,AGENCY PLANNING OFFICER,AGENCY PLANNING OFFICER,Contract & Agency staff,150000,Consultancy
South Lakeland District Council,http://opendatacommunities.org/id/district-council/south-lakeland,43524,Business Support Community Services,Internal Trading Accounts,,CUMBRIA TRUCK CENTRE LTD,4298488,18/02/2019,84029,827.34,0,Switch (37299),Switch (37299),Transport-Repair & Maintenance,381300,Vehicle Mgt Industrial
South Lakeland District Council,http://opendatacommunities.org/id/district-council/south-lakeland,43524,Business Support Community Services,Internal Trading Accounts,,M G D LTD,,18/02/2019,84030,35,0,MOTs 2018/19,MOTs 2018/19,MOT/Servicing Costs,381400,Vehicle Mgt Maintenance
South Lakeland District Council,http://opendatacommunities.org/id/district-council/south-lakeland,43524,Business Support Community Services,Internal Trading Accounts,,S J Bargh,532272,18/02/2019,84031,230.98,0,MOTs 2018/19 & vehicle cleaning,MOTs 2018/19 & vehicle cleaning,MOT/Servicing Costs,381400,Vehicle Mgt Maintenance
South Lakeland District Council,http://opendatacommunities.org/id/district-council/south-lakeland,43524,Business Support Community Services,Internal Trading Accounts,,AINSWORTH'S GARAGE,,18/02/2019,84032,195.69,0,Parts,Parts,Transport-Repair & Maintenance,381400,Vehicle Mgt Maintenance
South Lakeland District Council,http://opendatacommunities.org/id/district-council/south-lakeland,43524,Business Support Community Services,Internal Trading Accounts,,DENNIS EAGLE LTD,3794455,18/02/2019,84033,99.68,0,Parts,Parts,Transport-Repair & Maintenance,381300,Vehicle Mgt Industrial
South Lakeland District Council,http://opendatacommunities.org/id/district-council/south-lakeland,43524,Development Implementation,Central Services,http://opendatacommunities.org/def/concept/finance/sercop/objective/102,GATES TRAVEL SERVICE,,27/02/2019,84034,90.5,0,Rail travel ,Rail travel ,Training Costs,261600,HR Travel & Subsistence
South Lakeland District Council,http://opendatacommunities.org/id/district-council/south-lakeland,43524,Business Support Community Services,Internal Trading Accounts,,C T HAYTON LTD,1212766,18/02/2019,84035,6.58,0,Hose,Hose,Transport-Repair & Maintenance,391200,Construction Engineering
South Lakeland District Council,http://opendatacommunities.org/id/district-council/south-lakeland,43524,Business Support Community Services,Internal Trading Accounts,,PROBRUSH T/A NORTHERN MUNICIPAL SPARES L,,18/02/2019,84036,413.64,0,Brushes 2018/19,Brushes 2018/19,Transport-Repair & Maintenance,381600,Vehicle Mgt Leasing
South Lakeland District Council,http://opendatacommunities.org/id/district-council/south-lakeland,43524,Business Support Community Services,Internal Trading Accounts,,FAUN ZOELLER (UK) LTD,751804,18/02/2019,84037,368.8,0,Repair SL210,Repair SL210,Transport-Repair & Maintenance,381400,Vehicle Mgt Maintenance
South Lakeland District Council,http://opendatacommunities.org/id/district-council/south-lakeland,43524,Business Support Community Services,Internal Trading Accounts,,HAKO MACHINES LIMITED,1414225,18/02/2019,84038,60.63,0,Parts,Parts,Transport-Repair & Maintenance,131000,Cleaning & Janitorial Cleaning Materials
South Lakeland District Council,http://opendatacommunities.org/id/district-council/south-lakeland,43524,Business Support Community Services,Internal Trading Accounts,,HAKO MACHINES LIMITED,1414225,20/02/2019,84039,11.86,0,Ram,Ram,Transport-Uninsured Damage,131000,Cleaning & Janitorial Cleaning Materials
South Lakeland District Council,http://opendatacommunities.org/id/district-council/south-lakeland,43524,Business Support Community Services,Internal Trading Accounts,,HAKO MACHINES LIMITED,1414225,18/02/2019,84040,276.67,0,Ram,Ram,Transport-Uninsured Damage,131000,Cleaning & Janitorial Cleaning Materials
South Lakeland District Council,http://opendatacommunities.org/id/district-council/south-lakeland,43524,Business Support Community Services,Internal Trading Accounts,,Harry Park Tyres Ltd,8131208,18/02/2019,84041,1472.5,0,Tyres,Tyres,Vehicle - Tyres,381500,Vehicle Mgt Parts
South Lakeland District Council,http://opendatacommunities.org/id/district-council/south-lakeland,43524,Business Support Community Services,Internal Trading Accounts,,FAUN ZOELLER (UK) LTD,751804,18/02/2019,84042,681.8,0,Repair SL210,Repair SL210,Transport-Repair & Maintenance,381400,Vehicle Mgt Maintenance
South Lakeland District Council,http://opendatacommunities.org/id/district-council/south-lakeland,43524,Democratic and Member Services,Central Services,http://opendatacommunities.org/def/concept/finance/sercop/objective/102,GRANTS- MISCELLANEOUS,,18/02/2019,84043,127.8,0,locality donation to fund Dent Pre,locality donation to fund Dent Pre,Contributions to Organisations,201700,Financial Services Grants
South Lakeland District Council,http://opendatacommunities.org/id/district-council/south-lakeland,43524,Democratic and Member Services,Central Services,http://opendatacommunities.org/def/concept/finance/sercop/objective/102,GRANTS- MISCELLANEOUS,,18/02/2019,84045,400,0,Locality donation to cover expenses  to,Locality donation to cover expenses  to,Contributions to Organisations,201700,Financial Services Grants
South Lakeland District Council,http://opendatacommunities.org/id/district-council/south-lakeland,43524,Democratic and Member Services,Central Services,http://opendatacommunities.org/def/concept/finance/sercop/objective/102,GRANTS- MISCELLANEOUS,,18/02/2019,84046,500,0,Locality donation to provide and run a,Locality donation to provide and run a,Contributions to Organisations,201700,Financial Services Grants
South Lakeland District Council,http://opendatacommunities.org/id/district-council/south-lakeland,43524,Democratic and Member Services,Central Services,http://opendatacommunities.org/def/concept/finance/sercop/objective/102,GRANTS- MISCELLANEOUS,,18/02/2019,84047,500,0,Locality donation to support the,Locality donation to support the,Contributions to Organisations,201700,Financial Services Grants
South Lakeland District Council,http://opendatacommunities.org/id/district-council/south-lakeland,43524,Environment and Housing,Housing Services,http://opendatacommunities.org/def/concept/finance/sercop/objective/108,Landlord,,20/02/2019,84048,1190,0,Monthly rent,Monthly rent,Homelessness Prevention,202000,Financial Services Rents
South Lakeland District Council,http://opendatacommunities.org/id/district-council/south-lakeland,43524,Environment and Housing,Housing Services,http://opendatacommunities.org/def/concept/finance/sercop/objective/108,Landlord,,18/02/2019,84049,600,0,Monthly rent ,Monthly rent ,Homelessness Prevention,250000,Housing
South Lakeland District Council,http://opendatacommunities.org/id/district-council/south-lakeland,43524,Leisure and Wellbeing,Cultural Environmental Regulatory & Planning Services,,Medical Gas Solutions Ltd T/a,4967365,18/02/2019,84050,37.95,0,Montly rental,Montly rental,Equipment Furniture Materials,221100,Health & Safety� Maintenance
South Lakeland District Council,http://opendatacommunities.org/id/district-council/south-lakeland,43524,Business Support Community Services,Cultural Environmental Regulatory & Planning Services,,Macdonald & Company Freelance Ltd,3882135,18/02/2019,84055,2398.5,0,Supply of Contract Worker for Planning,Supply of Contract Worker for Planning,Contract & Agency staff,261400,HR Temporary & Agency Staff
South Lakeland District Council,http://opendatacommunities.org/id/district-council/south-lakeland,43524,Development Implementation,Culture and Related Serv,,LAMBERT SMITH HAMPTON GROUP,2521225,25/02/2019,84056,1500,0,Repairs to Sea Wall at Grange Promenade,Repairs to Sea Wall at Grange Promenade,Contract payments,999999,Unclassifiable
South Lakeland District Council,http://opendatacommunities.org/id/district-council/south-lakeland,43524,ICT Group,Central Services,,CABLE & WIRELESS UK (VODAFONE),,18/02/2019,84057,3634.01,0,Gsi Convergence Framework,Gsi Convergence Framework,Computer-Phone Lines,271700,ICT Telecommunications Fixed
South Lakeland District Council,http://opendatacommunities.org/id/district-council/south-lakeland,43524,Business Support Community Services,Housing Services,,HOME GROUP LTD,IP22981R,18/02/2019,84064,76.99,0,Rent ,Rent ,Homelessness Prevention,250000,Housing
South Lakeland District Council,http://opendatacommunities.org/id/district-council/south-lakeland,43524,Financial Services,Central Services,,Cabinet Office,,18/02/2019,84066,2200,0,National Fraid Initiative 2018/19,National Fraid Initiative 2018/19,Other Consultants,200000,Financial Services
South Lakeland District Council,http://opendatacommunities.org/id/district-council/south-lakeland,43524,Business Support Community Services,Cultural Environmental Regulatory & Planning Services,,CUMBRIA WASTE RECYCLING LTD,3162439,20/02/2019,84067,11300,0,Empty recycling banks in 2018/19,Empty recycling banks in 2018/19,Empty recycling banks,182012,Environment Waste Management Recycling
South Lakeland District Council,http://opendatacommunities.org/id/district-council/south-lakeland,43524,Westmorland Centre Parking Office,Highways & Transport Services,,CAPITA BUSINESS SERVICES LTD (NCR),,01/02/2019,84069,1251.25,0,Credit card commission June 2018-March,Credit card commission June 2018-March,Credit Card Commission,261500,HR Training & Conferences
South Lakeland District Council,http://opendatacommunities.org/id/district-council/south-lakeland,43524,Business Support Community Services,SLDC as Agent,,CUMBRIA COUNTY COUNCIL,,18/02/2019,84070,162,0,DBS Checks for Taxi Drivers,DBS Checks for Taxi Drivers,Criminal Records Bureau,908000,Public Bodies Council support services
South Lakeland District Council,http://opendatacommunities.org/id/district-council/south-lakeland,43524,Electoral Services,Central Services,,Print.UK.Com,,18/02/2019,84072,0,0,Printing and postage for the PI referesh,Printing and postage for the PI referesh,Printing,191600,Facilities Printing
South Lakeland District Council,http://opendatacommunities.org/id/district-council/south-lakeland,43524,Electoral Services,Central Services,,Print.UK.Com,,18/02/2019,84072,1498.56,0,Printing and postage for the PI referesh,Printing and postage for the PI referesh,Postages,191600,Facilities Printing
South Lakeland District Council,http://opendatacommunities.org/id/district-council/south-lakeland,43524,Democratic and Member Services,Central Services,,GRANTS- MISCELLANEOUS,,18/02/2019,84073,500,0,Donation to fund the 2019 planting of,Donation to fund the 2019 planting of,Contributions to Organisations,201700,Financial Services Grants
South Lakeland District Council,http://opendatacommunities.org/id/district-council/south-lakeland,43524,Business Support Community Services,Cultural Environmental Regulatory & Planning Services,,Masterstaff Limited,2777593,25/02/2019,84074,2340.08,0,Agency staff,Agency staff,Contract & Agency staff,261300,HR Recruitment & Assessment
South Lakeland District Council,http://opendatacommunities.org/id/district-council/south-lakeland,43524,Business Support Community Services,Cultural Environmental Regulatory & Planning Services,,BRIAN ARMISTEAD LTD T/A SINKFALL RECYCLI,4133280,18/02/2019,84075,330.24,0,Green waste tipping - 2018/19,Green waste tipping - 2018/19,Tipping & Disposal Charges,391110,Construction Buildings Construction
South Lakeland District Council,http://opendatacommunities.org/id/district-council/south-lakeland,43524,Business Support Community Services,Internal Trading Accounts,,ETS UK LIMITED,2588203,20/02/2019,84076,306,0,Filters,Filters,Transport-Repair & Maintenance,381500,Vehicle Mgt Parts
South Lakeland District Council,http://opendatacommunities.org/id/district-council/south-lakeland,43524,Environment and Housing,Housing Services,,ADECCO UK LIMITED,593232,27/02/2019,84078,567.65,0,agency work,agency work,Contract & Agency staff,261400,HR Temporary & Agency Staff
South Lakeland District Council,http://opendatacommunities.org/id/district-council/south-lakeland,43524,Social Enterprise Admin,Highways & Transport Services,,ADECCO UK LIMITED,593232,27/02/2019,84079,574.41,0,Car Park Attendant,Car Park Attendant,Contract & Agency staff,261400,HR Temporary & Agency Staff
South Lakeland District Council,http://opendatacommunities.org/id/district-council/south-lakeland,43524,Development Implementation,Central Services,,ADECCO UK LIMITED,593232,25/02/2019,84080,285,0,Cleaner for SLDC - April,Cleaner for SLDC - April,Contract & Agency staff,261400,HR Temporary & Agency Staff
South Lakeland District Council,http://opendatacommunities.org/id/district-council/south-lakeland,43524,Policy & Partnerships,Central Services,,ADECCO UK LIMITED,593232,27/02/2019,84082,465.81,0,Temporary Coroporate Support Assistant,Temporary Coroporate Support Assistant,Contract & Agency staff,261400,HR Temporary & Agency Staff
South Lakeland District Council,http://opendatacommunities.org/id/district-council/south-lakeland,43524,Development Implementation,SLDC as Agent,,Verse Group Ltd,6994365,25/02/2019,84083,32.5,0,Transfer of Hosting for the Japan Forum,Transfer of Hosting for the Japan Forum,General,271515,ICT Website Development
South Lakeland District Council,http://opendatacommunities.org/id/district-council/south-lakeland,43524,Revenues and Benefits,Non-Service Payments,,Ulverston BID Company Ltd,9761005,20/02/2019,84085,1022.78,0,BID Levy - Collection figures for,BID Levy - Collection figures for,Payment to BID,201700,Financial Services Grants
South Lakeland District Council,http://opendatacommunities.org/id/district-council/south-lakeland,43524,Environment and Housing,Housing Services,,Landlord,,18/02/2019,84096,890,0,Monthly rent ,Monthly rent ,Homelessness Prevention,250000,Housing
South Lakeland District Council,http://opendatacommunities.org/id/district-council/south-lakeland,43524,Environment and Housing,Housing Services,,Landlord,8672920,18/02/2019,84097,400,0,Monthly rent ,Monthly rent ,Homelessness Prevention,202000,Financial Services Rents
South Lakeland District Council,http://opendatacommunities.org/id/district-council/south-lakeland,43524,Revenues and Benefits,Central Services,,HBINFO LTD,5779046,20/02/2019,84109,425,0,Subscription  -  'A' rate to include,Subscription  -  'A' rate to include,Subscriptions to Associations,201400,Financial Services C Tax & Bus Rates
South Lakeland District Council,http://opendatacommunities.org/id/district-council/south-lakeland,43524,Revenues and Benefits,Central Services,,PITNEY BOWES LTD,182037,25/02/2019,84110,527.5,0,2018-19 Stationery & office supplies,2018-19 Stationery & office supplies,Stationery/Office Supplies,301200,Mail Services� Postage
South Lakeland District Council,http://opendatacommunities.org/id/district-council/south-lakeland,43524,Business Support Community Services,Cultural Environmental Regulatory & Planning Services,,H & H REEDS PRINTERS LTD,139166,25/02/2019,84111,340,0,Per estimate 242080,Per estimate 242080,Advertising,191100,Facilities Design & Photography
South Lakeland District Council,http://opendatacommunities.org/id/district-council/south-lakeland,43524,Business Support Community Services,Cultural Environmental Regulatory & Planning Services,,ALLSTAR BUSINESS SOLUTIONS LTD (NCR),2631112,01/02/2019,84112,133.09,0,Fuel - Private Water Van - 22 Jan 2019,Fuel - Private Water Van - 22 Jan 2019,Fuel,381600,Vehicle Mgt Leasing
South Lakeland District Council,http://opendatacommunities.org/id/district-council/south-lakeland,43524,Kendal Town Hall,Cultural Environmental Regulatory & Planning Services,,FARRERS,9023215,20/02/2019,84113,158.65,0,Instant Coffee Sticks,Instant Coffee Sticks,Catering Supplies,111200,Catering Food & Beverages
South Lakeland District Council,http://opendatacommunities.org/id/district-council/south-lakeland,43524,Revenues and Benefits,SLDC as Agent,,ROYAL MAIL GROUP PLC,,20/02/2019,84114,1343.77,0,2018-19 Postal Charges a/c 0198123013,2018-19 Postal Charges a/c 0198123013,General,301200,Mail Services� Postage
South Lakeland District Council,http://opendatacommunities.org/id/district-council/south-lakeland,43524,Development Implementation,Cultural Environmental Regulatory & Planning Services,,CUMBRIA TOURISM,3027358,20/02/2019,84115,2805,0,STEAM Research for 2018,STEAM Research for 2018,Economic Development Fund,291400,Arts & Leisure Services Sport & Fitness
South Lakeland District Council,http://opendatacommunities.org/id/district-council/south-lakeland,43524,Electoral Services,Central Services,,CFH Docmail Ltd,1716891,20/02/2019,84116,39.48,0,Printing costs,Printing costs,Printing,300000,Mail Services
South Lakeland District Council,http://opendatacommunities.org/id/district-council/south-lakeland,43524,Electoral Services,Central Services,,CFH Docmail Ltd,1716891,20/02/2019,84117,22,0,Printing costs,Printing costs,Printing,300000,Mail Services
South Lakeland District Council,http://opendatacommunities.org/id/district-council/south-lakeland,43524,Business Support Community Services,SLDC as Agent,,CIVICA UK LTD,1628868,27/02/2019,84118,8551.59,0,Cumbria Choice 2019 - 2020,Cumbria Choice 2019 - 2020,General,271600,ICT Software Customised & Bespoke
South Lakeland District Council,http://opendatacommunities.org/id/district-council/south-lakeland,43524,Business Support Community Services,SLDC as Agent,,CIVICA UK LTD,1628868,27/02/2019,84119,2060.84,0,Cumbria Choice 2019 - 2020,Cumbria Choice 2019 - 2020,General,271600,ICT Software Customised & Bespoke
South Lakeland District Council,http://opendatacommunities.org/id/district-council/south-lakeland,43524,Business Support Community Services,SLDC as Agent,,CIVICA UK LTD,1628868,27/02/2019,84120,8551.59,0,Cumbria Choice 2019 - 2020,Cumbria Choice 2019 - 2020,General,271600,ICT Software Customised & Bespoke
South Lakeland District Council,http://opendatacommunities.org/id/district-council/south-lakeland,43524,Business Support Community Services,SLDC as Agent,,CIVICA UK LTD,1628868,27/02/2019,84121,8551.59,0,Cumbria Choice 2019 - 2020,Cumbria Choice 2019 - 2020,General,271600,ICT Software Customised & Bespoke
South Lakeland District Council,http://opendatacommunities.org/id/district-council/south-lakeland,43524,Business Support Community Services,SLDC as Agent,,CIVICA UK LTD,1628868,27/02/2019,84122,8551.59,0,Cumbria Choice 2019 - 2020,Cumbria Choice 2019 - 2020,General,271600,ICT Software Customised & Bespoke
South Lakeland District Council,http://opendatacommunities.org/id/district-council/south-lakeland,43524,Business Support Community Services,SLDC as Agent,,CIVICA UK LTD,1628868,27/02/2019,84123,8551.59,0,Cumbria Choice 2019 - 2020,Cumbria Choice 2019 - 2020,General,271600,ICT Software Customised & Bespoke
South Lakeland District Council,http://opendatacommunities.org/id/district-council/south-lakeland,43524,Business Support Community Services,SLDC as Agent,,CIVICA UK LTD,1628868,27/02/2019,84124,8551.59,0,Cumbria Choice 2019 - 2020,Cumbria Choice 2019 - 2020,General,271600,ICT Software Customised & Bespoke
South Lakeland District Council,http://opendatacommunities.org/id/district-council/south-lakeland,43524,Democratic and Member Services,Central Services,,RIVERBANK HOSPITALITY CATERING,,20/02/2019,84128,48,0,Sandwiches and fruit for Customer,Sandwiches and fruit for Customer,Catering Supplies,111000,Catering Banquet & Catering
South Lakeland District Council,http://opendatacommunities.org/id/district-council/south-lakeland,43524,Leisure and Wellbeing,Cultural Environmental Regulatory & Planning Services,,Bergen Arbortech,,20/02/2019,84129,202.15,0,Installation of bird boxes at Nobles,Installation of bird boxes at Nobles,Arboricultural Work,241210,Horticultural Tree Trimming
South Lakeland District Council,http://opendatacommunities.org/id/district-council/south-lakeland,43524,Business Support Community Services,Internal Trading Accounts,,RIBBLESDALE AUTO ELECTRICS 1992 LTD,2732686,20/02/2019,84130,67.5,0,Parts,Parts,Transport-Repair & Maintenance,381500,Vehicle Mgt Parts
South Lakeland District Council,http://opendatacommunities.org/id/district-council/south-lakeland,43524,Business Support Community Services,Internal Trading Accounts,,AINSWORTH'S GARAGE,,20/02/2019,84131,250,0,Parts,Parts,Transport-Repair & Maintenance,381400,Vehicle Mgt Maintenance
South Lakeland District Council,http://opendatacommunities.org/id/district-council/south-lakeland,43524,Business Support Community Services,Internal Trading Accounts,,SOLWAY DAF,1393710,20/02/2019,84133,429.42,0,Parts,Parts,Transport-Repair & Maintenance,381000,Vehicle Mgt Commercial
South Lakeland District Council,http://opendatacommunities.org/id/district-council/south-lakeland,43524,Business Support Community Services,Internal Trading Accounts,,DENNIS EAGLE LTD,3794455,20/02/2019,84134,316.61,0,Parts,Parts,Transport-Repair & Maintenance,381300,Vehicle Mgt Industrial
South Lakeland District Council,http://opendatacommunities.org/id/district-council/south-lakeland,43524,Business Support Community Services,Internal Trading Accounts,,DENNIS EAGLE LTD,3794455,20/02/2019,84135,197,0,Parts,Parts,Transport-Repair & Maintenance,381300,Vehicle Mgt Industrial
South Lakeland District Council,http://opendatacommunities.org/id/district-council/south-lakeland,43524,Business Support Community Services,Internal Trading Accounts,,EK MOTOR FACTORS LTD,838524,20/02/2019,84136,69.5,0,Parts,Parts,Transport-Repair & Maintenance,381400,Vehicle Mgt Maintenance
South Lakeland District Council,http://opendatacommunities.org/id/district-council/south-lakeland,43524,Business Support Community Services,Internal Trading Accounts,,EK MOTOR FACTORS LTD,838524,20/02/2019,84137,-20,0,Parts,Parts,Transport-Repair & Maintenance,381400,Vehicle Mgt Maintenance
South Lakeland District Council,http://opendatacommunities.org/id/district-council/south-lakeland,43524,Democratic and Member Services,Central Services,,GRANTS- MISCELLANEOUS,,20/02/2019,84138,250,0,Locality donation to fund a further 5,Locality donation to fund a further 5,Contributions to Organisations,201700,Financial Services Grants
South Lakeland District Council,http://opendatacommunities.org/id/district-council/south-lakeland,43524,Business Support Community Services,Housing Services,,GATES TRAVEL SERVICE,,20/02/2019,84139,21.4,0,Travel warrant,Travel warrant,Homelessness Prevention,261600,HR Travel & Subsistence
South Lakeland District Council,http://opendatacommunities.org/id/district-council/south-lakeland,43524,Social Enterprise Admin,Highways & Transport Services,,BEMROSE BOOTH PARAGON LTD,4891375,20/02/2019,84140,2068,0,"350,000 Aura Self Adhesive Pay and","350,000 Aura Self Adhesive Pay and",Printing,191600,Facilities Printing
South Lakeland District Council,http://opendatacommunities.org/id/district-council/south-lakeland,43524,Democratic and Member Services,Central Services,,GRANTS- MISCELLANEOUS,,27/02/2019,84141,100,0,Locality donation towards supporting,Locality donation towards supporting,Contributions to Organisations,201700,Financial Services Grants
South Lakeland District Council,http://opendatacommunities.org/id/district-council/south-lakeland,43524,Environment and Housing,Housing Services,,James Andrews Recruitment Solutions,6834852,25/02/2019,84142,1494.92,0,Agency worker for Community-led Housing,Agency worker for Community-led Housing,Contract & Agency staff,261400,HR Temporary & Agency Staff
South Lakeland District Council,http://opendatacommunities.org/id/district-council/south-lakeland,43524,Human Resources,Central Services,,BAINES WILSON LLP,OC330890,20/02/2019,84143,300,0,Employment Law Update for DB and EL,Employment Law Update for DB and EL,Training Costs,261500,HR Training & Conferences
South Lakeland District Council,http://opendatacommunities.org/id/district-council/south-lakeland,43524,Leisure and Wellbeing,Cultural Environmental Regulatory & Planning Services,,Galpin Landscape Architecture,,20/02/2019,84145,1225,0,"Waterhead redesign, to include site","Waterhead redesign, to include site",Other Consultants,391300,Construction Open Spaces
South Lakeland District Council,http://opendatacommunities.org/id/district-council/south-lakeland,43524,Leisure and Wellbeing,Cultural Environmental Regulatory & Planning Services,,SHORROCK TRICHEM,4179799,20/02/2019,84147,62.92,0,2 x 5L Bleach,2 x 5L Bleach,Cleaning Supplies & Services,131312,Cleaning & Janitorial Washroom Sanitat
South Lakeland District Council,http://opendatacommunities.org/id/district-council/south-lakeland,43524,Democratic and Member Services,Central Services,,GRANTS- MISCELLANEOUS,,20/02/2019,84148,500,0,Locality donation to fund evening,Locality donation to fund evening,Contributions to Organisations,201700,Financial Services Grants
South Lakeland District Council,http://opendatacommunities.org/id/district-council/south-lakeland,43524,Democratic and Member Services,Central Services,,GRANTS- MISCELLANEOUS,,20/02/2019,84149,500,0,Locality donation to fund the 597 bus,Locality donation to fund the 597 bus,Contributions to Organisations,201700,Financial Services Grants
South Lakeland District Council,http://opendatacommunities.org/id/district-council/south-lakeland,43524,Democratic and Member Services,Central Services,,IMPROVEMENT & DEVELOPMENT AGENCY,3675577,20/02/2019,84150,335,0,LGA  Leadership Essentials: Effective,LGA  Leadership Essentials: Effective,Conference Fees,202100,Financial Services Subscriptions
South Lakeland District Council,http://opendatacommunities.org/id/district-council/south-lakeland,43524,Policy & Partnerships,Central Services,,ACT NOW TRAINING LTD,4524979,20/02/2019,84152,1995,0,RIPA Training 14th Feb 2019,RIPA Training 14th Feb 2019,Training Costs,261500,HR Training & Conferences
South Lakeland District Council,http://opendatacommunities.org/id/district-council/south-lakeland,43524,Business Support Community Services,Cultural Environmental Regulatory & Planning Services,,"Colour Idea Ltd, t/a Wild View Cameras",7595577,20/02/2019,84153,797.48,0,Cameras & accessories,Cameras & accessories,Equipment Furniture Materials,181400,Environment Monitoring
South Lakeland District Council,http://opendatacommunities.org/id/district-council/south-lakeland,43524,Business Support Community Services,Internal Trading Accounts,,A & W COMMERCIALS LTD,2630625,20/02/2019,84154,36.5,0,LOLER test,LOLER test,Transport-Repair & Maintenance,381400,Vehicle Mgt Maintenance
South Lakeland District Council,http://opendatacommunities.org/id/district-council/south-lakeland,43524,Business Support Community Services,Cultural Environmental Regulatory & Planning Services,,ARCO LIMITED,133804,20/02/2019,84155,77.54,0,Cleaning materials,Cleaning materials,Protective Clothing & Uniforms,141100,Clothing Protective
South Lakeland District Council,http://opendatacommunities.org/id/district-council/south-lakeland,43524,Business Support Community Services,Cultural Environmental Regulatory & Planning Services,,ARCO LIMITED,133804,20/02/2019,84156,77.94,0,Cleaning materials,Cleaning materials,Protective Clothing & Uniforms,141100,Clothing Protective
South Lakeland District Council,http://opendatacommunities.org/id/district-council/south-lakeland,43524,Business Support Community Services,Cultural Environmental Regulatory & Planning Services,,ARCO LIMITED,133804,20/02/2019,84157,57.31,0,Cleaning materials,Cleaning materials,Protective Clothing & Uniforms,141100,Clothing Protective
South Lakeland District Council,http://opendatacommunities.org/id/district-council/south-lakeland,43524,Business Support Community Services,Internal Trading Accounts,,M G D LTD,,20/02/2019,84158,35,0,MOTs 2018/19,MOTs 2018/19,MOT/Servicing Costs,381400,Vehicle Mgt Maintenance
South Lakeland District Council,http://opendatacommunities.org/id/district-council/south-lakeland,43524,Business Support Community Services,Cultural Environmental Regulatory & Planning Services,,JEWSON LIMITED,348407,25/02/2019,84159,29.42,0,Fixtures & fittings 2017/18,Fixtures & fittings 2017/18,Fixtures & Fittings,101400,Building General Materials
South Lakeland District Council,http://opendatacommunities.org/id/district-council/south-lakeland,43524,Business Support Community Services,Internal Trading Accounts,,GARWOOD EUROPE LTD,4333504,20/02/2019,84160,191.68,0,Switches,Switches,Transport-Repair & Maintenance,182011,Environment Waste Management Consumables
South Lakeland District Council,http://opendatacommunities.org/id/district-council/south-lakeland,43524,Business Support Community Services,Cultural Environmental Regulatory & Planning Services,,CANNON HYGIENE LTD,1298292,20/02/2019,84161,2656.18,0,Clinical waste collections - 2018/19,Clinical waste collections - 2018/19,Clinincal Waste Disposal Costs,131011,Cleaning & Janitorial Cleaning Materials
South Lakeland District Council,http://opendatacommunities.org/id/district-council/south-lakeland,43524,ICT Group,Central Services,,IT PROFESSIONAL SERVICES (ITPS),,20/02/2019,84164,65.19,0,SIP calls not covered by SIP rental,SIP calls not covered by SIP rental,Telephones-Calls,279999,ICT Not Elsewhere Classified
South Lakeland District Council,http://opendatacommunities.org/id/district-council/south-lakeland,43524,ICT Group,Central Services,,IT PROFESSIONAL SERVICES (ITPS),,20/02/2019,84165,70.61,0,SIP calls not covered by SIP rental,SIP calls not covered by SIP rental,Telephones-Calls,279999,ICT Not Elsewhere Classified
South Lakeland District Council,http://opendatacommunities.org/id/district-council/south-lakeland,43524,Business Support Community Services,Housing Services,,My Dream Cleaners Ltd,9839482,20/02/2019,84166,299.75,0,Cleaning at Town View Fields,Cleaning at Town View Fields,Cleaning Supplies & Services,131320,Cleaning & Janitorial Cleaning Service
South Lakeland District Council,http://opendatacommunities.org/id/district-council/south-lakeland,43524,Democratic and Member Services,Central Services,,GRANTS- MISCELLANEOUS,,20/02/2019,84167,250,0,Locality donation to deliver a,Locality donation to deliver a,Contributions to Organisations,201700,Financial Services Grants
South Lakeland District Council,http://opendatacommunities.org/id/district-council/south-lakeland,43524,Business Support Community Services,Cultural Environmental Regulatory & Planning Services,,Vivid Resourcing,,20/02/2019,84168,812,0,SUPPLY OF CONTRACT WORKER FOR PLANNING,SUPPLY OF CONTRACT WORKER FOR PLANNING,Contract & Agency staff,150000,Consultancy
South Lakeland District Council,http://opendatacommunities.org/id/district-council/south-lakeland,43524,Business Support Community Services,Cultural Environmental Regulatory & Planning Services,,Park Avenue,,20/02/2019,84169,1110,0,AGENCY PLANNING OFFICER,AGENCY PLANNING OFFICER,Contract & Agency staff,150000,Consultancy
South Lakeland District Council,http://opendatacommunities.org/id/district-council/south-lakeland,43524,Democratic Services,Central Services,,Sellick Partnership Group Ltd,4156002,20/02/2019,84170,1150,0,Locum Fees ,Locum Fees ,Contract & Agency staff,281300,Legal Services Legal Opinion
South Lakeland District Council,http://opendatacommunities.org/id/district-council/south-lakeland,43524,Democratic Services,Central Services,,Sellick Partnership Group Ltd,4156002,20/02/2019,84171,1500,0,Locum Fees ,Locum Fees ,Contract & Agency staff,281300,Legal Services Legal Opinion
South Lakeland District Council,http://opendatacommunities.org/id/district-council/south-lakeland,43524,Policy & Partnerships,Central Services,,CUMBRIA COUNTY COUNCIL,,20/02/2019,84174,714.29,0,Multi Agency Gold Incident Command,Multi Agency Gold Incident Command,Other Local Authorities,908000,Public Bodies Council support services
South Lakeland District Council,http://opendatacommunities.org/id/district-council/south-lakeland,43524,Democratic and Member Services,Central Services,,GRANTS- MISCELLANEOUS,,20/02/2019,84175,250,0,Locality donation Revamp outdoor area?,Locality donation Revamp outdoor area?,Contributions to Organisations,201700,Financial Services Grants
South Lakeland District Council,http://opendatacommunities.org/id/district-council/south-lakeland,43524,Human Resources,Central Services,,Health Assured Limited,,25/02/2019,84176,308,0,Health Assured Councelling June 18 E.,Health Assured Councelling June 18 E.,Drs/Occ Health Fees,311410,Healthcare-Occupational Therapy services
South Lakeland District Council,http://opendatacommunities.org/id/district-council/south-lakeland,43524,Development Implementation,External Trading Accounts,,APEX RADIO SYSTEMS LTD,2485670,20/02/2019,84177,68,0,Annual Base Station & Licence Fee for,Annual Base Station & Licence Fee for,Equipment Furniture Materials,913000,Technical Support Equipment
South Lakeland District Council,http://opendatacommunities.org/id/district-council/south-lakeland,43524,Development Implementation,Central Services,,Paul Hopwood,,20/02/2019,84178,250,0,Deep Cleaning,Deep Cleaning,Contract & Agency staff,131310,Cleaning & Janitorial Cleaning Service
South Lakeland District Council,http://opendatacommunities.org/id/district-council/south-lakeland,43524,Development Implementation,Central Services,,LAMBERT SMITH HAMPTON GROUP,2521225,20/02/2019,84179,2178,0,SLDC Energy Efficiency Modifications,SLDC Energy Efficiency Modifications,Contract payments,999999,Unclassifiable
South Lakeland District Council,http://opendatacommunities.org/id/district-council/south-lakeland,43524,Social Enterprise Admin,Cultural Environmental Regulatory & Planning Services,,NEWSQUEST MEDIA GROUP LTD,3102566,20/02/2019,84180,222.18,0,PUBLIC NOTICES FOR PLANNING 1 APRIL - 31,PUBLIC NOTICES FOR PLANNING 1 APRIL - 31,Advertising,191000,Facilities Advertising
South Lakeland District Council,http://opendatacommunities.org/id/district-council/south-lakeland,43524,Business Support Community Services,Central Services,,CUMBRIA COUNTY COUNCIL,,20/02/2019,84181,598,0,LAND CHARGE SEARCH ENQUIRIES COMMONS,LAND CHARGE SEARCH ENQUIRIES COMMONS,Other Local Authorities,908000,Public Bodies Council support services
South Lakeland District Council,http://opendatacommunities.org/id/district-council/south-lakeland,43524,Business Support Community Services,Central Services,,CUMBRIA COUNTY COUNCIL,,20/02/2019,84182,4028.8,0,LAND CHARGE SEARCH ENQUIRIES HIGHWAYS,LAND CHARGE SEARCH ENQUIRIES HIGHWAYS,Other Local Authorities,908000,Public Bodies Council support services
South Lakeland District Council,http://opendatacommunities.org/id/district-council/south-lakeland,43524,Business Support Community Services,Central Services,,CUMBRIA COUNTY COUNCIL,,20/02/2019,84183,2402,0,LAND CHARGE SEARCH ENQUIRIES HIGHWAYS,LAND CHARGE SEARCH ENQUIRIES HIGHWAYS,Other Local Authorities,908000,Public Bodies Council support services
South Lakeland District Council,http://opendatacommunities.org/id/district-council/south-lakeland,43524,Environment and Housing,Housing Services,,James Andrews Recruitment Solutions,6834852,25/02/2019,84188,1475.25,0,Agency worker for Community-led Housing,Agency worker for Community-led Housing,Contract & Agency staff,261400,HR Temporary & Agency Staff
South Lakeland District Council,http://opendatacommunities.org/id/district-council/south-lakeland,43524,Business Support Community Services,Internal Trading Accounts,,VOLVO GROUP UK LTD,2190944,25/02/2019,84189,180,0,Parts,Parts,Transport-Repair & Maintenance,381000,Vehicle Mgt Commercial
South Lakeland District Council,http://opendatacommunities.org/id/district-council/south-lakeland,43524,Business Support Community Services,Internal Trading Accounts,,LANCASHIRE DAF,,25/02/2019,84190,72.27,0,Parts,Parts,Transport-Repair & Maintenance,381400,Vehicle Mgt Maintenance
South Lakeland District Council,http://opendatacommunities.org/id/district-council/south-lakeland,43524,Business Support Community Services,Internal Trading Accounts,,LANCASHIRE DAF,,25/02/2019,84191,71.39,0,Parts,Parts,Transport-Repair & Maintenance,381400,Vehicle Mgt Maintenance
South Lakeland District Council,http://opendatacommunities.org/id/district-council/south-lakeland,43524,Business Support Community Services,Central Services,,SSI SCHAEFER LTD,676451,25/02/2019,84192,15498,0,ESPO Framework 860_18 Lot 1a,ESPO Framework 860_18 Lot 1a,Purchase of Plant Machinery,182011,Environment Waste Management Consumables
South Lakeland District Council,http://opendatacommunities.org/id/district-council/south-lakeland,43524,Business Support Community Services,Internal Trading Accounts,,EPIC Media Group Ltd,4914098,25/02/2019,84193,265,0,Vehicle curtains,Vehicle curtains,Transport-Repair & Maintenance,191010,Facilities Advertising Promo & Recruit
South Lakeland District Council,http://opendatacommunities.org/id/district-council/south-lakeland,43524,Business Support Community Services,Transport Planning Policy,,ARCO LIMITED,133804,25/02/2019,84194,0.73,0,Cleaning materials,Cleaning materials,Cleaning Supplies & Services,141100,Clothing Protective
South Lakeland District Council,http://opendatacommunities.org/id/district-council/south-lakeland,43524,ICT Group,Central Services,,PROBRAND LTD,2653446,25/02/2019,84195,316.9,0,Logitech MK270 keyboards and mice,Logitech MK270 keyboards and mice,Computer-Supplies,271600,ICT Software Customised & Bespoke
South Lakeland District Council,http://opendatacommunities.org/id/district-council/south-lakeland,43524,Business Support Community Services,Cultural Environmental Regulatory & Planning Services,,ARCO LIMITED,133804,25/02/2019,84196,234.1,0,Cleaning materials,Cleaning materials,Protective Clothing & Uniforms,141100,Clothing Protective
South Lakeland District Council,http://opendatacommunities.org/id/district-council/south-lakeland,43524,Business Support Community Services,Cultural Environmental Regulatory & Planning Services,,ARCO LIMITED,133804,25/02/2019,84197,-3.92,0,Cleaning materials,Cleaning materials,Equipment Furniture Materials,141100,Clothing Protective
South Lakeland District Council,http://opendatacommunities.org/id/district-council/south-lakeland,43524,Business Support Community Services,Cultural Environmental Regulatory & Planning Services,,ARCO LIMITED,133804,25/02/2019,84198,51.88,0,Cleaning materials,Cleaning materials,Protective Clothing & Uniforms,141100,Clothing Protective
South Lakeland District Council,http://opendatacommunities.org/id/district-council/south-lakeland,43524,Business Support Community Services,Cultural Environmental Regulatory & Planning Services,,ARCO LIMITED,133804,25/02/2019,84199,-2.15,0,Cleaning materials,Cleaning materials,Equipment Furniture Materials,141100,Clothing Protective
South Lakeland District Council,http://opendatacommunities.org/id/district-council/south-lakeland,43524,Business Support Community Services,Cultural Environmental Regulatory & Planning Services,,ARCO LIMITED,133804,25/02/2019,84200,116.88,0,Cleaning materials,Cleaning materials,Protective Clothing & Uniforms,141100,Clothing Protective
South Lakeland District Council,http://opendatacommunities.org/id/district-council/south-lakeland,43524,Business Support Community Services,Cultural Environmental Regulatory & Planning Services,,ARCO LIMITED,133804,25/02/2019,84201,-53.4,0,Cleaning materials,Cleaning materials,Job Consumables,141100,Clothing Protective
South Lakeland District Council,http://opendatacommunities.org/id/district-council/south-lakeland,43524,Business Support Community Services,Cultural Environmental Regulatory & Planning Services,,ARCO LIMITED,133804,25/02/2019,84202,217.77,0,Cleaning materials,Cleaning materials,Equipment Furniture Materials,141100,Clothing Protective
South Lakeland District Council,http://opendatacommunities.org/id/district-council/south-lakeland,43524,Business Support Community Services,Internal Trading Accounts,,AINSWORTH'S GARAGE,,25/02/2019,84203,255,0,Call outs,Call outs,Vehicle - Tyres,381400,Vehicle Mgt Maintenance
South Lakeland District Council,http://opendatacommunities.org/id/district-council/south-lakeland,43524,Business Support Community Services,Internal Trading Accounts,,AINSWORTH'S GARAGE,,25/02/2019,84204,55,0,Call outs,Call outs,Vehicle - Tyres,381400,Vehicle Mgt Maintenance
South Lakeland District Council,http://opendatacommunities.org/id/district-council/south-lakeland,43524,Business Support Community Services,Internal Trading Accounts,,AINSWORTH'S GARAGE,,25/02/2019,84205,39,0,Parts,Parts,Transport-Repair & Maintenance,381400,Vehicle Mgt Maintenance
South Lakeland District Council,http://opendatacommunities.org/id/district-council/south-lakeland,43524,Business Support Community Services,Internal Trading Accounts,,M G D LTD,,25/02/2019,84206,35,0,MOTs 2018/19,MOTs 2018/19,MOT/Servicing Costs,381400,Vehicle Mgt Maintenance
South Lakeland District Council,http://opendatacommunities.org/id/district-council/south-lakeland,43524,Business Support Community Services,Internal Trading Accounts,,TAYLOR ENGINEERING & FABRICATIONS LTD,4989359,25/02/2019,84207,60.29,0,Parts,Parts,Transport-Repair & Maintenance,391200,Construction Engineering
South Lakeland District Council,http://opendatacommunities.org/id/district-council/south-lakeland,43524,Business Support Community Services,Internal Trading Accounts,,TPS Preston,,25/02/2019,84208,87.28,0,Parts,Parts,Transport-Repair & Maintenance,381400,Vehicle Mgt Maintenance
South Lakeland District Council,http://opendatacommunities.org/id/district-council/south-lakeland,43524,Business Support Community Services,Internal Trading Accounts,,TPS Preston,,25/02/2019,84209,43.64,0,Parts,Parts,Transport-Repair & Maintenance,381400,Vehicle Mgt Maintenance
South Lakeland District Council,http://opendatacommunities.org/id/district-council/south-lakeland,43524,Business Support Community Services,Internal Trading Accounts,,EK MOTOR FACTORS LTD,838524,25/02/2019,84210,201.84,0,Parts,Parts,Transport-Repair & Maintenance,381400,Vehicle Mgt Maintenance
South Lakeland District Council,http://opendatacommunities.org/id/district-council/south-lakeland,43524,Business Support Community Services,Internal Trading Accounts,,EK MOTOR FACTORS LTD,838524,25/02/2019,84211,54.81,0,Parts,Parts,Transport-Repair & Maintenance,381400,Vehicle Mgt Maintenance
South Lakeland District Council,http://opendatacommunities.org/id/district-council/south-lakeland,43524,Business Support Community Services,Internal Trading Accounts,,Southfield RCV Services,,25/02/2019,84212,506.25,0,Repairs,Repairs,Transport-Repair & Maintenance,380000,Vehicle Management
South Lakeland District Council,http://opendatacommunities.org/id/district-council/south-lakeland,43524,Business Support Community Services,Internal Trading Accounts,,GARWOOD EUROPE LTD,4333504,25/02/2019,84213,243.46,0,Switches,Switches,Transport-Repair & Maintenance,182011,Environment Waste Management Consumables
South Lakeland District Council,http://opendatacommunities.org/id/district-council/south-lakeland,43524,Business Support Community Services,Internal Trading Accounts,,TTS (GARSTANG) LTD,4990573,25/02/2019,84214,196.91,0,Repair weigher,Repair weigher,Transport-Repair & Maintenance,381500,Vehicle Mgt Parts
South Lakeland District Council,http://opendatacommunities.org/id/district-council/south-lakeland,43524,Business Support Community Services,Internal Trading Accounts,,Verizon Connect UK Ltd,5265904,25/02/2019,84215,50,0,Annual fee for 70 vehicles from 01/06/18,Annual fee for 70 vehicles from 01/06/18,Transport-Repair & Maintenance,361000,Public Transport Fleet Management
South Lakeland District Council,http://opendatacommunities.org/id/district-council/south-lakeland,43524,Business Support Community Services,Internal Trading Accounts,,DENNIS EAGLE LTD,3794455,27/02/2019,84216,534.76,0,Parts,Parts,Transport-Repair & Maintenance,381300,Vehicle Mgt Industrial
South Lakeland District Council,http://opendatacommunities.org/id/district-council/south-lakeland,43524,Business Support Community Services,Internal Trading Accounts,,DENNIS EAGLE LTD,3794455,27/02/2019,84217,137.06,0,Parts,Parts,Transport-Repair & Maintenance,381300,Vehicle Mgt Industrial
South Lakeland District Council,http://opendatacommunities.org/id/district-council/south-lakeland,43524,Business Support Community Services,Internal Trading Accounts,,HAKO MACHINES LIMITED,1414225,27/02/2019,84218,61.46,0,Parts,Parts,Transport-Repair & Maintenance,131000,Cleaning & Janitorial Cleaning Materials
South Lakeland District Council,http://opendatacommunities.org/id/district-council/south-lakeland,43524,Democratic and Member Services,Central Services,,DUDDON PARISH COUNCIL,,27/02/2019,84219,150,0,"Locality donation to fund a projector,","Locality donation to fund a projector,",Contributions to Organisations,908000,Public Bodies Council support services
South Lakeland District Council,http://opendatacommunities.org/id/district-council/south-lakeland,43524,Democratic and Member Services,Central Services,,LLG Legal Training,,27/02/2019,84223,898,0,Weekend School Training ,Weekend School Training ,Training Costs,261520,Human Resources Training
South Lakeland District Council,http://opendatacommunities.org/id/district-council/south-lakeland,43524,Business Support Community Services,Central Services,,LANCASTER TRAINING SERVICES LTD,1447612,27/02/2019,84224,48.41,0,Training 2018/19 (GWK),Training 2018/19 (GWK),Training Costs,261500,HR Training & Conferences
South Lakeland District Council,http://opendatacommunities.org/id/district-council/south-lakeland,43524,Business Support Community Services,Cultural Environmental Regulatory & Planning Services,,LANCASTER TRAINING SERVICES LTD,1447612,27/02/2019,84224,532.59,0,Training 2018/19 (GWK),Training 2018/19 (GWK),Training Costs,261500,HR Training & Conferences
South Lakeland District Council,http://opendatacommunities.org/id/district-council/south-lakeland,43524,Business Support Community Services,Housing Services,,Cumbrian Properties,4196515,25/02/2019,84225,700,0,Rent in advance and deposit,Rent in advance and deposit,Homelessness Prevention,250010,Housing Letting Agents
South Lakeland District Council,http://opendatacommunities.org/id/district-council/south-lakeland,43524,Business Support Community Services,Internal Trading Accounts,,S J Bargh,532272,27/02/2019,84226,385.6,0,MOTs 2018/19 & vehicle cleaning,MOTs 2018/19 & vehicle cleaning,MOT/Servicing Costs,381400,Vehicle Mgt Maintenance
South Lakeland District Council,http://opendatacommunities.org/id/district-council/south-lakeland,43524,Business Support Community Services,Internal Trading Accounts,,INNOVATIVE SAFETY SYSTEMS LTD,6875015,27/02/2019,84227,1011,0,Parts,Parts,Transport-Repair & Maintenance,192200,Facilities Security
South Lakeland District Council,http://opendatacommunities.org/id/district-council/south-lakeland,43524,Business Support Community Services,Cultural Environmental Regulatory & Planning Services,,ARCO LIMITED,133804,27/02/2019,84228,366.7,0,Cleaning materials,Cleaning materials,Protective Clothing & Uniforms,141100,Clothing Protective
South Lakeland District Council,http://opendatacommunities.org/id/district-council/south-lakeland,43524,Business Support Community Services,Cultural Environmental Regulatory & Planning Services,,ARCO LIMITED,133804,27/02/2019,84229,40.2,0,Cleaning materials,Cleaning materials,Protective Clothing & Uniforms,141100,Clothing Protective
South Lakeland District Council,http://opendatacommunities.org/id/district-council/south-lakeland,43524,Business Support Community Services,Housing Services,,Landlord,,25/02/2019,84230,600,0,Rent in advance and deposit,Rent in advance and deposit,Homelessness Prevention,250000,Housing
South Lakeland District Council,http://opendatacommunities.org/id/district-council/south-lakeland,43524,Westmorland Centre Parking Office,Highways & Transport Services,,LOOMIS UK LTD,3200432,27/02/2019,84235,1061.79,0,Cash collection January 2019 - March,Cash collection January 2019 - March,Private Contractos gen,192200,Facilities Security
South Lakeland District Council,http://opendatacommunities.org/id/district-council/south-lakeland,43524,Business Support Community Services,SLDC as Agent,,CUMBRIA COUNTY COUNCIL,,27/02/2019,84237,54,0,DBS Checks for Taxi Drivers,DBS Checks for Taxi Drivers,Criminal Records Bureau,908000,Public Bodies Council support services
South Lakeland District Council,http://opendatacommunities.org/id/district-council/south-lakeland,43524,Kendal Town Hall,Cultural Environmental Regulatory & Planning Services,,THE CATERING PARTNERSHIP,3150517,27/02/2019,84238,117.1,0,Call out to replace lid gasket on,Call out to replace lid gasket on,Equipment Furniture Materials,111100,Catering Equipment & Utensils
South Lakeland District Council,http://opendatacommunities.org/id/district-council/south-lakeland,43524,Democratic Services,Central Services,,Sellick Partnership Group Ltd,4156002,27/02/2019,84239,1187.5,0,Locum Fees ,Locum Fees ,Contract & Agency staff,281300,Legal Services Legal Opinion
South Lakeland District Council,http://opendatacommunities.org/id/district-council/south-lakeland,43524,Business Support Community Services,Cultural Environmental Regulatory & Planning Services,,LANDMARK INFORMATION GROUP LIMITED,2892803,27/02/2019,84240,250,0,Historical National Grid Annual Licence,Historical National Grid Annual Licence,Sea Defences & Land Drainage,191700,Facilities Property Management
South Lakeland District Council,http://opendatacommunities.org/id/district-council/south-lakeland,43524,Business Support Community Services,Housing Services,,Name redacted,,27/02/2019,84242,200,0,Removal charges,Removal charges,Homelessness Prevention,250000,Housing
South Lakeland District Council,http://opendatacommunities.org/id/district-council/south-lakeland,43524,Business Support Community Services,Internal Trading Accounts,,COMPASS COMPONENTS,,27/02/2019,84243,191.81,0,Consumables 2018/19,Consumables 2018/19,Job Consumables,101400,Building General Materials
South Lakeland District Council,http://opendatacommunities.org/id/district-council/south-lakeland,43524,Business Support Community Services,Internal Trading Accounts,,Southfield RCV Services,,25/02/2019,84247,315,0,Repairs,Repairs,Transport-Repair & Maintenance,380000,Vehicle Management
South Lakeland District Council,http://opendatacommunities.org/id/district-council/south-lakeland,43524,Business Support Community Services,Cultural Environmental Regulatory & Planning Services,,Greenwich Leisure Ltd,,25/02/2019,84250,5000,0,Contributions to Greenwich Leisure Ltd,Contributions to Greenwich Leisure Ltd,Contributions to Organisations,291400,Arts & Leisure Services Sport & Fitness
South Lakeland District Council,http://opendatacommunities.org/id/district-council/south-lakeland,43524,ICT Group,Central Services,,ITPS Professional Services Ltd (DD),,01/02/2019,84251,47,0,Installation of PSTN Line,Installation of PSTN Line,Software Maintenance,271700,ICT Telecommunications Fixed
South Lakeland District Council,http://opendatacommunities.org/id/district-council/south-lakeland,43524,ICT Group,Central Services,,ITPS Professional Services Ltd (DD),,01/02/2019,84251,46,0,Installation of PSTN Line,Installation of PSTN Line,Computer-Phone Lines,271700,ICT Telecommunications Fixed
South Lakeland District Council,http://opendatacommunities.org/id/district-council/south-lakeland,43524,ICT Group,Central Services,,ITPS Professional Services Ltd (DD),,01/02/2019,84251,12.07,0,Installation of PSTN Line,Installation of PSTN Line,Telephones-Calls,271700,ICT Telecommunications Fixed
South Lakeland District Council,http://opendatacommunities.org/id/district-council/south-lakeland,43524,ICT Group,Central Services,,EE UK LTD (NCR),,01/02/2019,84252,25,0,"Car Park SIMS, covers 2018/19","Car Park SIMS, covers 2018/19",Mobile Phones,351000,Street & Traffic Parking Car Parks
South Lakeland District Council,http://opendatacommunities.org/id/district-council/south-lakeland,43524,ICT Group,Highways & Transport Services,,EE UK LTD (NCR),,01/02/2019,84252,144.77,0,"Car Park SIMS, covers 2018/19","Car Park SIMS, covers 2018/19",Fixed Plant & Machinery Maint,351000,Street & Traffic Parking Car Parks
South Lakeland District Council,http://opendatacommunities.org/id/district-council/south-lakeland,43524,ICT Group,Central Services,,EE UK LTD (NCR),,01/02/2019,84252,55.9,0,"Car Park SIMS, covers 2018/19","Car Park SIMS, covers 2018/19",Equipment Furniture Materials,351000,Street & Traffic Parking Car Parks
South Lakeland District Council,http://opendatacommunities.org/id/district-council/south-lakeland,43524,ICT Group,Cultural Environmental Regulatory & Planning Services,,EE UK LTD (NCR),,01/02/2019,84252,11.45,0,"Car Park SIMS, covers 2018/19","Car Park SIMS, covers 2018/19",Equipment Furniture Materials,351000,Street & Traffic Parking Car Parks
South Lakeland District Council,http://opendatacommunities.org/id/district-council/south-lakeland,43524,ICT Group,Central Services,,IT PROFESSIONAL SERVICES (ITPS),,25/02/2019,84253,37,0,Cisco 1921 with DSL failover card,Cisco 1921 with DSL failover card,Computer-Phone Lines,279999,ICT Not Elsewhere Classified
South Lakeland District Council,http://opendatacommunities.org/id/district-council/south-lakeland,43524,ICT Group,Central Services,,IT PROFESSIONAL SERVICES (ITPS),,25/02/2019,84254,37,0,Cisco 1921 with DSL failover card,Cisco 1921 with DSL failover card,Computer-Phone Lines,279999,ICT Not Elsewhere Classified
South Lakeland District Council,http://opendatacommunities.org/id/district-council/south-lakeland,43524,Democratic and Member Services,Central Services,,GRANTS- MISCELLANEOUS,,25/02/2019,84255,250,0,Locality Donation to buy an interactive,Locality Donation to buy an interactive,Contributions to Organisations,201700,Financial Services Grants
South Lakeland District Council,http://opendatacommunities.org/id/district-council/south-lakeland,43524,ICT Group,Central Services,,IT PROFESSIONAL SERVICES (ITPS),,25/02/2019,84256,-6.56,0,Cisco 1921 with DSL failover card,Cisco 1921 with DSL failover card,Computer-Phone Lines,279999,ICT Not Elsewhere Classified
South Lakeland District Council,http://opendatacommunities.org/id/district-council/south-lakeland,43524,Business Support Community Services,Cultural Environmental Regulatory & Planning Services,,Macdonald & Company Freelance Ltd,3882135,25/02/2019,84257,2196,0,Supply of Contract Worker for Planning,Supply of Contract Worker for Planning,Contract & Agency staff,261400,HR Temporary & Agency Staff
South Lakeland District Council,http://opendatacommunities.org/id/district-council/south-lakeland,43524,Business Support Community Services,Internal Trading Accounts,,M G D LTD,,25/02/2019,84258,35,0,MOTs 2018/19,MOTs 2018/19,MOT/Servicing Costs,381400,Vehicle Mgt Maintenance
South Lakeland District Council,http://opendatacommunities.org/id/district-council/south-lakeland,43524,Business Support Community Services,Cultural Environmental Regulatory & Planning Services,,ARCO LIMITED,133804,25/02/2019,84259,135.6,0,Cleaning materials,Cleaning materials,Job Consumables,141100,Clothing Protective
South Lakeland District Council,http://opendatacommunities.org/id/district-council/south-lakeland,43524,Business Support Community Services,Cultural Environmental Regulatory & Planning Services,,C M SIGNS,,25/02/2019,84260,298,0,A4 Plain backing plates with channels &,A4 Plain backing plates with channels &,Advertising,102400,Building Signage
South Lakeland District Council,http://opendatacommunities.org/id/district-council/south-lakeland,43524,Development Implementation,Cultural Environmental Regulatory & Planning Services,,NEWSQUEST MEDIA GROUP LTD,3102566,25/02/2019,84262,300,0,Advertising in In Cumbria,Advertising in In Cumbria,Publicity Marketing,191000,Facilities Advertising
South Lakeland District Council,http://opendatacommunities.org/id/district-council/south-lakeland,43524,Democratic and Member Services,Central Services,,IMPROVEMENT & DEVELOPMENT AGENCY,3675577,25/02/2019,84263,150,0,Effective Opposition programme course,Effective Opposition programme course,Conference Fees,202100,Financial Services Subscriptions
South Lakeland District Council,http://opendatacommunities.org/id/district-council/south-lakeland,43524,Democratic and Member Services,Central Services,,IMPROVEMENT & DEVELOPMENT AGENCY,3675577,25/02/2019,84264,50,0,Effective Opposition programme course,Effective Opposition programme course,Conference Fees,202100,Financial Services Subscriptions
South Lakeland District Council,http://opendatacommunities.org/id/district-council/south-lakeland,43524,Business Support Community Services,Internal Trading Accounts,,AINSWORTH'S GARAGE,,25/02/2019,84265,30,0,Call outs,Call outs,Vehicle - Tyres,381400,Vehicle Mgt Maintenance
South Lakeland District Council,http://opendatacommunities.org/id/district-council/south-lakeland,43524,Business Support Community Services,Internal Trading Accounts,,AINSWORTH'S GARAGE,,25/02/2019,84266,30,0,Call outs,Call outs,Vehicle - Tyres,381400,Vehicle Mgt Maintenance
South Lakeland District Council,http://opendatacommunities.org/id/district-council/south-lakeland,43524,Business Support Community Services,Cultural Environmental Regulatory & Planning Services,,Vivid Resourcing,,25/02/2019,84268,1936,0,SUPPLY OF CONTRACT WORKER FOR PLANNING,SUPPLY OF CONTRACT WORKER FOR PLANNING,Contract & Agency staff,150000,Consultancy
South Lakeland District Council,http://opendatacommunities.org/id/district-council/south-lakeland,43524,Business Support Community Services,Housing Services,,Vivid Resourcing,,25/02/2019,84271,1127,0,Payment for FOB,Payment for FOB,Contract & Agency staff,150000,Consultancy
South Lakeland District Council,http://opendatacommunities.org/id/district-council/south-lakeland,43524,Business Support Community Services,Internal Trading Accounts,,ALAN MYERSCOUGH LTD,2027076,25/02/2019,84274,182.25,0,VAT,VAT,Vehicle Insured Damage,381400,Vehicle Mgt Maintenance
South Lakeland District Council,http://opendatacommunities.org/id/district-council/south-lakeland,43524,Business Support Community Services,Internal Trading Accounts,,EK MOTOR FACTORS LTD,838524,25/02/2019,84275,26.09,0,Parts,Parts,Transport-Repair & Maintenance,381400,Vehicle Mgt Maintenance
South Lakeland District Council,http://opendatacommunities.org/id/district-council/south-lakeland,43524,Business Support Community Services,Internal Trading Accounts,,ALAN MYERSCOUGH LTD,2027076,25/02/2019,84277,250,0,VAT,VAT,Vehicle Insured Damage,381400,Vehicle Mgt Maintenance
South Lakeland District Council,http://opendatacommunities.org/id/district-council/south-lakeland,43524,Business Support Community Services,Internal Trading Accounts,,ALAN MYERSCOUGH LTD,2027076,25/02/2019,84278,250,0,VAT,VAT,Vehicle Insured Damage,381400,Vehicle Mgt Maintenance
South Lakeland District Council,http://opendatacommunities.org/id/district-council/south-lakeland,43524,Business Support Community Services,Highways & Transport Services,,ALAN MYERSCOUGH LTD,2027076,25/02/2019,84279,-250,0,VAT,VAT,Vehicle Insured Damage,381400,Vehicle Mgt Maintenance
South Lakeland District Council,http://opendatacommunities.org/id/district-council/south-lakeland,43524,Business Support Community Services,Internal Trading Accounts,,ALAN MYERSCOUGH LTD,2027076,25/02/2019,84280,250,0,VAT,VAT,Vehicle Insured Damage,381400,Vehicle Mgt Maintenance
South Lakeland District Council,http://opendatacommunities.org/id/district-council/south-lakeland,43524,Human Resources,Central Services,,Health Assured Limited,,25/02/2019,84281,3172.79,0,Employee Assistance Programme Renewal,Employee Assistance Programme Renewal,Drs/Occ Health Fees,311410,Healthcare-Occupational Therapy services
South Lakeland District Council,http://opendatacommunities.org/id/district-council/south-lakeland,43524,Business Support Community Services,Cultural Environmental Regulatory & Planning Services,,ARCO LIMITED,133804,25/02/2019,84282,702.3,0,Cleaning materials,Cleaning materials,Protective Clothing & Uniforms,141100,Clothing Protective
South Lakeland District Council,http://opendatacommunities.org/id/district-council/south-lakeland,43524,Business Support Community Services,Transport Planning Policy,,ARCO LIMITED,133804,25/02/2019,84283,4.78,0,Cleaning materials,Cleaning materials,Cleaning Supplies & Services,141100,Clothing Protective
South Lakeland District Council,http://opendatacommunities.org/id/district-council/south-lakeland,43524,Business Support Community Services,Cultural Environmental Regulatory & Planning Services,,ARCO LIMITED,133804,25/02/2019,84283,36.71,0,Cleaning materials,Cleaning materials,Equipment Furniture Materials,141100,Clothing Protective
South Lakeland District Council,http://opendatacommunities.org/id/district-council/south-lakeland,43524,Business Support Community Services,Transport Planning Policy,,ARCO LIMITED,133804,25/02/2019,84284,5.58,0,Cleaning materials,Cleaning materials,Cleaning Supplies & Services,141100,Clothing Protective
South Lakeland District Council,http://opendatacommunities.org/id/district-council/south-lakeland,43524,Business Support Community Services,Cultural Environmental Regulatory & Planning Services,,ARCO LIMITED,133804,25/02/2019,84284,460.78,0,Cleaning materials,Cleaning materials,Protective Clothing & Uniforms,141100,Clothing Protective
South Lakeland District Council,http://opendatacommunities.org/id/district-council/south-lakeland,43524,Human Resources,Central Services,,Bluetownonline Ltd,7464701,25/02/2019,84286,499,0,Digital Development Officer advertising,Digital Development Officer advertising,Staff Advertising,191000,Facilities Advertising
South Lakeland District Council,http://opendatacommunities.org/id/district-council/south-lakeland,43524,Policy & Partnerships,Cultural Environmental Regulatory & Planning Services,,CUMBRIA COUNTY COUNCIL,,25/02/2019,84287,12000,0,Contribution toward cost of CCC,Contribution toward cost of CCC,Grants & Contribut to Vol Orga,908000,Public Bodies Council support services
South Lakeland District Council,http://opendatacommunities.org/id/district-council/south-lakeland,43524,Policy & Partnerships,Cultural Environmental Regulatory & Planning Services,,ULVERSTON TOWN COUNCIL,,25/02/2019,84288,1000,0,YoYo Project - Year of Youth,YoYo Project - Year of Youth,Grants & Contribut to Vol Orga,908000,Public Bodies Council support services
South Lakeland District Council,http://opendatacommunities.org/id/district-council/south-lakeland,43524,Leisure and Wellbeing,Cultural Environmental Regulatory & Planning Services,,GRANGE OVER SANDS CIVIC SOCIETY,,27/02/2019,84293,1580.4,0,Maintain Promenade Beds and Orchard at,Maintain Promenade Beds and Orchard at,Contributions to Organisations,201700,Financial Services Grants
South Lakeland District Council,http://opendatacommunities.org/id/district-council/south-lakeland,43524,ICT Group,Central Services,,Insight Direct (Uk) Ltd,2579852,27/02/2019,84294,80.4,0,"BenQ BL2405HT - LED monitor - 24""","BenQ BL2405HT - LED monitor - 24""",Computer-Supplies,271200,ICT Hardware
South Lakeland District Council,http://opendatacommunities.org/id/district-council/south-lakeland,43524,ICT Group,Central Services,,Insight Direct (Uk) Ltd,2579852,27/02/2019,84295,376.35,0,"BenQ BL2405HT - LED monitor - 24""","BenQ BL2405HT - LED monitor - 24""",Computer-Supplies,271200,ICT Hardware
